Workbook

Sheet Ker
A1: Sor szám. | B1: Neve | C1: Neme | D1: Címe | E1: Cég név | F1: Tel. Szám | G1: Fax szám | H1: Mobil szám | I1: E-mail | J1: Képviselő kódja | K1: Fiók neve
A2: 1 | B2: Nagy Gabriella | C2: 2 | E2: Prezervál Biztosítási Alkusz Kft | G2: 0613810204 | H2: 06309342756 | I2: n.gabriella@prezerval.hu | J2: 20042008 | K2: 2
A3: 2
A4: 3
A5: 4
A6: 5
A7: 6
A8: 7
A9: 8
A10: 9
A11: 10
A12: 11
A13: 12
A14: 13
A15: 14
A16: 15
A17: 16
A18: 17
A19: 18
A20: 19
A21: 20
A22: 21
A23: 22
A24: 23
A25: 24
A26: 25
A27: 26
A28: 27
A29: 28
A30: 29
A31: 30
A32: 31
A33: 32
A34: 33
A35: 34
A36: 35
A37: 36
A38: 37
A39: 38
A40: 39
A41: 40
A42: 41
A43: 42
A44: 43
A45: 44
A46: 45
A47: 46
A48: 47
A49: 48
A50: 49
A51: 50
A52: 51
A53: 52
A54: 53
A55: 54
A56: 55
A57: 56
A58: 57
A59: 58
A60: 59
A61: 60
A62: 61
A63: 62
A64: 63
A65: 64
A66: 65
A67: 66
A68: 67
A69: 68
A70: 69
A71: 70
A72: 71
A73: 72
A74: 73
A75: 74
A76: 75
A77: 76
A78: 77
A79: 78
A80: 79
A81: 80
A82: 81
A83: 82
A84: 83
A85: 84
A86: 85
A87: 86
A88: 87
A89: 88
A90: 89
A91: 90
A92: 91
A93: 92
A94: 93
A95: 94
A96: 95
A97: 96
A98: 97
A99: 98
A100: 99
A101: 100
A102: 101
A103: 102
A104: 103
A105: 104
A106: 105
A107: 106
A108: 107
A109: 108
A110: 109
A111: 110
A112: 111
A113: 112
A114: 113
A115: 114
A116: 115
A117: 116
A118: 117
A119: 118
A120: 119
A121: 120
A122: 121
A123: 122
A124: 123
A125: 124
A126: 125
A127: 126
A128: 127
A129: 128
A130: 129
A131: 130
A132: 131
A133: 132
A134: 133
A135: 134
A136: 135
A137: 136
A138: 137
A139: 138
A140: 139
A141: 140
A142: 141
A143: 142
A144: 143
A145: 144
A146: 145
A147: 146
A148: 147
A149: 148
A150: 149
A151: 150
B152: Fiók nevek megadása; | C152: 1 | D152: Budapest Alkusz IV | F152: Területileg illetékes referens; | G152: Kiss Zoltán | H152: titulusa; | I152: Mid-Office vagyon kockázatvállaló
C153: 2 | D153: Budapest Alkusz I
C154: 3 | D154: Élet-Alkusz Igazgatóság | F154: Baloldali aláíró választása; | G154: 1 | H154: titulusa; | I154: =VLOOKUP(G154,Tomb!R36:T38,3,0) -> kockázatvállaló, termékfelelős
C155: 4 | D155: Budapest Alkusz II
C156: 5
C157: 6
C158: 7
C159: 8

Sheet Tomb (hidden)
D1: =G65 -> 2 | E1: 1 | F1: 2 | G1: 3 | H1: 4 | J1: Épület kora | L1: ‰ | O1: =NOW() -> 2014-09-28T14:55:02.800 | P1: 2016-01-30 | Q1: =IF(P1<O1,1,0) -> 0 | W1: 1 | X1: 2 | Y1: 3 | AA1: Terület M | AB1: =IF(ISERROR($AB$268),0,$AB$268) -> 1 | AC1: Terület K | AD1: =IF(ISERROR($AD$217),0,$AD$217) -> 1 | AE1: Árvíz | AF1: =IF(ISERROR($AF$309),0,$AF$309) -> 0
A2: =IF(AND(C65=1,OR(G55=1,G55=3,G55=4)),1,IF(AND(C65=2,OR(G55=1,G55=3,G55=4)),2,IF(AND(C65=1,G55=2),3,IF(AND(C65=2,G55=2),4,IF(AND(G55=5,OR(C65=1,C65=3)),3,0))))) -> 1 | B2: Típusa | D2: Kategória | E2: I | F2: II | G2: III | H2: IV | J2: 0 | K2: 0 | L2: 0.45 | M2: 0 év | U2: Felület | W2: Egy rtg. | X2: Hőszig. | Y2: Fóliázás | AA2: 1011 | AB2: Budapest | AC2: 1011 | AD2: Budapest | AE2: 3042 | AF2: Palotás
A3: 1 | B3: Hagyományos tech. lakóép. | D3: A | E3: 160000 | F3: 190000 | G3: 241000 | H3: 260000 | J3: 1 | K3: 2 | L3: 0.55 | M3: 1-2 év | V3: 0 | W3: 0 | X3: 0 | Y3: 0 | AA3: 1012 | AC3: 1012 | AE3: 3381 | AF3: Pély
A4: 2 | B4: Modern tech. lakóép. | D4: B | E4: 170000 | F4: 170000 | G4: 221000 | H4: 235000 | J4: 3 | K4: 25 | L4: 0.65 | M4: 3-25 év | U4: 1 | V4: 5 | W4: 1600 | X4: 3200 | Y4: 800 | AA4: 1013 | AC4: 1013 | AE4: 3382 | AF4: Tarnaszentmiklós
A5: 3 | B5: Hagyományos tech. nyaraló | D5: C | E5: 130000 | F5: 165000 | G5: 201000 | H5: 215000 | J5: 26 | K5: 50 | L5: 0.75 | M5: 26-50 év | U5: 6 | V5: 10 | W5: 3000 | X5: 6000 | Y5: 1400 | AA5: 1014 | AC5: 1014 | AE5: 3384 | AF5: Kisköre
A6: 4 | B6: Modern tech. nyaraló | D6: D | E6: 160000 | F6: 160000 | G6: 201000 | H6: 215000 | J6: 51 | K6: 100 | L6: 0.9 | M6: 51-100 év | U6: 11 | V6: 15 | W6: 4300 | X6: 9000 | Y6: 2000 | AA6: 1015 | AC6: 1015 | AE6: 3385 | AF6: Tiszanána
A7: 5 | B7: Melléképület | D7: F | E7: 100000 | F7: 131000 | G7: 145000 | H7: 160000 | J7: 101 | L7: 1.25 | M7: 100 évnél idősebb | U7: 16 | V7: 20 | W7: 5500 | X7: 11500 | Y7: 2600 | AA7: 1016 | AC7: 1016 | AE7: 3386 | AF7: Sarud
U8: 21 | V8: 25 | W8: 6900 | X8: 14100 | Y8: 3300 | AA8: 1021 | AC8: 1021 | AE8: 3418 | AF8: Szentistván
A9: A fenti táblázat adatait legfeljebb 10%-kal lehet csökkenteni, kivéve: Budapest agglomerációja (Budakalász, Budaörs, Érd, Gyál, Leányfalu, Nagykovácsi, Pilisvörösvár, Pomáz, Solymár, Szentendre, Üllő, Vecsés) | J9: Z Többszöröz | L9: ‰ | N9: Kártérítési határ | P9: ‰ | U9: 26 | V9: 30 | W9: 8000 | X9: 16500 | Y9: 3900 | AA9: 1022 | AC9: 1022 | AE9: 3443 | AF9: Mezőnagymihály
J10: 0 | K10: 1 | L10: 0 | N10: Extra fedezet | P10: 1 | U10: 31 | V10: 35 | W10: 9200 | X10: 19000 | Y10: 4500 | AA10: 1023 | AC10: 1023 | AE10: 3444 | AF10: Gelej
J11: 1 | K11: 2 | L11: 0.15 | N11: Üveg | U11: 36 | V11: 40 | W11: 10000 | X11: 21200 | Y11: 5000 | AA11: 1024 | AC11: 1024 | AE11: 3450 | AF11: Mezőcsát
J12: 2 | K12: 3 | L12: 0.3 | U12: 41 | V12: 45 | W12: 11200 | X12: 23500 | Y12: 5600 | AA12: 1025 | AC12: 1025 | AE12: 3458 | AF12: Tiszakeszi
N13: Benem fejezett | P13: ‰ | U13: 46 | V13: 50 | W13: 12200 | X13: 25700 | Y13: 6100 | AA13: 1026 | AC13: 1026 | AE13: 3459 | AF13: Igrici
A14: valamint Debrecen, Győr, Miskolc, Pécs, Szeged, Székesfehérvár közigazgatási határain belül levő kockázatviselési hellyel felvett ajánlatok esetén (területi engedmény). | N14: =K55 -> 1 | P14: 0.4 | U14: 51 | V14: 55 | W14: 13300 | X14: 28000 | Y14: 6800 | AA14: 1027 | AC14: 1027 | AE14: 3461 | AF14: Egerlövő
U15: 56 | V15: 60 | W15: 14400 | X15: 30000 | Y15: 7300 | AA15: 1028 | AC15: 1028 | AE15: 3462 | AF15: Borsodivánka
N16: Tűzveszélyes | P16: ‰ | U16: Megkezdett 10 m2 -ként | W16: 2300 | X16: 4800 | Y16: 1300 | AA16: 1029 | AC16: 1029 | AE16: 3464 | AF16: Tiszavalk
N17: =W55 -> 2 | P17: 0.1 | AA17: 1031 | AC17: 1031 | AE17: 3465 | AF17: Tiszabábolna
AA18: 1032 | AC18: 1032 | AE18: 3466 | AF18: Tiszadorogma
A19: Engedmények | E19: ‰ | G19: Felelősség | I19: 1 | J19: 2 | M19: Mennyiségi eng. | O19: =Haz!O30/1000 -> 688800 | P19: =IF(Haz!B18>Haz!K18,Haz!B18,Haz!K18) -> 225000 | R19: Üveg | S19: =IF(OR(Haz!$O$30=0,AND(Haz!$O$30>0,Haz!$B$51=1)),1,IF(AND(Haz!$O$30>0,Haz!$B$51=2),2,IF(AND(Haz!$O$30>0,Haz!$B$51=3),3,0))) -> 1 | T19: kód | U19: szorzó | AA19: 1033 | AC19: 1033 | AE19: 3467 | AF19: Ároktő
A20: Felújítás | C20: 1 | E20: 0.02 | G20: Fedezet | H20: 1 | I20: 0.05 | J20: =I20+K20 -> 0.15 | K20: 0.1 | M20: 180000 | N20: 0 | O20: 100 | P20: 0 | R20: ="" ->  | S20: =IF($S$19=2,R20,"") ->  | T20: 1 | AA20: 1034 | AC20: 1034 | AE20: 3565 | AF20: Tiszalúc
A21: =I81 -> 0 | C21: 2 | E21: 0.04 | G21: ‰ | H21: 2 | I21: 0.08 | J21: =I21+K21 -> 0.22 | K21: 0.14 | N21: 100001 | O21: 200 | P21: 0 | R21: Sík üvegezés | S21: =IF($S$19=2,R21,"") ->  | T21: 2 | U21: 0.07 | AA21: 1035 | AC21: 1035 | AE21: 3578 | AF21: Girincs
C22: 3 | E22: 0.06 | H22: 3 | I22: 0.12 | J22: =I22+K22 -> 0.3 | K22: 0.18 | N22: 200001 | O22: 300 | P22: 0.02 | R22: Előtetők, felülvilágítók, napkollektorok | T22: 3 | U22: 0.09 | AA22: 1036 | AC22: 1036 | AE22: 3579 | AF22: Kesznyéten
A23: Funkció | C23: 1 | E23: 0.05 | G23: Be nem fejezett | I23: 0.2 | N23: 300001 | O23: 400 | P23: 0.03 | R23: Ón, ólom, maratott díszüveg, tükör | T23: 4 | U23: 0.04 | AA23: 1037 | AC23: 1037 | AE23: 3580 | AF23: Tiszaújváros
A24: =G55 -> 1 | C24: 2 | E24: 0 | I24: 1 | J24: 2 | N24: 400001 | O24: 600 | P24: 0.04 | R24: Műanyag fényáteresztők | T24: 5 | U24: 0.05 | AA24: 1038 | AC24: 1038 | AE24: 3586 | AF24: Sajóörös
C25: 3 | E25: 0.05 | G25: Limit | H25: 1 | I25: 15 | J25: 7.5 | N25: 600001 | O25: 800 | P25: 0.06 | R25: Épületszerkezeti üvegezés | T25: 6 | U25: 0.07 | AA25: 1039 | AC25: 1039 | AE25: 3587 | AF25: Tiszapalkonya
C26: 4 | E26: 0.05 | G26: mFt | H26: 2 | I26: 35 | J26: 15 | N26: 800001 | O26: 1200 | P26: 0.08 | R26: Akvárium üvegezése | T26: 7 | U26: 0.15 | AA26: 1041 | AC26: 1041 | AE26: 3588 | AF26: Hejőkürt
C27: 5 | E27: 0 | H27: 3 | I27: 75 | J27: 35 | N27: 1200001 | O27: 1000000 | P27: 0.15 | R27: Üvegezés fóliázása | T27: 8 | U27: 0.02 | AA27: 1042 | AC27: 1042 | AE27: 3589 | AF27: Tiszatarján
A28: Áll szem. | E28: 0.02 | G28: Munkáltatói | J28: 7000 | M28: 191000 | N28: 0 | O28: 100 | P28: 0 | R28: Üvegpótlás (daru, állvány) | T28: 9 | U28: 0.15 | AA28: 1043 | AC28: 1043 | AE28: 3591 | AF28: Oszlár
A29: Nem Panel. | E29: 0.02 | G29: Közkép. felbi. | I29: =ROUNDUP(Haz!$L$14/100,0) -> 1 | J29: 15000 | N29: 100001 | O29: 200 | P29: 0.04 | R29: Speciális üvegezés | T29: 10 | U29: 0.15 | AA29: 1044 | AC29: 1044 | AE29: 3592 | AF29: Nemesbikk
A30: Önrész | C30: 0 | D30: 1 | E30: 0 | N30: 200001 | O30: 300 | P30: 0.06 | R30: Első kockázatra | S30: =IF($S$19=3,R30,"") ->  | T30: 1 | U30: 0.15 | AA30: 1045 | AC30: 1045 | AE30: 3594 | AF30: Hejőpapi
A31: =IF(AND(NOT(O66),NOT(P66),NOT(Q67)),1,IF(AND(O66,NOT(P66),NOT(Q67)),2,IF(AND(NOT(O66),P66,NOT(Q67)),3,IF(AND(NOT(O66),NOT(P66),Q67),4,0)))) -> 1 | C31: 25 | D31: 2 | E31: 0.02 | G31: Jármű | I31: 3500000 | J31: 1200 | N31: 300001 | O31: 400 | P31: 0.08 | AA31: 1046 | AC31: 1046 | AE31: 3910 | AF31: Tokaj
C32: 50 | D32: 3 | E32: 0.04 | N32: 400001 | O32: 600 | P32: 0.1 | AA32: 1047 | AC32: 1047 | AE32: 3921 | AF32: Taktaszada
C33: 100 | D33: 4 | E33: 0.06 | G33: Felvonó GEPTB | N33: 600001 | O33: 800 | P33: 0.12 | S33: Aláírók | AA33: 1048 | AC33: 1048 | AE33: 3922 | AF33: Taktaharkány
A34: Árvíz ki | E34: 0.03 | G34: 1 | H34: 150 | I34: 500 | J34: 6000 | N34: 800001 | O34: 1200 | P34: 0.14 | R34: 400 | S34: =IF(Tomb!R42=0,"",IF(Tomb!R42>0,VLOOKUP(Tomb!R42,Ker!A2:K150,2,0))) -> 0 | T34: képviselő | AA34: 1051 | AC34: 1051 | AE34: 3924 | AF34: Taktakenéz
A35: Z11-14 Ki | E35: 0.05 | G35: 2 | H35: 300 | I35: 1000 | J35: 7500 | N35: 1200001 | O35: 1000000 | P35: 0.16 | R35: 700 | S35: =Ker!G152 -> Kiss Zoltán | T35: =IF(OR(Ker!I152>0,Ker!I152>""),Ker!I152,"") -> Mid-Office vagyon kockázatvállaló | AA35: 1052 | AC35: 1052 | AE35: 3925 | AF35: Prügy
A36: Betlop Ki | E36: 0.05 | G36: 3 | H36: 450 | I36: 1500 | J36: 8500 | M36: 221000 | N36: 0 | O36: 100 | P36: 0.04 | R36: 1 | S36: Varga Ferenc | T36: kockázatvállaló, termékfelelős | AA36: 1053 | AC36: 1053 | AE36: 3926 | AF36: Taktabáj
G37: 4 | H37: 550 | I37: 2000 | J37: 10000 | N37: 100001 | O37: 200 | P37: 0.06 | R37: 2 | S37: Flamich Gábor | T37: gépjármű és lakossági vagyonbiztosítási főosztályvezető | AA37: 1054 | AC37: 1054 | AE37: 3927 | AF37: Csobaj
N38: 200001 | O38: 300 | P38: 0.08 | R38: 3 | S38: Lipovecz Zsuzsanna | T38: együtt-viszontbiztosítási kockázatvállaló | AA38: 1055 | AC38: 1055 | AE38: 3928 | AF38: Tiszatardos
G39: Assistance | J39: 1780 | N39: 300001 | O39: 400 | P39: 0.1 | R39: FALSE | S39: Mikó János | T39: kockázatvállaló, termékfelelős | AA39: 1056 | AC39: 1056 | AE39: 3929 | AF39: Tiszaladány
N40: 400001 | O40: 600 | P40: 0.12 | AA40: 1061 | AC40: 1061 | AE40: 3931 | AF40: Mezőzombor
N41: 600001 | O41: 800 | P41: 0.14 | AA41: 1062 | AC41: 1062 | AE41: 3933 | AF41: Olaszliszka
N42: 800001 | O42: 1200 | P42: 0.16 | R42: 62 | S42: Képviselet | T42: =LOOKUP(VLOOKUP(R42,Ker!A2:K150,11,0),R43:R50) ->  | AA42: 1063 | AC42: 1063 | AE42: 3941 | AF42: Vámosújfalu
A43: 0 | B43: Engedmények | N43: 1200001 | O43: 1000000 | P43: 0.18 | R43: 1 | S43: =Ker!$D152 -> Budapest Alkusz IV | AA43: 1064 | AC43: 1064 | AE43: 3942 | AF43: Sárazsadány
A44: 1 | B44: Éves díj | C44: (éves) | D44: 0 | E44: =CONCATENATE(B44&" ( "&D44&" % )") -> Éves díj ( 0 % ) | G44: 0 | H44: =Haz!X57 -> 647480 | M44: 251000 | N44: 0 | O44: 100 | P44: 0.06 | R44: 2 | S44: =Ker!$D153 -> Budapest Alkusz I | AA44: 1065 | AC44: 1065 | AE44: 3943 | AF44: Bodrogolaszi
A45: 2 | B45: Féléves díj | C45: (féléves) | D45: 3 | E45: =CONCATENATE(B45&" ( "&D45&" % )") -> Féléves díj ( 3 % ) | G45: 0.03 | H45: 5000 | I45: 15000 | N45: 100001 | O45: 200 | P45: 0.08 | R45: 3 | S45: =Ker!$D154 -> Élet-Alkusz Igazgatóság | AA45: 1066 | AC45: 1066 | AE45: 3954 | AF45: Györgytarló
A46: 3 | B46: Negyedéves díj | C46: (negyedéves) | D46: 6 | E46: =CONCATENATE(B46&" ( "&D46&" % )") -> Negyedéves díj ( 6 % ) | G46: 0.06 | I46: =IF(H44=0,0,ROUNDDOWN(LEFT(H44/H45,3),0)-1) -> 128 | N46: 200001 | O46: 300 | P46: 0.12 | R46: 4 | S46: =Ker!$D155 -> Budapest Alkusz II | AA46: 1067 | AC46: 1067 | AE46: 3955 | AF46: Kenézlő
A47: 4 | B47: Havi díj | C47: (havi) | D47: 9 | E47: =CONCATENATE(B47&" ( "&D47&" % )") -> Havi díj ( 9 % ) | G47: 0.09 | N47: 300001 | O47: 400 | P47: 0.14 | R47: 5 | S47: =Ker!$D156 -> 0 | AA47: 1068 | AC47: 1068 | AE47: 3956 | AF47: Viss
N48: 400001 | O48: 600 | P48: 0.16 | R48: 6 | S48: =Ker!$D157 -> 0 | AA48: 1071 | AC48: 1071 | AE48: 3961 | AF48: Vajdácska
E49: =EVEN(I46) -> 128 | F49: =VLOOKUP(I49,A44:G47,7,0) -> 0 | G49: =INDEX(A44:G47,H49,7) -> 0 | H49: 1 | I49: =IF(Haz!Q7=1,1,IF(AND(E49<2,OR(H49=2,H49=3,H49=4)),1,IF(AND(E49=2,OR(H49=3,H49=4)),2,IF(AND(E49=4,OR(H49=3,H49=4)),3,IF(AND(E49>4,E49<12,OR(H49=3,H49=4)),3,IF(AND(E49>=12,OR(H49=4)),4,H49)))))) -> 1 | N49: 600001 | O49: 800 | P49: 0.22 | R49: 7 | S49: =Ker!$D158 -> 0 | AA49: 1072 | AC49: 1072 | AE49: 3962 | AF49: Karos
N50: 800001 | O50: 1200 | P50: 0.26 | R50: 8 | S50: =Ker!$D159 -> 0 | AA50: 1073 | AC50: 1073 | AE50: 3963 | AF50: Karcsa
N51: 1200001 | O51: 1000000 | P51: 0.3 | AA51: 1074 | AC51: 1074 | AE51: 3964 | AF51: Pácin
AA52: 1075 | AC52: 1075 | AE52: 3965 | AF52: Kisrozvágy
AA53: 1076 | AC53: 1076 | AE53: 3967 | AF53: Lácacséke
M54: Falazata | O54: 1 | AA54: 1077 | AC54: 1077 | AE54: 3971 | AF54: Tiszakarád
A55: TULAJDON | C55: 1 | E55: Rendeltetés | G55: 1 | I55: Jellemzői | K55: 1 | M55: Tégla | Q55: Födém | S55: 2 | U55: Tűzveszály | W55: 2 | AA55: 1078 | AC55: 1078 | AE55: 3972 | AF55: Tiszacsermely
A56: Társasházi tulajdon | E56: Lakóépület | I56: Befejezett épület | M56: Panel | Q56: Acélgerendás | U56: Igen | AA56: 1081 | AC56: 1081 | AE56: 3973 | AF56: Cigánd
A57: Szövetkezeti tulajdon | E57: Nyaralóépület | I57: Nem befejezett ép. | M57: Monolit vb. | Q57: Beton födém | U57: Nem | AA57: 1082 | AC57: 1082 | AE57: 3974 | AF57: Ricse
E58: Üzletház | M58: Bauxit beton | Q58: Közbenső fa | AA58: 1083 | AC58: 1083 | AE58: 3976 | AF58: Révleányvár
A59: Áfa | C59: 2 | E59: Irodaház | I59: Jellemzői | K59: 2 | M59: Egyéb | Q59: Záró fa, belső vízelv. | AA59: 1084 | AC59: 1084 | AE59: 3977 | AF59: Zemplénagárd
A60: Igen | E60: Mellék épület | I60: Igen | Q60: Bauxitbeton | AA60: 1085 | AC60: 1085 | AE60: 3978 | AF60: Dámóc
A61: Nem | I61: Nem | AA61: 1086 | AC61: 1086 | AE61: 3985 | AF61: Alsóberecki
AA62: 1087 | AC62: 1087 | AE62: 3987 | AF62: Bodroghalom
G63: 1 | AA63: 1088 | AC63: 1088 | AE63: 4060 | AF63: Balmazújváros
M64: TRUE | N64: =IF(OR(AND(K65,NOT(M64)),AND(NOT(K65),M64)),TRUE(),FALSE()) -> TRUE | O64: FALSE | P64: =IF(AND(O64,NOT(Q65)),1,IF(AND(OR(O64,NOT(O64)),Q65),2,0)) -> 0 | AA64: 1089 | AC64: 1089 | AE64: 4065 | AF64: Újszentmargita
A65: Típusa | C65: 1 | E65: Kategóriája | G65: 2 | I65: Állag | K65: FALSE | M65: TRUE | N65: =IF(OR(AND(K66,NOT(M65)),AND(NOT(K66),M65)),TRUE(),FALSE()) -> TRUE | Q65: FALSE | U65: Felvonó | W65: 1 | AA65: 1091 | AC65: 1091 | AE65: 4066 | AF65: Tiszacsege
A66: Hagyományos tech. | E66: Átlag alatti | K66: FALSE | M66: TRUE | N66: =IF(OR(AND(K67,NOT(M66)),AND(NOT(K67),M66)),TRUE(),FALSE()) -> TRUE | O66: FALSE | P66: FALSE | U66: 150/500 eFt/kár/év/felvonó | AA66: 1092 | AC66: 1092 | AE66: 4069 | AF66: Egyek
A67: Modern technológiával | E67: Átlagos | K67: FALSE | M67: TRUE | N67: =IF(OR(AND(K68,NOT(M67)),AND(NOT(K68),M67)),TRUE(),FALSE()) -> TRUE | Q67: FALSE | U67: 300/1.000 eFt/kár/év/felvonó | AA67: 1093 | AC67: 1093 | AE67: 4075 | AF67: Görbeháza
E68: Átlag feletti | K68: FALSE | U68: 450/1.500 eFt/kár/év/felvonó | AA68: 1094 | AC68: 1094 | AE68: 4090 | AF68: Folyás
E69: Luxus | U69: 550/2.000 eFt/kár/év/felvonó | AA69: 1095 | AC69: 1095 | AE69: 4096 | AF69: Újtikos
AA70: 1096 | AC70: 1096 | AE70: 4097 | AF70: Tiszagyulaháza
AA71: 1097 | AC71: 1097 | AE71: 4100 | AF71: Berettyóújfalu
O72: FALSE | AA72: 1098 | AC72: 1098 | AE72: 4103 | AF72: Berettyóújfalu (Berettyószentmárton
A73: Felelősség | C73: 1 | G73: 2 | I73: FALSE | J73: =IF(AND(I73,NOT(K73)),TRUE(),FALSE()) -> FALSE | K73: FALSE | L73: =IF(OR(AND(I73,NOT(K73)),AND(NOT(I73),K73),AND(NOT(I73),NOT(K73))),TRUE(),FALSE()) -> TRUE | O73: TRUE | Q73: Kockázati | R73: 1 | T73: Inkasszó | U73: 1 | W73: VIG | X73: =VIG!$GZ$59 -> 11 | AA73: 1101 | AC73: 1101 | AE73: 4116 | AF73: Berekböszörmény
A74: I Fedezet. | B74: =IF($B$80,A74,"") -> I Fedezet. | E74: Felelősség | G74: 2 | I74: FALSE | J74: FALSE | K74: FALSE | L74: TRUE | O74: FALSE | Q74: 0 | T74: 0 | W74: 0 | AA74: 1102 | AC74: 1102 | AE74: 4117 | AF74: Told
A75: II Fedezet. | B75: =IF($B$80,A75,"") -> II Fedezet. | E75: Alap | F75: =IF($B$80,E75,"") -> Alap | I75: FALSE | J75: FALSE | K75: FALSE | L75: TRUE | O75: FALSE | Q75: 0.01 | T75: 0.05 | W75: 0.01 | AA75: 1103 | AC75: 1103 | AE75: 4118 | AF75: Mezőpeterd
A76: III Fedezet. | B76: =IF($B$80,A76,"") -> III Fedezet. | E76: Bővített | F76: =IF($B$80,E76,"") -> Bővített | I76: FALSE | J76: FALSE | K76: FALSE | L76: TRUE | O76: FALSE | Q76: 0.02 | W76: 0.02 | AA76: 1104 | AC76: 1104 | AE76: 4121 | AF76: Szentpéterszeg
I77: FALSE | J77: FALSE | K77: FALSE | L77: TRUE | Q77: 0.03 | T77: Képviselői | U77: 1 | W77: 0.03 | AA77: 1105 | AC77: 1105 | AE77: 4122 | AF77: Gáborján
B78: TRUE | D78: FALSE | F78: TRUE | I78: FALSE | J78: FALSE | K78: FALSE | L78: TRUE | Q78: 0.04 | T78: 0 | W78: 0.04 | AA78: 1106 | AC78: 1106 | AE78: 4123 | AF78: Hencida
B79: TRUE | D79: TRUE | I79: FALSE | J79: FALSE | K79: FALSE | L79: TRUE | Q79: 0.05 | T79: 0.05 | W79: 0.05 | AA79: 1107 | AC79: 1107 | AE79: 4124 | AF79: Esztár
B80: TRUE | I80: FALSE | J80: FALSE | K80: FALSE | L80: TRUE | Q80: 0.06 | T80: 0.1 | W80: 0.06 | AA80: 1108 | AC80: 1108 | AE80: 4125 | AF80: Pocsaj
B81: TRUE | D81: TRUE | I81: =COUNTIF(J73:J80,TRUE) -> 0 | Q81: 0.07 | T81: 0.15 | W81: 0.07 | AA81: 1111 | AC81: 1111 | AE81: 4130 | AF81: Derecske
B82: FALSE | D82: FALSE | Q82: 0.08 | T82: 0.2 | W82: 0.08 | AA82: 1112 | AC82: 1112 | AE82: 4132 | AF82: Tépe
B83: FALSE | D83: TRUE | Q83: 0.09 | W83: 0.09 | AA83: 1113 | AC83: 1113 | AE83: 4133 | AF83: Konyár
Q84: 0.1 | W84: 0.1 | AA84: 1114 | AC84: 1114 | AE84: 4134 | AF84: Mezősas
Q85: 0.11 | W85: 0.11 | AA85: 1115 | AC85: 1115 | AE85: 4135 | AF85: Körösszegapáti
Q86: 0.12 | W86: 0.12 | AA86: 1116 | AC86: 1116 | AE86: 4136 | AF86: Körösszakál
A87: =IF(OR(Haz!C4=0,Haz!C4="?",Haz!E4=0,Haz!E4="?",Haz!J4=0,Haz!J4="?",Haz!C6=0,Haz!C6="?"),1,0) -> 0 | W87: 0.13 | AA87: 1117 | AC87: 1117 | AE87: 4137 | AF87: Magyarhomorog
A88: 1 | B88: A kockázatviselési hely pontos megadása nélkül nem számol a program! | W88: 0.14 | AA88: 1118 | AC88: 1118 | AE88: 4138 | AF88: Komádi
W89: 0.15 | AA89: 1119 | AC89: 1119 | AE89: 4141 | AF89: Furta
D90: 1 | E90: külön tul. tűztávon belüli mellékép. | J90: 1 | K90: Külön tul. tűztávon belüli mellékép. | R90: =Haz!O30 -> 688800000 | S90: =Haz!N47-Haz!N34 -> 0.83 | T90: =R90*S90 -> 571704000 | W90: 0.16 | AA90: 1121 | AC90: 1121 | AE90: 4142 | AF90: Zsáka
E91: külön tul. tűztávon kívüli mellékép. | J91: 2 | K91: Külön tul. tűztávon kívüli mellékép. | S91: =IF(AND(B81,C73>=1,G74=1),I20,IF(AND(B81,C73>=1,G74=2),(I20+K20),0)) -> 0.15 | T91: =R90*S91 -> 103320000 | W91: 0.17 | AA91: 1122 | AC91: 1122 | AE91: 4144 | AF91: Darvas
B92: =IF(Tomb!G55<5,0,IF(AND(Tomb!G55=5,OR($B$17=0,$K$15=0,$K$15>$K$12,Tomb!$K$59=1,Tomb!$O$54=4,Tomb!$S$55=5)),0,IF(AND(Tomb!G55=5,B19>=K19),B19*H19,K19*H19))) -> 0 | E92: külön tulajdonú (terem)garázsok | J92: 3 | K92: Külön tulajdonú (terem)garázsok | R92: =SUM(Haz!U52:'Haz'!U53) -> 0 | T92: =SUM(T90:T91)*R92*-1 -> 0 | W92: 0.18 | AA92: 1123 | AC92: 1123 | AE92: 4145 | AF92: Csökmő
E93: külön tulajdonú tárolók | J93: 4 | K93: Külön tulajdonú tárolók | R93: =VIG!M59 -> 0.05 | T93: =SUM(T90:T91)*R93*-1 -> -33751200 | W93: 0.19 | AA93: 1124 | AC93: 1124 | AE93: 4150 | AF93: Püspökladány
W94: 0.2 | AA94: 1125 | AC94: 1125 | AE94: 4161 | AF94: Báránd
D95: 1 | E95: közös tul. tűztávon belüli mellékép. | J95: 1 | K95: Közös tul. tűztávon belüli mellékép. | R95: =IF(AND(R90>0,SUM(T90:T93)>0),SUM(T90:T93)/R90,0) -> 0.931 | T95: =IF(AND(R90>0,SUM(T90:T92)>0),SUM(T90:T92)/R90,0) -> 0.98 | AA95: 1126 | AC95: 1126 | AE95: 4162 | AF95: Szerep (Hosszúhát)
E96: közös tul. tűztávon kívüli mellékép. | J96: 2 | K96: Közös tul. tűztávon kívüli mellékép. | AA96: 1131 | AC96: 1131 | AE96: 4163 | AF96: Szerep
E97: közös tulajdonú (terem)garázsok | J97: 3 | K97: Közös tulajdonú (terem)garázsok | AA97: 1132 | AC97: 1132 | AE97: 4164 | AF97: Bakonszeg
E98: közös tulajdonú tárolók | J98: 4 | K98: Közös tulajdonú tárolók | AA98: 1133 | AC98: 1133 | AE98: 4171 | AF98: Sárrétudvari
AA99: 1134 | AC99: 1134 | AE99: 4172 | AF99: Biharnagybajom
E100: =IF(Haz!I20=100%,"ALAPTERÜLETÉT",IF(Haz!I20<100%,"TULAJDONOK ALAPTERÜLETÉT","")) -> ALAPTERÜLETÉT | J100: =IF(Haz!K18>=Haz!B18,Haz!K18,Haz!B18) -> 225000 | K100: =IF(J100>0,"Ft/m2","") -> Ft/m2 | L100: ÚJRAELŐÁLLÍTÁSI ÉRTÉKEN ALAPULVÉVE) | AA100: 1135 | AC100: 1135 | AE100: 4173 | AF100: Nagyrábé
B101: =CONCATENATE(E100&" "&FIXED(J100,0)&" "&K100&" "&L100) -> ALAPTERÜLETÉT 225 000 Ft/m2 ÚJRAELŐÁLLÍTÁSI ÉRTÉKEN ALAPULVÉVE) | O101: =IF(AND(Tomb!D78,E102=""),"Gépjármű biztosítása",IF(AND(Tomb!D78,E102>""),"kiegészítő gépjármű-biztosítás","")) ->  | AA101: 1136 | AC101: 1136 | AE101: 4174 | AF101: Bihartorda
E102: ="idegen tárgyak rádölése, üvegtörés átalánybiztosítása, "&IF(AND(Haz!O30>0,OR(SUM(Haz!O21:R29)>0,Tomb!D79)),"közös tulajdonú ingóságok kiegészítő biztosítása,","") -> idegen tárgyak rádölése, üvegtörés átalánybiztosítása, közös tulajdonú ingóságok kiegészítő biztosítása, | J102: =IF(AND(Tomb!D79,Haz!U36>0),"felvonók kiegészítő géptörés átalánybiztosítása, ","") -> felvonók kiegészítő géptörés átalánybiztosítása, | R102: =IF(OR(J102>"",O101>""),".","") -> . | AA102: 1137 | AC102: 1137 | AE102: 4175 | AF102: Bihardancsháza
B103: =CONCATENATE(J102&O101&R102) -> felvonók kiegészítő géptörés átalánybiztosítása, . | AA103: 1138 | AC103: 1138 | AE103: 4176 | AF103: Sáp
E104: =IF(AND(Haz!X44>0,Haz!M61>0,OR(C73=1,C73=2,C73=3)),"Ingatlanhasználói és -Üzemeltetői felelősségbiztosítás kártérítési limite alapfedezet esetén ","") -> Ingatlanhasználói és -Üzemeltetői felelősségbiztosítás kártérítési limite alapfedezet esetén | J104: =IF(AND(Tomb!$B$80,Tomb!B81,Haz!$M$64>0,Haz!M61>0,OR(Tomb!G74=1,Tomb!G74=2)),INDEX(Tomb!I25:J27,VLOOKUP(IF(Tomb!K55=1,Tomb!C73,1),Tomb!H25:J27,1,0),HLOOKUP(1,Tomb!I24:J27,1,0))&" mFt/kár/év","") -> 15 mFt/kár/év | N104: =IF(AND(Haz!X44>0,Haz!M61>0,OR(C73=1,C73=2,C73=3),G74=2)," ezen belül a bővített fedezetben meghatározott károk sublimite ","") -> ezen belül a bővített fedezetben meghatározott károk sublimite | R104: =IF(AND(Tomb!$B$80,Tomb!B81,Haz!$M$64>0,Haz!M61>0,Tomb!G74=2),INDEX(Tomb!I25:J27,VLOOKUP(IF(Tomb!K55=1,Tomb!C73,1),Tomb!H25:J27,1,0),HLOOKUP(Tomb!G74,Tomb!I24:J27,1,0))&" mFt/kár","") -> 7,5 mFt/kár | T104: =IF(AND(E104>"",U104>""),",",IF(AND(E104>"",U104>""),".","")) ->  | U104: =IF(B83," a társasház-kezelői felelősségbiztosítás szublimite ","") ->  | Y104: =IF(B83,"5 mFt/kár/év","") ->  | Z104: =IF(OR(E104>"",J104>"",N104>"",R104>"",W103>""),".","") -> . | AA104: 1139 | AC104: 1139 | AE104: 4177 | AF104: Földes
B105: =CONCATENATE(E104&J104&N104&R104&T104&U104&Y104&Z104) -> Ingatlanhasználói és -Üzemeltetői felelősségbiztosítás kártérítési limite alapfedezet esetén 15 mFt/kár/év ezen belül a bővített fedezetben meghatározott károk sublimite 7,5 mFt/kár. | AA105: 1141 | AC105: 1141 | AE105: 4181 | AF105: Nádudvar
C106: =IF(AND(B80,B81,B82,NOT(B83)),1,IF(AND(B80,B81,NOT(B82),B83),2,IF(AND(B80,B81,B82,B83),3,0))) -> 0 | E106: =IF(AND(Haz!X44>0,Haz!M62>0),"Munkáltatói felelősségbiztosítás kártérítési sublimite 5 mFt/kár/év.","") ->  | K106: =IF(AND(Haz!X44>0,Haz!M63>0),"Társasház-kezelői felelősségbiztosítás kártérítési sublimite 5 mFt/kár/év.","") ->  | O106: =IF(AND(Haz!X44>0,Haz!M63>0),"Társasház-kezelői felelősségbiztosítás kártérítési sublimite 5 mFt/kár/év.","") ->  | Q106: =IF(AND(AND(Haz!X44>0,Haz!M62>0),AND(Haz!X44>0,Haz!M63>0)),"Továbbá mind a Munkáltatói, mind a Társasház-kezelői felelősségbiztosítás kártérítési sublimite 5 mFt/kár/év.","") ->  | AA106: 1142 | AC106: 1142 | AE106: 4183 | AF106: Kaba
B107: =IF(Haz!Q38,"A SIGNAL Assistance vészelhárítási szolgáltatás limite 25.000.- Ft","") -> A SIGNAL Assistance vészelhárítási szolgáltatás limite 25.000.- Ft | N107: =IF(Haz!X42>0,FIXED(Haz!O20*0.0002,0)&" Ft/év","") -> 133 740 Ft/év | P107: =IF(AND(Haz!X42>0,Haz!X43>0),", ezen felül többlet biztosításként a részletezőben meghatározott kiegészítő üvegbiztosítás alapján ","") ->  | AA107: 1143 | AC107: 1143 | AE107: 4184 | AF107: Tetétlen
E108: =IF(Haz!X42>0,"Az üvegbiztosítás kártérítési határa, üveg átalánybiztosítás alapján","") -> Az üvegbiztosítás kártérítési határa, üveg átalánybiztosítás alapján | N108: =CONCATENATE(E108&IF((Haz!O20*0.0002)>50000,CONCATENATE(" "&N107&O107)," a feltételeinkben leírtak szerint")&P107&T108&V108) -> Az üvegbiztosítás kártérítési határa, üveg átalánybiztosítás alapján 133 740 Ft/év. | T108: =IF(AND(Haz!X42>0,Haz!X43>0),FIXED(Haz!I57,0)&" Ft/év","") ->  | V108: =IF(OR(E108>"",N107>"",P107>"",T108>""),".","") -> . | AA108: 1144 | AC108: 1144 | AE108: 4212 | AF108: Hajdúszovát
B109: =CONCATENATE(E108&IF((Haz!O20*0.0002)=0,""," a feltételeinkben leírtak szerint")&P107&T108&V108) -> Az üvegbiztosítás kártérítési határa, üveg átalánybiztosítás alapján a feltételeinkben leírtak szerint. | O109: =IF(AND(B80,B82,Haz!M62>0,Haz!M61=0),"Munkáltatói felelősségbiztosítás",IF(AND(B80,B82,Haz!M62>0,Haz!M61>0),", kiegészítő munkáltatói felelősségbiztosítás","")) ->  | V109: =IF(AND(B80,B83,Haz!M63>0,Haz!M61=0),"Közösképviselői felelősségbiztosítás",IF(AND(B80,B83,Haz!M63>0,Haz!M61>0),", kiegészítő közösképviselői felelősségbiztosítás","")) ->  | AA109: 1145 | AC109: 1145 | AE109: 4440 | AF109: Tiszavasvári
E110: =IF(AND(B80,B81,Haz!M61>0),"Ingatlanhasználói és -üzemeltetői felelősségbiztosítás illetve a lakók egymásnak okozott káraira","") -> Ingatlanhasználói és -üzemeltetői felelősségbiztosítás illetve a lakók egymásnak okozott káraira | R110: =IF(OR(E110>"",O109>""),".","") -> . | T110: =IF(AND(B80,B81,Haz!M61>0,G73=2)," (Feltételeinktől eltérően önrész nélkül)","") -> (Feltételeinktől eltérően önrész nélkül) | AA110: 1146 | AC110: 1146 | AE110: 4450 | AF110: Tiszalök
B111: =CONCATENATE(E110&O109&V109&R110&T110) -> Ingatlanhasználói és -üzemeltetői felelősségbiztosítás illetve a lakók egymásnak okozott káraira. (Feltételeinktől eltérően önrész nélkül) | N111: =IF(Haz!O30>1000000000," a viszontbiztosítás megszerzése,"," ") ->  | AA111: 1147 | AC111: 1147 | AE111: 4455 | AF111: Tiszadada
AA112: 1148 | AC112: 1148 | AE112: 4456 | AF112: Tiszadob
B113: ="Jelen előzetes díjajánlatunk tájékoztató jellegű. A végleges díjajánlat elkészítéséhez"&N111&" helyszíni szemle, kockázat-elbírálás, valamint kárelőzmény megadása szükséges, amelyek módosíthatnak az előzetes díjajánlaton." -> Jelen előzetes díjajánlatunk tájékoztató jellegű. A végleges díjajánlat elkészítéséhez helyszíni szemle, kockázat-elbírálás, valamint kárelőzmény megadása szükséges, amelyek módosíthatnak az előzetes díjajánlaton. | M113: ( | N113: =Haz!C4&" "&Haz!E4&" "&Haz!J4&" " -> 1075 Budapest Rumbach Sebestyén u. 12. | AA113: 1149 | AC113: 1149 | AE113: 4463 | AF113: Tiszanagyfalu
E114: =IF(Haz!C6>"",Haz!C6,"") -> kk | H114: =IF(AND(Haz!O7=1,OR(Haz!C7>"",Haz!E7>"",Haz!J7>""))," (","") ->  | I114: =IF(AND(Haz!O7=1,Haz!C7>0),Haz!C7,"") ->  | J114: =IF(AND(Haz!O7=1,Haz!E7>0),Haz!E7,"") ->  | K114: =IF(AND(Haz!O7=1,Haz!J7>0),Haz!J7,"") ->  | L114: =IF(AND(Haz!O7=1,OR(Haz!C7>"",Haz!E7>"",Haz!J7>"")),")","") ->  | Q114: ) | AA114: 1151 | AC114: 1151 | AE114: 4465 | AF114: Rakamaz
B115: =IF(AND(Haz!C6>0,Haz!O7=0,OR(Haz!C4>0,Haz!E4>0,Haz!J4>0)),"Közösképviselője: "&CONCATENATE(E114,+" ",M113,N113,Q114),IF(AND(Haz!C6>0,Haz!O7=1,OR(Haz!C7>0,Haz!E7>0,Haz!J7>0)),"Közösképviselője: "&CONCATENATE(E114,H114,I114,+" ",J114,+" ",K114,L114,),0)) -> Közösképviselője: kk (1075 Budapest Rumbach Sebestyén u. 12. ) | M115: =IF(AND(Tomb!$B$80,Tomb!B82,Haz!$M$64>0,Haz!M62>0),"+ Munkáltatói","") ->  | O115: =IF(AND(Tomb!$B$80,Tomb!B82,Haz!$M$64>0,Haz!M62>0),"5 mFt/kár/év","") ->  | S115: =IF(AND($B$80,B83,Haz!$M$64>0,Haz!M63>0),"+ Közösképviselői","") ->  | AA115: 1152 | AC115: 1152 | AE115: 4466 | AF115: Timár
E116: =IF(AND(Tomb!$B$80,Tomb!B81,Haz!$M$64>0,Haz!M61>0,OR(Tomb!G74=1,Tomb!G74=2)),Tomb!F75,"") -> Alap | G116: =IF(AND(Tomb!$B$80,Tomb!B81,Haz!$M$64>0,Haz!M61>0,OR(Tomb!G74=1,Tomb!G74=2)),INDEX(Tomb!I25:J27,VLOOKUP(IF(Tomb!K55=1,Tomb!C73,1),Tomb!H25:J27,1,0),HLOOKUP(1,Tomb!I24:J27,1,0))&" mFt/kár/év","") -> 15 mFt/kár/év | I116: =IF(AND(Tomb!$B$80,Tomb!B81,Haz!$M$64>0,Haz!M61>0,Tomb!G74=2),"+ "&Tomb!F76,"") -> + Bővített | K116: =IF(AND(Tomb!$B$80,Tomb!B81,Haz!$M$64>0,Haz!M61>0,Tomb!G74=2),INDEX(Tomb!I25:J27,VLOOKUP(IF(Tomb!K55=1,Tomb!C73,1),Tomb!H25:J27,1,0),HLOOKUP(Tomb!G74,Tomb!I24:J27,1,0))&" mFt/kár","") -> 7,5 mFt/kár | N116: =CONCATENATE(E116,+" ",G116,+" ",I116,+" ",K116) -> Alap 15 mFt/kár/év + Bővített 7,5 mFt/kár | R116: =IF(AND(Tomb!$B$80,Tomb!B82,Haz!$M$64>0,Haz!M62>0),Haz!J62&" főre.","") ->  | AA116: 1153 | AC116: 1153 | AE116: 4467 | AF116: Szabolcs
B117: =CONCATENATE(E116,+" ",G116,+" ",I116,+" ",K116,+" ",M115,+" ",S115,+" ",O115) -> Alap 15 mFt/kár/év + Bővített 7,5 mFt/kár | M117: =IF(K118>0,"‰","") -> ‰ | P117: =VIG!T65/Haz!O30*1000 -> 0.8307084785 | U117: =CONCATENATE(O115,+" ",R116) ->  | AA117: 1154 | AC117: 1154 | AE117: 4468 | AF117: Balsa
E118: =VIG!T61/Haz!O30*1000 -> 0.8307084785 | G118: =IF(E118>0,"‰","") -> ‰ | I118: =IF(E118>0,"/","") -> / | K118: =Haz!U63 -> 0.8427996876 | R118: =IF(P117>0,"‰","") -> ‰ | T118: =IF(P117>0,"/","") -> / | V118: =R95 -> 0.931 | X118: =IF(V118>0,"‰","") -> ‰ | AA118: 1155 | AC118: 1155 | AE118: 4471 | AF118: Gávavencsellő (Gáva)
B119: =CONCATENATE(FIXED(K118,3),+" ",G118,+" ",I118,+" ",FIXED(T95,3),+" ",M117) -> 0,843 ‰ / 0,980 ‰ | G119: =CONCATENATE(FIXED(K118,3),+" ",M117) -> 0,843 ‰ | N119: =IF(AND(Tomb!D79,Haz!U36>0,Haz!X36>0),FIXED(VLOOKUP(W65,G34:J37,2,0),0)&" eFt/kár "&FIXED(VLOOKUP(W65,Tomb!G34:J37,3,0),0)&" eFt/év /felvonó","") -> 150 eFt/kár 500 eFt/év /felvonó | R119: =CONCATENATE(FIXED(P117,3),+" ",R118,+" ",T118,+" ",FIXED(V118,3),+" ",X118) -> 0,831 ‰ / 0,931 ‰ | W119: =CONCATENATE(FIXED(V118,3),+" ",X118) -> 0,931 ‰ | AA119: 1156 | AC119: 1156 | AE119: 4474 | AF119: Tiszabercel
E120: =IF(AND(Tomb!D79,Haz!U36>0),"Felvonók géptörés biztosításának kártérítési limite","") -> Felvonók géptörés biztosításának kártérítési limite | R120: =IF(AND(Tomb!D79,Haz!U36>0),".","") -> . | AA120: 1157 | AC120: 1157 | AE120: 4475 | AF120: Paszab
B121: =CONCATENATE(E120," ",N119,R120) -> Felvonók géptörés biztosításának kártérítési limite 150 eFt/kár 500 eFt/év /felvonó. | N121: =IF(AND(Tomb!D78,Haz!U33>0,Haz!X33>0),FIXED(I31,0)&" Ft/jármű/év","") ->  | AA121: 1158 | AC121: 1158 | AE121: 4482 | AF121: Kótaj
E122: =IF(AND(Tomb!D78,Haz!U33>0),"Gépjárművek biztosításának kártérítési limite","") ->  | R122: =IF(AND(Tomb!D78,Haz!U33>0),".","") ->  | AA122: 1161 | AC122: 1161 | AE122: 4483 | AF122: Buj
B123: =CONCATENATE(E122," ",N121,R122) ->  | AA123: 1162 | AC123: 1162 | AE123: 4484 | AF123: Ibrány
AA124: 1163 | AC124: 1163 | AE124: 4487 | AF124: Tiszatelek
AA125: 1164 | AC125: 1164 | AE125: 4488 | AF125: Beszterec
AA126: 1165 | AC126: 1165 | AE126: 4491 | AF126: Újdombrád
AA127: 1171 | AC127: 1171 | AE127: 4492 | AF127: Dombrád
AA128: 1172 | AC128: 1172 | AE128: 4493 | AF128: Tiszakanyár
AA129: 1173 | AC129: 1173 | AE129: 4494 | AF129: Kékcse
AA130: 1174 | AC130: 1174 | AE130: 4495 | AF130: Döge
AA131: 1181 | AC131: 1181 | AE131: 4496 | AF131: Szabolcsveresmart
AA132: 1182 | AC132: 1182 | AE132: 4501 | AF132: Kemecse
AA133: 1183 | AC133: 1183 | AE133: 4502 | AF133: Vasmegyer
AA134: 1184 | AC134: 1184 | AE134: 4503 | AF134: Tiszarád
AA135: 1185 | AC135: 1185 | AE135: 4511 | AF135: Nyírbogdány
AA136: 1186 | AC136: 1186 | AE136: 4515 | AF136: Kék
AA137: 1188 | AC137: 1188 | AE137: 4516 | AF137: Demecser
AA138: 1191 | AC138: 1191 | AE138: 4517 | AF138: Gégény
AA139: 1192 | AC139: 1192 | AE139: 4521 | AF139: Berkesz
AA140: 1192 | AC140: 1192 | AE140: 4522 | AF140: Nyírtass
AA141: 1193 | AC141: 1193 | AE141: 4523 | AF141: Pátroha
AA142: 1194 | AC142: 1194 | AE142: 4524 | AF142: Ajak
AA143: 1195 | AC143: 1195 | AE143: 4525 | AF143: Rétközberencs
AA144: 1196 | AC144: 1196 | AE144: 4544 | AF144: Nyírkarász
AA145: 1201 | AC145: 1201 | AE145: 4545 | AF145: Gyulaháza
AA146: 1202 | AC146: 1202 | AE146: 4546 | AF146: Anarcs
AA147: 1203 | AC147: 1203 | AE147: 4547 | AF147: Szabolcsbáka
AA148: 1204 | AC148: 1204 | AE148: 4562 | AF148: Vaja
AA149: 1205 | AC149: 1205 | AE149: 4564 | AF149: Nyírmada
AA150: 1211 | AC150: 1211 | AE150: 4600 | AF150: Kisvárda
AA151: 1212 | AC151: 1212 | AE151: 4621 | AF151: Fényeslitke
AA152: 1213 | AC152: 1213 | AE152: 4622 | AF152: Komoró
AA153: 1214 | AC153: 1214 | AE153: 4623 | AF153: Tuzsér
AA154: 1215 | AC154: 1215 | AE154: 4624 | AF154: Tiszabezdéd
AA155: 1221 | AC155: 1221 | AE155: 4625 | AF155: Záhony
AA156: 1222 | AC156: 1222 | AE156: 4627 | AF156: Zsurk
AA157: 1223 | AC157: 1223 | AE157: 4628 | AF157: Tiszaszentmárton
AA158: 1224 | AC158: 1224 | AE158: 4634 | AF158: Aranyosapáti
AA159: 1225 | AC159: 1225 | AE159: 4635 | AF159: Újkenéz
AA160: 1237 | AC160: 1237 | AE160: 4641 | AF160: Mezőladány
AA161: 1238 | AC161: 1238 | AE161: 4643 | AF161: Benk
AA162: 1239 | AC162: 1239 | AE162: 4645 | AF162: Tiszamogyorós
AA163: 1529 | AC163: 1529 | AE163: 4646 | AF163: Eperjeske
AA164: 2000 | AB164: Szentendre | AC164: 2000 | AD164: Szentendre | AE164: 4721 | AF164: Szamoskér
AA165: 2011 | AB165: Budakalász | AC165: 2011 | AD165: Budakalász | AE165: 4731 | AF165: Tunyogmatolcs
AA166: 2013 | AB166: Pomáz | AC166: 2013 | AD166: Pomáz | AE166: 4732 | AF166: Cégénydányád
AA167: 2016 | AB167: Leányfalu | AC167: 2016 | AD167: Leányfalu | AE167: 4733 | AF167: Gyügye
AA168: 2030 | AB168: Érd | AC168: 2030 | AD168: Érd | AE168: 4734 | AF168: Szamosújlak
AA169: 2035 | AC169: 2035 | AE169: 4737 | AF169: Darnó
AA170: 2036 | AC170: 2036 | AE170: 4741 | AF170: Jánkmajtis
AA171: 2040 | AB171: Budaörs | AC171: 2040 | AD171: Budaörs | AE171: 4751 | AF171: Kocsord
AA172: 2083 | AB172: Solymár | AC172: 2083 | AD172: Solymár | AE172: 4752 | AF172: Győrtelek
AA173: 2085 | AB173: Pilisvörösvár | AC173: 2085 | AD173: Pilisvörösvár | AE173: 4754 | AF173: Fülpösdaróc
AA174: 2094 | AB174: Nagykovácsi | AC174: 2094 | AD174: Nagykovácsi | AE174: 4803 | AF174: Vásárosnamény (Gergelyiugornya)
AA175: 2220 | AB175: Vecsés | AC175: 2220 | AD175: Vecsés | AE175: 4804 | AF175: Vásárosnamény (Vitka)
AA176: 2225 | AB176: Üllő | AC176: 2225 | AD176: Üllő | AE176: 4811 | AF176: Kisvarsány
AA177: 2360 | AB177: Gyál | AC177: 2360 | AD177: Gyál | AE177: 4812 | AF177: Nagyvarsány
AA178: 3500 | AB178: Miskolc | AC178: 3500 | AD178: Miskolc | AE178: 4813 | AF178: Gyüre
AA179: 3501 | AC179: 3501 | AE179: 4824 | AF179: Szamosszeg
AA180: 3508 | AC180: 3508 | AE180: 4826 | AF180: Olcsva
AA181: 3510 | AC181: 3510 | AE181: 4831 | AF181: Tiszaszalka
AA182: 3515 | AC182: 3515 | AE182: 4832 | AF182: Tiszavid
AA183: 3516 | AC183: 3516 | AE183: 4833 | AF183: Tiszaadony
AA184: 3517 | AC184: 3517 | AE184: 4834 | AF184: Tiszakerecseny
AA185: 3518 | AC185: 3518 | AE185: 4835 | AF185: Mátyus
AA186: 3519 | AC186: 3519 | AE186: 4836 | AF186: Lónya
AA187: 3521 | AC187: 3521 | AE187: 4841 | AF187: Jánd
AA188: 3524 | AC188: 3524 | AE188: 4842 | AF188: Gulács
AA189: 3525 | AC189: 3525 | AE189: 4843 | AF189: Hetefejércse
AA190: 3526 | AC190: 3526 | AE190: 4844 | AF190: Csaroda
AA191: 3527 | AC191: 3527 | AE191: 4845 | AF191: Tákos
AA192: 3528 | AC192: 3528 | AE192: 4900 | AF192: Fehérgyarmat
AA193: 3529 | AC193: 3529 | AE193: 4911 | AF193: Nábrád
AA194: 3530 | AC194: 3530 | AE194: 4912 | AF194: Kérsemjén
AA195: 3531 | AC195: 3531 | AE195: 4913 | AF195: Panyola
AA196: 3532 | AC196: 3532 | AE196: 4914 | AF196: Olcsvaapáti
AA197: 3533 | AC197: 3533 | AE197: 4921 | AF197: Kisar
AA198: 3534 | AC198: 3534 | AE198: 4922 | AF198: Nagyar
AA199: 3535 | AC199: 3535 | AE199: 4931 | AF199: Tarpa
AA200: 4000 | AB200: Debrecen | AC200: 4000 | AD200: Debrecen | AE200: 4932 | AF200: Márokpapi
... 109 more rows

Sheet Haz
A2: =Tomb!$Q$1 -> 0 | B2: Mi-Házunk 2013 | G2: Tömbházbiztosítás | O2: Kötvényszáma; | P2: 502 | U2: =NOW() -> 2014-09-28T14:55:02.800 | Z2: G 5.2 | AA2: TRUE
B4: Szerz. / Bizt. | C4: 1075 | E4: Budapest | J4: Rumbach Sebestyén u. 12.
C5: =IF(AND(C4>0,E4>"",J4>""),C4&" "&E4&" "&J4&IF(Tomb!C55=1," (Társasház)",IF(Tomb!C55=2," (Lakásszövetkezet)","")),"") -> 1075 Budapest Rumbach Sebestyén u. 12. (Társasház) | Q5: Közvetítő; | S5: =IF(Tomb!R42=0,"",IF(Tomb!R42>0,VLOOKUP(Tomb!R42,Ker!A2:K150,5,0))) -> 0
C6: kk | O6: 0 | Q6: 0 | R6: 50200390-8 | U6: Kezdete; | W6: 2014-12-01
Q7: 0 | U7: Lejárata;
A9: ÁLTALÁNOS ADATOK : | I9: ÉPÜLET ADATAI : | O9: SZERKEZET ADATAI :
A11: TULAJDONFORMA: | I11: AZ ÉPÜLET KORA: | L11: 71 | M11: év | O11: Falazata: | S11: =IF(Tomb!O54=5,1,0) -> 0 | U11: Ép. típusa:
A12: RENDELTETÉS: | J12: Összes területe: | K12: 2972 | M12: m2 | O12: =IF(S11=1,"éspedig:","") ->  | P12: Vertfal | V12: Besorolása: | X12: =VLOOKUP(Tomb!A2,Tomb!A3:H7,4,0)&" / "&HLOOKUP(Tomb!D1,Tomb!E1:H7,2,0) -> A / II
A13: AZ ÉPÜLET JELLEMZŐI: | I13: Szintek száma: | L13: 8 | M13: szint | O13: Födém: | U13: Ép. kategóriája:
A14: Műemlék (jellegű) épület: | I14: Albetétek száma: | L14: 37 | M14: db | O14: Tűzveszélyes tev.: | S14: =IF(Tomb!W55=1,1,0) -> 0 | U14: Minimális m2 ára: | X14: =INDEX(Tomb!E3:H7,Tomb!A2,Tomb!D1,1) -> 190000 | Z14: =IF(X14>0,"Ft/m2",0) -> Ft/m2
A15: ÁFA-körbe tartozik: | J15: Albetétek területe: | K15: 2972 | M15: m2 | O15: =IF(S14=1,"éspedig:","") ->  | P15: Vegytisztítás | U15: Albetétek átlag ter.: | X15: =IF(ISERROR(K15/L14),"Hiányzó érték",K15/L14) -> 80.32432432 | Z15: =IF(ISERROR(K15/L14),"",IF(X15>0,"m2","")) -> m2
B17: =N(Tomb!B78) -> 1 | C17: Épületbiztosítás biztosítási összeg számítása | M17: =IF(AND(B17=1,K15>0),"Igen kéri!","") -> Igen kéri! | R17: =IF(K12<K15,"Rossz terület számok megadása!",IF(OR(AND(Tomb!G55<5,(K15<>(H18+I19))),AND(Tomb!G55=5,K12<(I19+I21))),"Albetétek területe nem egyezik!",IF(AND(Tomb!G55=5,K12<(H18+I19+I21)),"Hibásan megadott összes terület!",""))) ->  | T17: AZ ÉPÜLET ÁLLAGA: | Y17: Igen | Z17: Nem
A18: =IF(OR(Tomb!G55=5,Tomb!D90=2,Tomb!D95=2),5,0) -> 0 | B18: =IF(AND($B$17=1,Tomb!AB1=1),INDEX(Tomb!D2:H7,MATCH(VLOOKUP(Tomb!A2,Tomb!A3:H7,4,0),Tomb!D2:D7,0),MATCH(HLOOKUP(Tomb!D1,Tomb!E1:H7,2,0),Tomb!D2:H2,0)),IF(AND($B$17=1,Tomb!AB1=0),INDEX(Tomb!D2:H7,MATCH(VLOOKUP(Tomb!A2,Tomb!A3:H7,4,0),Tomb!D2:D7,0),MATCH(HLOOKUP(Tomb!D1,Tomb!E1:H7,2,0),Tomb!D2:H2,0))*0.9,0)) -> 190000 | C18: Lakás/iroda/üzlet össz. | G18: =IF(AND(Tomb!G55<5,B17=1),X12,"") -> A / II | H18: =IF(Tomb!G55=5,0,IF(AND(Tomb!G55<5,B17=1,K15>0),K15-I19,"")) -> 2972 | J18: =IF(H18="","",IF(H18>0,"m2","")) -> m2 | K18: 225000 | M18: =IF(AND($B$17=1,$K$15>0,K18>0),"Ft/m2","") -> Ft/m2 | O18: =IF(A18=5,0,IF(AND(Tomb!G55<5,OR($B$17=0,$K$15=0,$K$15>$K$12,Tomb!$K$59=1,Tomb!$O$54=4,Tomb!$S$55=5)),0,IF(AND(Tomb!G55<5,B18>=K18),B18*H18,K18*H18))) -> 668700000 | S18: =IF(Tomb!K65=Tomb!M64,"?","") ->  | T18: Beázások, csőtörések nyomai:
B19: =IF(AND($B$17=1,Tomb!AB1=1,F19>"",H19>""),INDEX(Tomb!D2:H7,MATCH(F19,Tomb!D2:D7,0),MATCH(H19,Tomb!D2:H2,0)),IF(AND($B$17=1,Tomb!AB1=0,F19>"",H19>""),INDEX(Tomb!D2:H7,MATCH(F19,Tomb!D2:D7,0),MATCH(H19,Tomb!D2:H2,0))*0.9,0)) -> 100000 | F19: F | G19: =IF(AND(Tomb!G55=5,B17=1),X12,"/") -> / | H19: I | J19: =IF(H19="","",IF(H19>0,"m2","")) -> m2 | M19: =IF(AND($B$17=1,$K$15>0,K19>0),"Ft/m2","") ->  | O19: =IF(OR(A21=2,AND(Tomb!G55=5,K12<(I19+I21))),0,IF(OR($B$17=0,$K$15=0,$K$15>$K$12,F19="",H19="",Tomb!$K$59=1,Tomb!$O$54=4,Tomb!$S$55=5),0,IF(B19>=K19,B19*I19,K19*I19))) -> 0 | S19: =IF(Tomb!K66=Tomb!M65,"?","") ->  | T19: Cserepezés, bádogozás hiányos:
D20: Épületnek a közös tulajdoni része: | I20: 1 | K20: =SUM(O18:R19) -> 668700000 | O20: =IF(AND($B$17=1,I20<=1),K20*I20,0) -> 668700000 | S20: =IF(Tomb!K67=Tomb!M66,"?","") ->  | T20: 45°-os ferde repedések láthatók:
A21: =Tomb!D95 -> 1 | B21: =IF(AND($B$17=1,Tomb!AB1=1,F21>"",H21>""),INDEX(Tomb!D2:H7,MATCH(F21,Tomb!D2:D7,0),MATCH(H21,Tomb!D2:H2,0)),IF(AND($B$17=1,Tomb!AB1=0,F21>"",H21>""),INDEX(Tomb!D2:H7,MATCH(F21,Tomb!D2:D7,0),MATCH(H21,Tomb!D2:H2,0))*0.9,0))*0.6 -> 78600 | F21: F | G21: / | H21: II | J21: =IF(AND($B$17=0,OR(F21="",H21="")),"",IF(I21>0,"m2","")) ->  | M21: =IF(AND($B$17=1,$K$15>0,K21>0),"Ft/m2","") ->  | O21: =IF(OR($B$17=0,$K$15=0,$K$15>$K$12,F21="",H21="",Tomb!$K$59=1,Tomb!$O$54=4,Tomb!$S$55=5,K12<(H18+I19+I21)),0,IF(B21>=K21,B21*I21,K21*I21)) -> 0 | S21: =IF(Tomb!K68=Tomb!M67,"?","") ->  | T21: Dúcolás alátámasztás található:
C22: Központi berendezés: | F22: Kaputelefonrendszer | I22: 1 | J22: =IF(AND($B$17=0,OR(F22="",H22="")),"",IF(I22>0,"db","")) -> db | K22: 100000 | N22: =IF(AND($B$17=1,$K$15>0,F22>"",I22>0,K22>0),"Ft/db","") -> Ft/db | O22: =IF(AND($B$17=1,$K$15>0,$K$15<=$K$12,F22>"",I22>0,K22>0),I22*K22,0) -> 100000 | V22: 5 éven belül | W22: felújítva | Z22: Felújításra szorul
C23: Központi berendezés: | F23: Lift | I23: 2 | J23: =IF(AND($B$17=0,OR(F23="",H23="")),"",IF(I23>0,"db","")) -> db | K23: 10000000 | N23: =IF(AND($B$17=1,$K$15>0,F23>"",I23>0,K23>0),"Ft/db","") -> Ft/db | O23: =IF(AND($B$17=1,$K$15>0,$K$15<=$K$12,F23>"",I23>0,K23>0),I23*K23,0) -> 20000000 | S23: =IF(AND(Tomb!I73,Tomb!K73),"?","") ->  | T23: Vízcső hálózat:
C24: Kerítés fajtája: | J24: =IF(AND($B$17=0,OR(F24="",H24="")),"",IF(I24>0,"fm","")) ->  | N24: =IF(AND($B$17=1,$K$15>0,F24>"",I24>0,K24>0),"Ft/fm","") ->  | O24: 0 | S24: =IF(AND(Tomb!I74,Tomb!K74),"?","") ->  | T24: Fűtéscső hálózat:
C25: Kerítés fajtája: | J25: =IF(AND($B$17=0,OR(F25="",H25="")),"",IF(I25>0,"fm","")) ->  | N25: =IF(AND($B$17=1,$K$15>0,F25>"",I25>0,K25>0),"Ft/fm","") ->  | O25: 0 | S25: =IF(AND(Tomb!I75,Tomb!K75),"?","") ->  | T25: Csatorna:
C26: Egyéb: | J26: =IF(AND($B$17=0,OR(F26="",H26="")),"",IF(I26>0,"db","")) ->  | N26: =IF(AND($B$17=1,$K$15>0,F26>"",I26>0,K26>0),"Ft/db","") ->  | O26: 0 | S26: =IF(AND(Tomb!I76,Tomb!K76),"?","") ->  | T26: Gázcső hálózat:
C27: Egyéb: | J27: =IF(AND($B$17=0,OR(F27="",H27="")),"",IF(I27>0,"db","")) ->  | N27: =IF(AND($B$17=1,$K$15>0,F27>"",I27>0,K27>0),"Ft/db","") ->  | O27: 0 | S27: =IF(AND(Tomb!I77,Tomb!K77),"?","") ->  | T27: Homlokzatok:
C28: Közös tul. ingóságok: | J28: =IF(AND($B$17=0,OR(F28="",H28="")),"",IF(I28>0,"db","")) ->  | N28: =IF(AND($B$17=1,$K$15>0,F28>"",I28>0,K28>0),"Ft/db","") ->  | O28: 0 | S28: =IF(AND(Tomb!I78,Tomb!K78),"?","") ->  | T28: Tető szerkezet:
C29: Közös tul. ingóságok: | J29: =IF(AND($B$17=0,OR(F29="",H29="")),"",IF(I29>0,"db","")) ->  | N29: =IF(AND($B$17=1,$K$15>0,F29>"",I29>0,K29>0),"Ft/db","") ->  | O29: 0 | S29: =IF(AND(Tomb!I79,Tomb!K79),"?","") ->  | T29: Tetőszigetelés:
B30: ÖSSZESEN: | K30: =O30*Tomb!$P$10/1000*VLOOKUP(Tomb!P64,Tomb!J10:L12,2,0) -> 688800 | O30: =IF(AND(B17=1,C4>0,E4>0,J4>0,OR(O20>0,O21>0)),SUM(O20:R29),0) -> 688800000 | S30: =IF(AND(Tomb!I80,Tomb!K80),"?","") ->  | T30: Tetőhéjazat:
B32: =N(Tomb!B79) -> 1 | C32: ÉPÜLETBIZTOSÍTÁS DÍJTÉTELE | O32: Díjtétel ‰ | Q32: =N(Tomb!D78) -> 0 | R32: GÉPJÁRMŰVEK BIZTOSÍTÁSA
B33: Alapfedezet: | M33: + | N33: =IF(AND(O30>0,B32=1),VLOOKUP(L11,Tomb!J2:L7,3),0) -> 0.9 | O33: =IF(N33="","","‰") -> ‰ | R33: =IF(AND($O$30>0,$Q$32=1),Tomb!J31,"") ->  | T33: * | V33: =IF(U33="","","db") ->  | W33: = | X33: =IF(AND($O$30>0,$Q$32=1,U33>0),ROUND(R33*U33,0),0) -> 0
B34: Többszörözhető limit | G34: kétszerez | J34: háromszoroz | M34: + | N34: =IF(AND(O30>0,NOT(Tomb!O75)),VLOOKUP(Tomb!P64,Tomb!J10:L12,3,0),0) -> 0 | O34: =IF(N34="","","‰") -> ‰
B35: Be nem fejezett épület | M35: + | N35: =IF(AND(O30>0,Tomb!N14=2),Tomb!P14,0) -> 0 | O35: =IF(N35="","","‰") -> ‰ | Q35: =N(Tomb!D79) -> 1 | R35: FELVONÓK GÉPTÖRÉS BIZTOSÍTÁSA
B36: „C”, vagy annál magasabb tűzveszélyességű tevékenység | M36: + | N36: =IF(AND(O30>0,Tomb!N17=1),Tomb!P17,0) -> 0 | O36: =IF(N36="","","‰") -> ‰ | R36: =IF(AND($O$30>0,$B$59=1,$Q$32=1),Tomb!J34,"") ->  | T36: * | U36: 2 | V36: =IF(U36="","","db") -> db | W36: = | X36: =IF(AND($O$30>0,$Q$35=1,U36>0),ROUND((VLOOKUP(Tomb!W65,Tomb!G34:J37,4,0)*U36),0),0) -> 12000
B38: engedmények | C38: Felújítás 5 éven belül | M38: - | N38: =IF(AND(L11>=5,$O$30>0,Tomb!I81>0),VLOOKUP(Tomb!A21,Tomb!C20:E22,3),0) -> 0 | O38: =IF(N38="","","‰") -> ‰ | Q38: =N(Tomb!D83) -> 1 | R38: TÖMBHÁZ ASSISTANCE Biztosítás | X38: =IF(AND(O30>0,M48>0,L14>0,Q38),ROUND(L14*Tomb!J39,0),0) -> 65860
C39: Lakóépület, üzletház, iroda épület | M39: - | N39: =IF($O$30>0,VLOOKUP(Tomb!A24,Tomb!C23:E27,3,0),0) -> 0.05 | O39: ‰ | S39: =IF(OR(B56<4,C56=0),"",FIXED(K56*1000,0)&" ‰") -> 
C40: Van állandó/bentlakó személyzet | J40: =N(Tomb!O72) -> 0 | L40: =IF(J40=0,"nincs",IF(J40=1,"igen van","")) -> nincs | M40: - | N40: =IF(AND($O$30>0,J40=1),Tomb!E28,0) -> 0 | O40: ‰ | Q40: Díjfizetés;
C41: Nem paneles technológiával készült épület | J41: =N(Tomb!O73) -> 1 | L41: =IF(Tomb!O54=2,"nem lehet",IF(AND(Tomb!O54<>2,J41=0),"nem kéri",IF(AND(J41=1,Tomb!O54<>2),"igaz",""))) -> igaz | M41: - | N41: =IF(AND($O$30>0,J41=1,Tomb!O54<>2),Tomb!E29,0) -> 0.02 | O41: ‰ | Q41: =IF(Tomb!A87=0,"",IF(Tomb!A87>0,VLOOKUP(Tomb!A88,Tomb!A88:B94,2,0),"")) -> 
C42: Önrész: | D42: =N(Tomb!O66) -> 0 | E42: 25 eFt | F42: =N(Tomb!P66) -> 0 | G42: 50 eFt | H42: =N(Tomb!Q67) -> 0 | I42: 100 eFt | K42: =IF(OR((D42+F42+H42)<=1),"","No melyik legyen?") ->  | M42: - | N42: =IF(OR($O$30=0,Tomb!A31=0),0,IF($O$30>0,VLOOKUP(Tomb!A31,Tomb!D30:E33,2,0),0)) -> 0 | O42: ‰ | Q42: Lakó / üdülö épületbiztosítás | W42: + | X42: =M48 -> 571704
C43: Árvíz kizárása (SIGinfóban meghatározottak szerint) | J43: =N(Tomb!O74) -> 0 | L43: =IF(Tomb!AF1=0,"nem lehet",IF(AND(Tomb!AF1=1,J43=0),"nem kéri",IF(AND(Tomb!AF1=1,J43=1),"igen",""))) -> nem lehet | M43: - | N43: =IF(AND($O$30>0,J43=1,Tomb!AF1=1),Tomb!E34,0) -> 0 | O43: ‰ | Q43: Kiegészítő üvegbiztosítás | W43: + | X43: =M57 -> 0
C44: Beázás valamint rongálás károk kizárása. | J44: =N(Tomb!O75) -> 0 | L44: =IF(J44=0,"nem",IF(J44=1,"igen kéri","")) -> nem | M44: - | N44: =IF(AND($O$30>0,J44=1),Tomb!E35,0) -> 0 | O44: ‰ | Q44: Felelősségbiztosítás | W44: + | X44: =M64 -> 103320
C45: Betöréses lopás, rongálás, rablás károk kizárása. | J45: =N(Tomb!O76) -> 0 | L45: =IF(J45=0,"nem",IF(J45=1,"igen kéri","")) -> nem | M45: - | N45: =IF(AND($O$30>0,J45=1),Tomb!E36,0) -> 0 | O45: ‰ | Q45: Tömbház Assistance | W45: + | X45: =X38 -> 65860
B47: Épületbiztosítás díjtétele: | M47: = | N47: =IF(AND($B$32=1,(N33+(N34+N35+N36)-(N38+N39+N40+N41+N42+N43+N44))>0),(N33+(N34+N35+N36)-(N38+N39+N40+N41+N42+N43+N44+N45)),0) -> 0.83 | O47: =IF(N47="","","‰") -> ‰ | Q47: Gépjárművek biztosítása | W47: + | X47: =X33 -> 0
B48: Éves épületbizt. díj: | F48: =IF(AND($O$30>0,$B$32=1),ROUND(O30/1000,0),"") -> 688800 | I48: * | J48: =IF(AND($O$30>0,$N$47>0),N47,"") -> 0.83 | K48: =IF(J48="","","‰") -> ‰ | L48: = | M48: =IF(AND($O$30>0,$N$47>0),ROUND(F48*J48,0),0) -> 571704 | Q48: Felvonók géptörés biztosítása | W48: + | X48: =X36 -> 12000
R49: DÍJ ÖSSZESEN; | W49: = | X49: =IF(Tomb!$A$87=0,SUM(X42:Z48),0) -> 752884
B50: =N(Tomb!F78) -> 1 | C50: Üvegbiztosítás | N50: 2000 | Q50: Engedmények | R50: Mennyiségi | U50: =IF(K18<180000,0,IF(AND($X$49>0,$V$50=1),INDEX(Tomb!M20:P51,MATCH(Tomb!P19,Tomb!M20:M51,1)+MATCH(Tomb!O19,Tomb!N20:N27,1)-1,4),"")) -> 0.14 | V50: =N(Tomb!D81) -> 1 | W50: - | X50: =IF(K18<180000,0,IF(AND($X$49>0,$V$50=1),ROUND(INDEX(Tomb!M20:P51,MATCH(Tomb!P19,Tomb!M20:M51,1)+MATCH(Tomb!O19,Tomb!N20:N27,1)-1,4)*X49,0),0)) -> 105404
B51: =Tomb!G63 -> 1 | D51: Üvegtípus | H51: Bizt felület | J51: Bö.; Ft | L51: Díjtétel % | N51: Díj Ft
B52: 1 | C52: =IF(AND($O$30>0,$B$50=1,$B$51=2),INDEX(Tomb!R20:U29,B52,1),0) -> 0 | D52: =IF(AND($O$30>0,$B$50=1,$B$51=2,B52>0,B52<11,M52>0),1,0) -> 0 | G52: =VLOOKUP(B52,Tomb!$T$20:$U$29,2,0) -> 0 | I52: =IF(H52>0,"m2","") ->  | L52: =IF(OR($O$30=0,$B$50=0,$B$51=1,$B$51=3),"",G52) ->  | M52: =IF(OR($O$30=0,$B$50=0,$B$51=1,$B$51=3),0,ROUND(G52*J52,0)) -> 0 | R52: Kockázati | U52: =IF($X$49>0,INDEX(Tomb!Q74:Q86,Tomb!R73,1),0) -> 0 | W52: - | X52: =IF(AND($X$49>0,U52>0),ROUND($X$49*U52,0),0) -> 0 | AB52: =U52 -> 0
B53: 1 | C53: =IF(AND($O$30>0,$B$50=1,$B$51=2),INDEX(Tomb!R20:U29,B53,1),0) -> 0 | D53: =IF(AND($O$30>0,$B$50=1,$B$51=2,B53>0,B53<11,M53>0),1,0) -> 0 | G53: =VLOOKUP(B53,Tomb!$T$20:$U$29,2,0) -> 0 | I53: =IF(H53>0,"m2","") ->  | L53: =IF(OR($O$30=0,$B$50=0,$B$51=1,$B$51=3),"",G53) ->  | M53: =IF(OR($O$30=0,$B$50=0,$B$51=1,$B$51=3),0,ROUND(G53*J53,0)) -> 0 | R53: Inkasszó | U53: =IF(AND(Tomb!D82,$X$49>0,Da!$Z$180=1),Tomb!T75,"") ->  | W53: - | X53: =IF(U53="",0,IF(AND($X$49>0,U53>0),ROUND($X$49*U53,0),0)) -> 0
B54: 1 | C54: =IF(AND($O$30>0,$B$50=1,$B$51=2),INDEX(Tomb!R20:U29,B54,1),0) -> 0 | D54: =IF(AND($O$30>0,$B$50=1,$B$51=2,B54>0,B54<11,M54>0),1,0) -> 0 | G54: =VLOOKUP(B54,Tomb!$T$20:$U$29,2,0) -> 0 | I54: =IF(H54>0,"m2","") ->  | L54: =IF(OR($O$30=0,$B$50=0,$B$51=1,$B$51=3),"",G54) ->  | M54: =IF(OR($O$30=0,$B$50=0,$B$51=1,$B$51=3),0,ROUND(G54*J54,0)) -> 0 | R54: Képviselői | U54: =IF($X$49>0,INDEX(Tomb!T78:T82,Tomb!U77,1),0) -> 0 | W54: - | X54: =IF(AND($X$49>0,U54>0),ROUND($X$49*U54,0),0) -> 0
B56: 1 | C56: =IF(AND($O$30>0,$B$50=1,$B$51=3),INDEX(Tomb!R30:U30,B56,1),0) -> 0 | D56: =IF(B51=3,1,0) -> 0 | F56: =O20*0.05% -> 334350 | G56: =VLOOKUP(B56,Tomb!$T$30:$U$30,2,0) -> 0.15 | I56: =IF(J56<=F56,J56,F56) -> 0 | L56: =IF(OR($O$30=0,$B$50=0,$B$51=1,$B$51=2),"",G56) ->  | M56: =IF(OR($O$30=0,$B$50=0,$B$51=1,$B$51=2),0,IF(AND($O$30>0,$B$50=1,$B$51=3,J56<=F56),ROUND(G56*J56,0),IF(AND($O$30>0,$B$50=1,$B$51=3,J56>F56),ROUND(G56*F56,0),0))) -> 0 | R56: VIG | U56: =IF(AND($X$49>0,VIG!$GY$59,VIG!$M$59>0),VIG!$M$59,0) -> 0 | W56: - | X56: =IF(AND($X$49>0,U56>0),ROUND($X$49*U56,0),0) -> 0
H57: Biztosítási összeg Ft: | I57: =IF(OR(O30=0,B50=0,B51=1),0,IF(AND(O30>0,B50=1,B51=3),I56,SUMIF(D52:D54,"=1",J52:K54))) -> 0 | L57: Éves díj: | M57: =IF(OR(O30=0,B50=0,B51=1),0,SUMIF(D52:D56,"=1",M52:O56)) -> 0 | R57: ÉVES DÍJ; | W57: = | X57: =IF(X49=0,0,IF(X49-(X50+X52+X54+X56)>=Tomb!I45,X49-(X50+X53+X52+X54+X56),Tomb!I45)) -> 647480
Q58: Részletfizetési pótdíj | U58: =IF(X57>0,VLOOKUP(Tomb!I49,Tomb!A44:G47,7,0),0) -> 0 | W58: + | X58: =X57*U58 -> 0
B59: =N(Tomb!B80) -> 1 | C59: FELELŐSSÉGBIZTOSÍTÁS DÍJTÉTELE | Q59: Fizetendő éves díj; | W59: = | X59: =X57+X58 -> 647480
B60: =N(Tomb!B81) -> 1 | C60: Ingatlantulajdonosi: | M60: + | N60: =IF(AND($O$30>0,$B$59=1,$B$60=1),IF(Tomb!K55=2,Tomb!I23+(IF(Tomb!G74=1,Tomb!I20,IF(Tomb!G74=2,Tomb!J20,0))),INDEX(Tomb!I20:J22,VLOOKUP(Tomb!C73,Tomb!H20:J22,1,0),HLOOKUP(Tomb!G74,Tomb!I19:J22,1,0))),0) -> 0.15 | O60: =IF(N60="","","‰") -> ‰ | Q60: 1/ | R60: =IF(Tomb!I49=1,1,IF(Tomb!I49=2,2,IF(Tomb!I49=3,4,IF(Tomb!I49=4,12)))) -> 1 | S60: -éves díjrészlet | V60: =IF(Tomb!I49=Tomb!H49,"","!!!") ->  | W60: = | X60: =ROUNDUP(X59/R60,0) -> 647480
B61: Éves díj: | F61: =IF(AND($O$30>0,$B$59=1),ROUND(O30/1000,0),"") -> 688800 | I61: * | J61: =IF(AND($O$30>0,$B$59=1,$N$60>0),N60,"") -> 0.15 | K61: =IF(J61="","","‰") -> ‰ | L61: = | M61: =IF(AND($O$30>0,$N$60>0),ROUND(F61*J61,0),0) -> 103320
B62: =N(Tomb!B82) -> 0 | C62: Munkáltatói: | G62: =IF(AND($O$30>0,$B$59=1,$B$62=1),Tomb!J28/1000,"") ->  | I62: * | K62: =IF(J62="","","Fő") ->  | L62: = | M62: =IF(AND($O$30>0,$B$59=1,$B$60=1,$B$62=1,J62>0),ROUND(G62*1000*J62,0),0) -> 0 | R62: Egyéb adatok: | T62: =IF(K15=0,"",X59/K15/12) -> 18.15500224 | V62: =IF(T62>0,"Ft/m2/hó","") -> Ft/m2/hó | X62: Fizetendő
B63: =N(Tomb!B83) -> 0 | C63: Közös képviselői felelősségbiztosítás: | M63: =IF(AND($O$30>0,$B$59=1,$B$60=1,$B$63=1),ROUND(Tomb!$J$29*Tomb!$I$29,0),0) -> 0 | Q63: 0 | R63: Megjegyzés: | T63: =LEN(Q64) -> 0 | U63: =IF(AND(O30>0,X59>0),X59/O30*1000*((X42+X44)/X49),"") -> 0.8427996876 | V63: =Tomb!R95 -> 0.931 | W63: =IF(U63>0,"‰","") -> ‰ | X63: Összevont szorzó
B64: Felelősségbiztosítás éves díja: | M64: =IF(AND($O$30>0,$B$59>0),SUM(M61:O63),0) -> 103320
B69: =IF($A$2=0,"Kár lenne ezt kinyomtatnod, mert csak sok festék fogyna teljesen feleslegesen, ez csupán a számolótábla! Próbálkozz a részletezővel!",IF($A$2=1,"A számoló program érvényessége lejárt, ha tetszett, ideje elgondolkodni a jogdíjon, ha nem tetszett, akkor egyszerűen csak töröld le!","")) -> Kár lenne ezt kinyomtatnod, mert csak sok festék fogyna teljesen feleslegesen, ez csupán a számolótábla! Próbálkozz a részletezővel!
B71: =NOW() -> 2014-09-28T14:55:02.800 | Q71: Készítette; Tóth Géza

Sheet VIG
A2: Szerződésre vonatkozó adatok;
B4: Szerződő/Biztisított: | G4: =Haz!C5 -> 1075 Budapest Rumbach Sebestyén u. 12. (Társasház)
B5: Eljáró személy: | G5: =IF(Haz!O7=0,Haz!C6&" (azonos címen)",IF(Haz!O7=1,CONCATENATE(Haz!C6&" "&Haz!E7&" "&Haz!J7),""))&IF(OR(Haz!L6="",Haz!L6=0),""," e-mail: "&Haz!L6) -> kk (azonos címen)
B6: Biztosításközvetítő: | G6: =IF(Tomb!R42=0,"",IF(Tomb!R42>0,VLOOKUP(Tomb!R42,Ker!A2:K150,5,0)))&" ("&IF(Tomb!R42=0,"",IF(Tomb!R42>0,VLOOKUP(Tomb!T42,Tomb!R43:S50,2,0)))&")" -> 
A9: Épületre vonatkozó adatok;
B11: Tulajdonforma: | G11: =INDEX(Tomb!A56:A57,Tomb!C55) -> Társasházi tulajdon | R11: Az épület kora: | W11: =IF(OR(Haz!L11="",Haz!L11=0),"Nincs válasz!",Haz!L11&" éve épült.") -> 71 éve épült.
B12: Rendeltetés: | G12: =INDEX(Tomb!E56:E60,Tomb!G55) -> Lakóépület | R12: Összes területe: | W12: =IF(OR(Haz!K12="",Haz!K12=0),"Nincs válasz!",FIXED(Haz!K12,0)&" m2") -> 2 972 m2
B13: Az épület jellemzői: | G13: =IF(Tomb!K55=1,"Befejezett,",IF(Tomb!K55=2,"Nem befejezett,",0))&" "&IF(Tomb!K59=1,"műemlék(jellegű) épület.",IF(Tomb!K59=2,"nem műemlék(jellegű) épület.",0)) -> Befejezett, nem műemlék(jellegű) épület. | R13: Szintek száma: | W13: =IF(OR(Haz!L13="",Haz!L13=0),"Nincs válasz!",Haz!L13&" szintes.") -> 8 szintes.
D14: ="Tűzveszélyes tevékenységet "&IF(Tomb!W55=1,"folytatnak. ("&Haz!$P$15&")",IF(Tomb!W55=2,"nem folytatnak.","")) -> Tűzveszélyes tevékenységet nem folytatnak. | R14: Albetétek száma: | W14: =IF(OR(Haz!L14="",Haz!L14=0),"Nincs válasz!",Haz!L14&" db.") -> 37 db.
B15: Az épület típusa: | G15: =INDEX(Tomb!A66:A67,Tomb!C65) -> Hagyományos tech. | R15: Albetétek területe: | W15: =IF(OR(Haz!K15="",Haz!K15=0),"Nincs válasz!",FIXED(Haz!K15,0)&" m2") -> 2 972 m2
B16: Az épület falazata: | G16: =INDEX(Tomb!M55:M59,Tomb!O54)&" "&IF(AND(Tomb!O54>=1,Tomb!O54<5),"",IF(Tomb!O54=5,""&"("&Haz!P12&")")) -> Tégla | R16: Az épület besorolása: | X16: =Haz!X12 -> A / II
B17: Az épület födéme: | G17: =INDEX(Tomb!Q56:Q60,Tomb!S55) -> Beton födém | R17: Minimális m2 ára: | W17: =FIXED(Haz!X14,0)&" "&Haz!Z14 -> 190 000 Ft/m2
B18: Az épület kategóriája: | G18: =INDEX(Tomb!E66:E69,Tomb!G65) -> Átlagos | R18: Alkalmazott m2 ára: | W18: =FIXED(Haz!K18,0)&" "&Haz!M18 -> 225 000 Ft/m2
A20: Épület állaga: | T20: 5 éven belül felújítva | W20: Felújításra szorul
B22: Beázások csőtörések nyomai láthatók: | K22: =IF(NOT(Tomb!N64),"Nincs válasz!",IF(Tomb!K65,"Igaz!",IF(Tomb!M64,"Nem igaz!",""))) -> Nem igaz! | W22: Felújításra szorul
B23: Cserepezés, bádogozás hiányos: | K23: =IF(NOT(Tomb!N65),"Nincs válasz!",IF(Tomb!K66,"Igaz!",IF(Tomb!M65,"Nem igaz!",""))) -> Nem igaz! | P23: Vízcső hálózat: | U23: =IF(AND(Tomb!I73,Tomb!L73),"X",0) -> 0 | X23: =IF(AND(Tomb!K73,Tomb!L73),"X",0) -> 0
B24: 45°-os ferde repedések láthatók: | K24: =IF(NOT(Tomb!N66),"Nincs válasz!",IF(Tomb!K67,"Igaz!",IF(Tomb!M66,"Nem igaz!",""))) -> Nem igaz! | P24: Fűtéscső hálózat: | U24: =IF(AND(Tomb!I74,Tomb!L74),"X",0) -> 0 | X24: =IF(AND(Tomb!K74,Tomb!L74),"X",0) -> 0
B25: Dúcolás alátámasztás található: | K25: =IF(NOT(Tomb!N67),"Nincs válasz!",IF(Tomb!K68,"Igaz!",IF(Tomb!M67,"Nem igaz!",""))) -> Nem igaz! | P25: Csatorna: | U25: =IF(AND(Tomb!I75,Tomb!L75),"X",0) -> 0 | X25: =IF(AND(Tomb!K75,Tomb!L75),"X",0) -> 0
P26: Gázcső hálózat: | U26: =IF(AND(Tomb!I76,Tomb!L76),"X",0) -> 0 | X26: =IF(AND(Tomb!K76,Tomb!L76),"X",0) -> 0
A27: Egyéb kockázatvállalást befolyásoló tényezők: | P27: Homlokzatok: | U27: =IF(AND(Tomb!I77,Tomb!L77),"X",0) -> 0 | X27: =IF(AND(Tomb!K77,Tomb!L77),"X",0) -> 0
B28: Állandó személyzet: | G28: =IF(Haz!J40=0,"Nincs.",IF(Haz!J40=1,"Igen van.","")) -> Nincs. | P28: Tető szerkezet: | U28: =IF(AND(Tomb!I78,Tomb!L78),"X",0) -> 0 | X28: =IF(AND(Tomb!K78,Tomb!L78),"X",0) -> 0
B29: Választott önrész: | G29: =IF(Tomb!A31=1,"Nincs.",INDEX(Tomb!C30:C33,Tomb!A31)&" eFt/kár levonásos.") -> Nincs. | P29: Tetőszigetelés: | U29: =IF(AND(Tomb!I79,Tomb!L79),"X",0) -> 0 | X29: =IF(AND(Tomb!K79,Tomb!L79),"X",0) -> 0
B30: Árvíz kizárása (SIGinfó szerint): | J30: =IF(AND(Haz!J43=1,Tomb!AF1=1),"Igen, kizárásra került.","Nem került kizárásra.") -> Nem került kizárásra. | P30: Tetőhéjazat: | U30: =IF(AND(Tomb!I80,Tomb!L80),"X",0) -> 0 | X30: =IF(AND(Tomb!K80,Tomb!L80),"X",0) -> 0
B31: Többszörözhető limittel rend. | J31: =IF(Haz!J44=1,"Igen, kizárásra került.","Nem került kizárásra.") -> Nem került kizárásra.
B32: Többszörözhető limittel rendelkezők. | K32: =IF(AND(Haz!J44=0,Tomb!P64=0),"Nincs többszörözés!",IF(AND(Haz!J44=0,Tomb!P64=1),"Kártárítési limit 2 szerezése!",IF(AND(Haz!J44=0,Tomb!P64=2),"Kártárítési limit 3 szorozása!",""))) -> Nincs többszörözés! | R32: =IF(Haz!J44=0,FIXED(Haz!K30,0)&" Ft éves kártérítési limittel.","") -> 688 800 Ft éves kártérítési limittel.
A36: Biztosítási összegek meghatározása:
B38: Biztosított vagyontárgyak: | L38: Kártérítési határok: | S38: Díjtétel | W38: Éves díjak:
B40: Épület: | E40: =Haz!I20*100&" % közöstul. arány." -> 100 % közöstul. arány. | L40: =IF(Haz!O30>0,Haz!O20,0) -> 668700000
B41: Egyéb ingóságok: | L41: =IF(Haz!O30>0,SUM(Haz!O21:R29),0) -> 20100000
B42: Üveg átalány: | L42: =IF(Haz!O30>0,FIXED(Haz!O20*0.0002,0)&" Ft",0) -> 133 740 Ft
E44: Díj: | R44: =IF(OR(SUM(L40:P41)=0,V44=0),0,V44/(L40+L41)*1000) -> 0.83 | V44: =IF(Haz!X42>0,Haz!X42,0) -> 571704
B46: Kiegészítő üveg: | L46: =IF(Haz!I57>0,Haz!I57,0) -> 0 | R46: =IF(OR(L46=0,V46=0),0,V46/(L46)*1000) -> 0 | V46: =IF(Haz!X43>0,Haz!X43,0) -> 0
B47: Felelősség:
C48: Ingatlantulajdonosi: | H48: =IF(V48>0,Tomb!N116,0) -> Alap 15 mFt/kár/év + Bővített 7,5 mFt/kár | R48: =IF(V48=0,0,Haz!J61) -> 0.15 | V48: =IF(Haz!X44>0,Haz!M61,0) -> 103320
C49: Munkáltatói: | H49: =IF(V48>0,Tomb!U117,0) ->  | R49: =IF(OR(L49=0,V49=0),0,V49/(L49)*1000) -> 0 | V49: =IF(Haz!X44>0,Haz!M62,0) -> 0
B50: Gépjárművek biztosítása: | I50: =IF(V50>0,FIXED(Tomb!I31,0)&" Ft/jármű/év"&" "&Haz!U33&" db gépjárműre.","") ->  | V50: =IF(Haz!X47>0,Haz!X47,0) -> 0
B51: Felvonók géptörés biztosítása: | J51: =IF(AND(Tomb!D79,V51>0),FIXED(VLOOKUP(Tomb!W65,Tomb!G34:J37,2,0),0)&" eFt/kár "&FIXED(VLOOKUP(Tomb!W65,Tomb!G34:J37,3,0),0)&" eFt/év/felv."&" "&Haz!U36&" db felvonóra.",0) -> 150 eFt/kár 500 eFt/év/felv. 2 db felvonóra. | V51: =IF(Haz!X48>0,Haz!X48,0) -> 12000
E53: DÍJ ÖSSZESEN; | V53: =IF(Haz!X49>0,Haz!X49,0) -> 752884
H55: Mennyiségi engedmény: | O55: =IF(Haz!U50>0,Haz!U50,0) -> 0.14 | V55: =IF(Haz!X50>0,Haz!X50*-1,0) -> -105404
H56: Kockázati engedmény: | O56: =IF(Haz!U52>0,Haz!U52,0) -> 0 | V56: =IF(Haz!X52>0,Haz!X52*-1,0) -> 0
H57: Inkasszó engedmény: | O57: =IF(Haz!U53>0,Haz!U53,0) ->  | V57: =IF(Haz!X53>0,Haz!X53*-1,0) -> 0
H58: Képviselői engedmény: | O58: =IF(Haz!U54>0,Haz!U54,0) -> 0 | V58: =IF(Haz!X54>0,Haz!X54*-1,0) -> 0
H59: VIG engedmény: | M59: 0.05 | O59: =IF(AND(GY59,M59>0),"",IF(AND(NOT(GY59),M59=0),INDEX(Tomb!W74:W94,Tomb!X73,1),0)) -> 0 | Q59: =IF(AND(GY59,M59>0),"-al köthető",IF(AND(NOT(GY59),O59>0)," kérése","")) ->  | T59: =IF(NOT(GY59),ROUND((INDEX(Tomb!W74:W94,Tomb!X73,1)*Haz!X49*-1),0),0) -> -75288 | W59: =IF(Haz!X56>0,Haz!X56*-1,0) -> 0 | GY59: FALSE | GZ59: 11
E61: ÉVES DÍJ; | O61: Összevont szorzó: | P61: =IF(NOT($GY$59),Tomb!B119,Tomb!G119) -> 0,843 ‰ / 0,980 ‰ | T61: =IF(NOT($GY$59),ROUND((V53+V55+V56+V57+V58+T59),0),0) -> 572192 | V61: =IF(Haz!X57>0,Haz!X57,0) -> 647480
H63: Részletfizetési pótdíj | O63: =IF(V61>0,VLOOKUP(Tomb!I49,Tomb!A44:G47,7,0),0) -> 0 | T63: =IF(NOT($GY$59),ROUND((T61*O63),0),0) -> 0 | V63: =IF(Haz!X58>0,Haz!X58,0) -> 0
E65: FIZETENDŐ ÉVES DÍJ: | O65: Összevont szorzó: | P65: =IF(NOT($GY$59),Tomb!R119,Tomb!W119) -> 0,831 ‰ / 0,931 ‰ | T65: =IF(NOT($GY$59),ROUND((T61+T63),0),0) -> 572192 | V65: =IF(Haz!X59>0,Haz!X59,0) -> 647480
F67: 1/ | G67: =IF(Tomb!I49=1,1,IF(Tomb!I49=2,2,IF(Tomb!I49=3,4,IF(Tomb!I49=4,12)))) -> 1 | H67: -éves díjrészlet | T67: =IF(NOT($GY$59),ROUNDUP((T65/G67),0),0) -> 572192 | V67: =IF(Haz!X60>0,Haz!X60,0) -> 647480
B69: ="Az éves díj albetétek területére számolva: "&FIXED(Haz!T62,2)&" "&Haz!V62 -> Az éves díj albetétek területére számolva: 18,16 Ft/m2/hó

Sheet Resz
A1: SZERZŐDŐ | D1: =IF(Haz!C5>"",Haz!C5,0) -> 1075 Budapest Rumbach Sebestyén u. 12. (Társasház) | N1: =Tomb!Q1 -> 0 | O1: Ajánlat száma: | V1: =IF(AND(Haz!Q6=0),"Új szerződés:",IF(AND(Haz!Q6=1,Haz!R6>""),"Átdolgozás:",0)) -> Új szerződés: | W1: =IF(AND(Haz!Q6=0,Haz!Q2>""),502&Haz!Q2,IF(AND(Haz!Q6=1,Haz!R6>""),Haz!R6,0)) -> 0
A3: SZERZŐDŐ KÉPVISELÉTÉBEN ELJÁRÓ SZEMÉLY | Q3: Képviselőj: | V3: Kódja: | W3: =IF(Tomb!R42>0,VLOOKUP(Tomb!R42,Ker!A2:K150,10,0)) -> 0
A4: Név: | G4: Vállalkozás: | L4: E-mail címe: | Q4: =IF(Haz!S5>"",Haz!S5,0) -> 0
A5: =IF(Haz!C6>"",Haz!C6,0) -> kk | G5: =IF(Haz!H6>"",Haz!H6,0) -> 0 | L5: =IF(Haz!L6>"",Haz!L6,0) -> 0
A6: Irányítószám: | C6: Helység: | H6: Út, utca, tér:
Q7: Biztosítás igényelt kezdete: | W7: =IF(Haz!W6>0,Haz!W6,0) -> 2014-12-01
A8: =IF(AND(Haz!$O$7=1,OR(Haz!C6>"",Haz!H6>""),Haz!C7>0),Haz!C7,IF(AND(Haz!$O$7=0,OR(Haz!C6>"",Haz!H6>""),Haz!C7>=0),Haz!C4,0)) -> 1075 | C8: =IF(AND(Haz!$O$7=1,OR(Haz!C6>"",Haz!H6>""),Haz!E7>0),Haz!E7,IF(AND(Haz!$O$7=0,OR(Haz!C6>"",Haz!H6>""),Haz!E7>=0),Haz!E4,0)) -> Budapest | H8: =IF(AND(Haz!$O$7=1,OR(Haz!C6>"",Haz!H6>""),Haz!J7>0),Haz!J7,IF(AND(Haz!$O$7=0,OR(Haz!C6>"",Haz!H6>""),Haz!J7>=0),Haz!J4,0)) -> Rumbach Sebestyén u. 12.
A10: KOCKÁZATVISELÉS HELYE | O10: HITELFEDEZETI KEDVEZMÉNYEZETT
A11: Irányítószám: | C11: Helység: | H11: Út, utca, tér: | O11: Kedvezményezett hitelnyújtó neve, címe : | U11: Hitelszerződés összege: | X11: Hitelszerződés száma:
A12: =IF(Haz!C4>0,Haz!C4,0) -> 1075 | C12: =IF(Haz!E4>0,Haz!E4,0) -> Budapest | H12: =IF(Haz!J4>0,Haz!J4,0) -> Rumbach Sebestyén u. 12.
A14: ÁLTALÁNOS ADATOK :
A15: TULAJDONFORMA: | G15: =IF(Tomb!C55=1,"X",0) -> X | H15: Társasházi tulajdon | L15: =IF(Tomb!C55=2,"X",0) -> 0 | M15: Szövetkezeti tulajdon | Q15: ÁFA-körbe tartozik: | U15: =IF(Tomb!C59=1,"X",0) -> 0 | V15: igen | X15: =IF(Tomb!C59=2,"X",0) -> X | Y15: nem
A16: RENDELTETÉS: | G16: =IF(Tomb!G55=1,"X",0) -> X | H16: Lakóépület | L16: =IF(Tomb!G55=2,"X",0) -> 0 | M16: Nyaralóépület | Q16: =IF(Tomb!G55=3,"X",0) -> 0 | R16: Üzletház | V16: =IF(Tomb!G55=4,"X",0) -> 0 | W16: Irodaház
A17: AZ ÉPÜLET JELLEMZŐI: | I17: Befejezett épület: | M17: =IF(Tomb!K55=1,"X",0) -> X | N17: igen | O17: =IF(Tomb!K55=2,"X",0) -> 0 | P17: nem | R17: Műemlék(jellegű) épület: | W17: =IF(Tomb!K59=1,"X",0) -> 0 | X17: igen | Y17: =IF(Tomb!K59=2,"X",0) -> X | Z17: nem
A18: Épület kora: | D18: =IF(Haz!L11>0,Haz!L11,0) -> 71 | E18: =IF(D18>0,"év",0) -> év | I18: Szintek száma: | L18: =IF(Haz!L13>0,Haz!L13,0) -> 8 | M18: =IF(L18>0,"szintes",0) -> szintes | R18: Albetétek / külön tulajdonok száma: | X18: =IF(Haz!L14>0,Haz!L14,0) -> 37 | Z18: =IF(X18>0,"db",0) -> db
A19: FALAZAT: | F19: =IF(Tomb!O54=1,"X",0) -> X | G19: tégla | I19: =IF(Tomb!O54=2,"X",0) -> 0 | J19: panel | M19: =IF(Tomb!O54=3,"X",0) -> 0 | N19: monolit vb. | R19: =IF(Tomb!O54=4,"X",0) -> 0 | S19: bauxitbeton | V19: =IF(Tomb!O54=5,"X",0) -> 0 | W19: egyéb: | X19: =IF(Haz!S11=1,Haz!P12,0) -> 0
A20: FÖDÉM: | F20: =IF(Tomb!S55=3,"X",0) -> 0 | G20: közbenső fafödém | K20: =IF(Tomb!S55=4,"X",0) -> 0 | L20: záró fafödém belső nyitott csapadék-elvezetéssel | V20: =IF(Tomb!S55=5,"X",0) -> 0 | W20: bauxitbeton födém
A21: A biztosított épületben „C”, vagy annál magasabb tűzveszélyességű tevékenységet folytatnak: | Q21: =IF(Tomb!W55=1,"X",0) -> 0 | R21: igen | S21: =IF(Haz!S14=1,Haz!P15,0) -> 0 | X21: =IF(Tomb!W55=2,"X",0) -> X | Y21: nem
A22: AZ ÉPÜLET ÁLLAGA: | O22: 5 éven belül felújítva | Q22: Karbantar- tásra szorul | V22: 5 éven belül felújítva | X22: Karbantar- tásra szorul
O23: felújítva | V23: felújítva
A24: Az épületen beázások, csőtörések nyomai láthatóak: | I24: =IF(Tomb!K65,"X",0) -> 0 | J24: igen | K24: =IF(Tomb!M64,"X",0) -> X | L24: nem | M24: Víz csőhálózat: | P24: =IF(AND(Tomb!I73,Tomb!L73),"X",0) -> 0 | R24: =IF(AND(Tomb!K73,Tomb!L73),"X",0) -> 0 | T24: Homlokzatok | W24: =IF(AND(Tomb!I77,Tomb!L77),"X",0) -> 0 | Y24: =IF(AND(Tomb!K77,Tomb!L77),"X",0) -> 0
A25: Az épület teteje hullámos, cserepezés, bádogozás hiányos: | I25: =IF(Tomb!K66,"X",0) -> 0 | J25: igen | K25: =IF(Tomb!M65,"X",0) -> X | L25: nem | M25: Fűtés csőhálózat | P25: =IF(AND(Tomb!I74,Tomb!L74),"X",0) -> 0 | R25: =IF(AND(Tomb!K74,Tomb!L74),"X",0) -> 0 | T25: Tető szerkezet | W25: =IF(AND(Tomb!I78,Tomb!L78),"X",0) -> 0 | Y25: =IF(AND(Tomb!K78,Tomb!L78),"X",0) -> 0
A26: Épületen ferde (kb. 45o-os) repedés(ek) van(nak): | I26: =IF(Tomb!K67,"X",0) -> 0 | J26: igen | K26: =IF(Tomb!M66,"X",0) -> X | L26: nem | M26: Csatorna | P26: =IF(AND(Tomb!I75,Tomb!L75),"X",0) -> 0 | R26: =IF(AND(Tomb!K75,Tomb!L75),"X",0) -> 0 | T26: Tetőszigetelés | W26: =IF(AND(Tomb!I79,Tomb!L79),"X",0) -> 0 | Y26: =IF(AND(Tomb!K79,Tomb!L79),"X",0) -> 0
A27: Épületen dúcolás utólagos alátámasztás található: | I27: =IF(Tomb!K68,"X",0) -> 0 | J27: igen | K27: =IF(Tomb!M67,"X",0) -> X | L27: nem | M27: Gázcső hálózat | P27: =IF(AND(Tomb!I76,Tomb!L76),"X",0) -> 0 | R27: =IF(AND(Tomb!K76,Tomb!L76),"X",0) -> 0 | T27: Tetőhéjazat | W27: =IF(AND(Tomb!I80,Tomb!L80),"X",0) -> 0 | Y27: =IF(AND(Tomb!K80,Tomb!L80),"X",0) -> 0
A28: KÁRELŐZMÉNYEK: | F28: =IF(U28=X28,"Döntsd el, hogy volt vagy nem volt? >",0) -> 0 | M28: Korábbi kár(ok) az ajánlatot megelőző öt évben: | V28: volt | W28: =IF(AND(U28="X",X28="X"),"?",0) -> 0 | X28: X | Y28: nem volt
M29: (függetlenül attól, hogy a káridőpontjában volt-e élő biztosítás)
A30: kár időpontja: | G30: jellege: | M30: kár időpontja: | S30: jellege: | T30: Csőtörés
B31: összege: | N31: összege:
A32: BIZTOSÍTÁSI ELŐZMÉNYEK: | G32: Ha volt biztosítás, akkor az előző biztosító neve: | Q32: kötvényszáma: | V32: megszűnés oka:
A34: LAKÓ / ÜDÜLŐ ÉPÜLETBIZTOSÍTÁS BIZTOSÍTÁSI ÖSSZEG SZÁMÍTÁSA
A35: Megnevezés | J35: Kategória | M35: Külön tul. összesített m2-re | Q35: Ft / m2 | T35: Okiratbani jele | W35: Biztosítási összeg [Ft]
A36: Lakó / üdülőépület | J36: =IF(Haz!A18=5,0,IF(AND(Tomb!$G$55<5,Haz!$B$17=1,Haz!G18>""),Haz!G18,0)) -> A / II | M36: =IF(Haz!A18=5,0,IF(AND(Tomb!$G$55<5,Haz!$B$17=1,Haz!H18>0),FIXED(Haz!H18,0)&" m2",0)) -> 2 972 m2 | Q36: =IF(AND(Tomb!$G$55<5,Haz!$B$17=1,Haz!H18>0,Haz!O18>0),(Haz!O18/Haz!H18),0) -> 225000 | W36: =IF(Haz!A18=5,0,IF(AND(Tomb!$G$55<5,Haz!$B$17=1,Haz!O18>0),(Haz!O18/1000),0)) -> 668700 | Z36: .000.-
A37: =IF(AND(Haz!$B$17=1,Haz!O19>0),VLOOKUP(Tomb!D90,Tomb!J90:K93,2,0),0) -> 0 | H37: Garázs | J37: =IF(Haz!A21=2,0,IF(AND(Haz!$B$17=1,Haz!F19>"",Haz!H19>"",Haz!I19>0),Haz!F19&" / "&Haz!H19,0)) -> 0 | M37: =IF(Haz!A21=2,0,IF(AND(Haz!$B$17=1,Haz!I19>0),FIXED(Haz!I19,0)&" m2",0)) -> 0 | Q37: =IF(AND(Haz!$B$17=1,Haz!I19>0,Haz!O19>0),(Haz!O19/Haz!I19),0) -> 0 | W37: =IF(AND(Haz!$B$17=1,Haz!O19>0),(Haz!O19/1000),0) -> 0 | Z37: .000.-
A39: Épületnek a közös tulajdoni része..........……….. | I39: =IF(AND(Haz!$B$17=1,Haz!K20>0),Haz!I20,0) -> 1 | W39: =IF(AND(Haz!$B$17=1,Haz!K20>0),(Haz!O20/1000),0) -> 668700 | Z39: .000.-
A40: =IF(AND(Haz!$B$17=1,Haz!O21>0),VLOOKUP(Tomb!D95,Tomb!J95:K98,2,0),0) -> 0 | J40: =IF(AND(Haz!$B$17=1,Haz!F21>"",Haz!H21>"",Haz!I21>0),Haz!F21&" / "&Haz!H21,0) -> 0 | M40: Σ m2 | N40: =IF(AND(Haz!$B$17=1,Haz!F21>"",Haz!H21>"",Haz!I21>0),FIXED(Haz!I21,0)&" m2",0) -> 0 | Q40: =IF(AND(Haz!$B$17=1,Haz!F21>"",Haz!H21>"",Haz!I21>0),(Haz!O21/Haz!I21),0) -> 0 | W40: =IF(AND(Haz!$B$17=1,Haz!O21>0),(Haz!O21/1000),0) -> 0 | Z40: .000.-
A41: Központi berendezés : | E41: =IF(AND(Haz!$B$17=1,Haz!O22>0,Haz!F22>""),Haz!F22,0) -> Kaputelefonrendszer | H41: =IF(AND(Haz!$B$17=1,Haz!O22>0,Haz!I22>0),Haz!I22&" db",0) -> 1 db | J41: =IF(AND(Haz!$B$17=1,Haz!O22>0,Haz!K22>0),FIXED(Haz!K22,0)&" Ft/db",0) -> 100 000 Ft/db | N41: =IF(AND(Haz!$B$17=1,Haz!O23>0,Haz!F23>""),Haz!F23,0) -> Lift | Q41: =IF(AND(Haz!$B$17=1,Haz!O23>0,Haz!I23>0),Haz!I23&" db",0) -> 2 db | S41: =IF(AND(Haz!$B$17=1,Haz!O23>0,Haz!K23>0),FIXED(Haz!K23,0)&" Ft/db",0) -> 10 000 000 Ft/db | W41: =IF(AND(Haz!$B$17=1,OR(Haz!O22>0,Haz!O23>0)),((Haz!O22+Haz!O23)/1000),0) -> 20100 | Z41: .000.-
A42: Kerítés fajtája (egy kerítést csak egy lapon lehet felvenni): | I42: =IF(AND(Haz!$B$17=1,Haz!O24>0,Haz!F24>""),Haz!F24,0) -> 0 | K42: =IF(AND(Haz!$B$17=1,Haz!O24>0,Haz!I24>0),Haz!I24&" fm",0) -> 0 | M42: =IF(AND(Haz!$B$17=1,Haz!O24>0,Haz!K24>0),FIXED(Haz!K24,0)&" Ft/fm",0) -> 0 | P42: =IF(AND(Haz!$B$17=1,Haz!O25>0,Haz!F25>""),Haz!F25,0) -> 0 | R42: =IF(AND(Haz!$B$17=1,Haz!O25>0,Haz!I25>0),Haz!I25&" fm",0) -> 0 | T42: =IF(AND(Haz!$B$17=1,Haz!O25>0,Haz!K25>0),FIXED(Haz!K25,0)&" Ft/fm",0) -> 0 | W42: =IF(AND(Haz!$B$17=1,OR(Haz!O24>0,Haz!O25>0)),((Haz!O24+Haz!O25)/1000),0) -> 0 | Z42: .000.-
A43: Egyéb : | C43: =IF(AND(Haz!$B$17=1,Haz!O26>0,Haz!F26>""),Haz!F26,0) -> 0 | G43: =IF(AND(Haz!$B$17=1,Haz!O26>0,Haz!I26>0),Haz!I26&" db",0) -> 0 | I43: =IF(AND(Haz!$B$17=1,Haz!O26>0,Haz!K26>0),FIXED(Haz!K26,0)&" Ft/db",0) -> 0 | M43: =IF(AND(Haz!$B$17=1,Haz!O27>0,Haz!F27>""),Haz!F27,0) -> 0 | Q43: =IF(AND(Haz!$B$17=1,Haz!O27>0,Haz!I27>0),Haz!I27&" db",0) -> 0 | S43: =IF(AND(Haz!$B$17=1,Haz!O27>0,Haz!K27>0),FIXED(Haz!K27,0)&" Ft/db",0) -> 0 | W43: =IF(AND(Haz!$B$17=1,OR(Haz!O26>0,Haz!O27>0)),((Haz!O26+Haz!O27)/1000),0) -> 0 | Z43: .000.-
A44: Közös tulajdonú ingóságok: | E44: =IF(AND(Haz!$B$17=1,Haz!O28>0,Haz!F28>""),Haz!F28,0) -> 0 | H44: =IF(AND(Haz!$B$17=1,Haz!O28>0,Haz!I28>0),Haz!I28&" db",0) -> 0 | J44: =IF(AND(Haz!$B$17=1,Haz!O28>0,Haz!K28>0),FIXED(Haz!K28,0)&" Ft/db",0) -> 0 | N44: =IF(AND(Haz!$B$17=1,Haz!O29>0,Haz!F29>""),Haz!F29,0) -> 0 | Q44: =IF(AND(Haz!$B$17=1,Haz!O29>0,Haz!I29>0),Haz!I29&" db",0) -> 0 | S44: =IF(AND(Haz!$B$17=1,Haz!O29>0,Haz!K29>0),FIXED(Haz!K29,0)&" Ft/db",0) -> 0 | W44: =IF(AND(Haz!$B$17=1,OR(Haz!O28>0,Haz!O29>0)),((Haz!O28+Haz!O29)/1000),0) -> 0 | Z44: .000.-
A46: ÖSSZESEN | Z46: =IF(Haz!O30>0,FIXED(Haz!O30/1000,0)&" 000.-","") -> 688 800 000.-
A48: ÉPÜLETBIZTOSÍTÁS DÍJTÉTELE | N48: Díjtétel ‰ | P48: =IF(AND(Tomb!B80,Haz!M64>0),"X",0) -> X | Q48: FELELŐSSÉGBIZTOSÍTÁS
A49: Alapfedezet: | J49: =IF(Haz!N33>0,"X",0) -> X | K49: =IF(Haz!N33>0,VLOOKUP(Haz!L11,Tomb!J2:M7,4),0) -> 51-100 év | M49: + | N49: =IF(Haz!N33>0,Haz!N33,"") -> 0.9 | P49: Ingatlantulajdonosi: | T49: =IF(AND(Tomb!$B$80,Tomb!B81,Haz!$M$64>0,Haz!M61>0,Haz!F61>0),FIXED(Haz!F61,0),0) -> 688 800 | V49: =IF(AND(Tomb!$B$80,Tomb!B81,Haz!$M$64>0,Haz!J61>0,Haz!M61>0),"* "&Haz!J61&"‰ =",0) -> * 0,15‰ = | X49: + | Y49: =IF(AND(Tomb!$B$80,Tomb!B81,Haz!$M$64>0,Haz!M61>0),Haz!M61,0) -> 103320
A50: Többszörözhető limitel rend. | F50: =IF(AND(Haz!N34>0,Tomb!P64=1),"X",0) -> 0 | G50: kétszerez | I50: =IF(AND(Haz!N34>0,Tomb!P64=2),"X",0) -> 0 | M50: + | N50: =IF(Haz!N34>0,Haz!N34,"") ->  | P50: =IF(OR(Tomb!K55=2,AND(Tomb!$B$80,Tomb!B81,Haz!$M$64>0,Haz!M61>0,Tomb!C73=1)),Tomb!B74,IF(AND(Tomb!$B$80,Tomb!B81,Haz!$M$64>0,Haz!M61>0,Tomb!C73=2),Tomb!B75,IF(AND(Tomb!$B$80,Tomb!B81,Haz!$M$64>0,Haz!M61>0,Tomb!C73=3),Tomb!B76,0))) -> I Fedezet. | R50: =IF(AND(Tomb!$B$80,Tomb!B81,Haz!$M$64>0,Haz!M61>0,OR(Tomb!G74=1,Tomb!G74=2)),Tomb!F75,0) -> Alap | S50: =IF(AND(Tomb!$B$80,Tomb!B81,Haz!$M$64>0,Haz!M61>0,OR(Tomb!G74=1,Tomb!G74=2)),INDEX(Tomb!I25:J27,VLOOKUP(IF(Tomb!K55=1,Tomb!C73,1),Tomb!H25:J27,1,0),HLOOKUP(1,Tomb!I24:J27,1,0))&" mFt/kár/év",0) -> 15 mFt/kár/év | V50: =IF(AND(Tomb!$B$80,Tomb!B81,Haz!$M$64>0,Haz!M61>0,Tomb!G74=2),"+ "&Tomb!F76,0) -> + Bővített | X50: =IF(AND(Tomb!$B$80,Tomb!B81,Haz!$M$64>0,Haz!M61>0,Tomb!G74=2),INDEX(Tomb!I25:J27,VLOOKUP(IF(Tomb!K55=1,Tomb!C73,1),Tomb!H25:J27,1,0),HLOOKUP(Tomb!G74,Tomb!I24:J27,1,0))&" mFt/kár",0) -> 7,5 mFt/kár
A51: Be nem fejezett épület | L51: =IF(AND(Haz!N35>0,Tomb!K55=2),"X",0) -> 0 | M51: + | N51: =IF(Haz!N35>0,Haz!N35,"") ->  | P51: Munkáltatói: | S51: =IF(AND(Tomb!$B$80,Tomb!B82,Haz!$M$64>0,Haz!M62>0,Haz!J62>0),Haz!J62&" fő",0) -> 0 | U51: =IF(AND(Tomb!$B$80,Tomb!B82,Haz!$M$64>0,Haz!M62>0,Haz!G62>0)," * "&FIXED(Tomb!J28,0)&" Ft =",0) -> 0 | X51: + | Y51: =IF(AND(Tomb!$B$80,Tomb!B82,Haz!$M$64>0,Haz!M62>0),Haz!M62,0) -> 0
A52: „C”, vagy annál magasabb tűzveszélyességű tevékenység | L52: =IF(AND(Haz!N36>0,Tomb!W55=1),"X",0) -> 0 | M52: + | N52: =IF(Haz!N36>0,Haz!N36,"") ->  | P52: Közös képviselői felelősségbiztosítás: | X52: + | Y52: =IF(AND(Tomb!$B$80,Tomb!B83,Haz!$M$64>0,Haz!M63>0),Haz!M63,0) -> 0
Q53: ="A díjfizetés módja; "&IF(Haz!$Z$40=1," Inkasszó.",IF(Haz!$Z$40=2," Csekk.",IF(Haz!$Z$40=3," Átutalás.",""))) -> A díjfizetés módja;
A54: engedmények | B54: Felújítás 5 éven belül | J54: =IF(AND(Haz!N38>0,Tomb!I81>=1),"X",0) -> 0 | K54: =IF(AND(Haz!N38>0,Tomb!I81>=2),"X",0) -> 0 | L54: =IF(AND(Haz!N38>0,Tomb!I81>=3),"X",0) -> 0 | M54: - | N54: =IF(Haz!N38>0,Haz!N38,"") ->  | P54: Éves felelősségbiztosítási díj összesen | W54: = | X54: =IF(AND(Tomb!$B$80,Haz!$M$64>0),Haz!M64,0) -> 103320
B55: Lakóépület, üzletház, iroda épület | L55: =IF(AND(Haz!N39>0,OR(Tomb!G55=1,Tomb!G55=3,Tomb!G55=4)),"X",0) -> X | M55: - | N55: =IF(Haz!N39>0,Haz!N39,"") -> 0.05
B56: Van állandó/bentlakó személyzet | L56: =IF(AND(Haz!N40>0,Tomb!O72),"X",0) -> 0 | M56: - | N56: =IF(Haz!N40>0,Haz!N40,"") ->  | P56: Lakó / üdülö épületbiztosítás | W56: + | X56: =IF(Haz!X42>0,Haz!X42,0) -> 571704
B57: Nem paneles technológiával készült épület | L57: =IF(AND(Haz!N41>0,Tomb!O73),"X",0) -> X | M57: - | N57: =IF(Haz!N41>0,Haz!N41,"") -> 0.02 | P57: Kiegészítő üvegbiztosítás | W57: + | X57: =IF(Haz!X43>0,Haz!X43,0) -> 0
B58: Önrész: | D58: =IF(AND(Haz!N42>0,Tomb!O66),"X",0) -> 0 | E58: 25 eFt | G58: =IF(AND(Haz!N42>0,Tomb!P66),"X",0) -> 0 | H58: 50 eFt | J58: =IF(AND(Haz!N42>0,Tomb!Q67),"X",0) -> 0 | K58: 100 eFt | M58: - | N58: =IF(Haz!N42>0,Haz!N42,"") ->  | P58: Felelősségbiztosítás | W58: + | X58: =IF(Haz!X44>0,Haz!X44,0) -> 103320
B59: Árvíz kizárása (SIGinfóban meghatározottak szerint) | L59: =IF(AND(Haz!N43>0,Tomb!O74,Tomb!AF1=1),"X",0) -> 0 | M59: - | N59: =IF(Haz!N43>0,Haz!N43,"") ->  | P59: Assistance biztosítás | W59: + | X59: =IF(Haz!X45>0,Haz!X45,0) -> 65860
B60: Beázás (STÉBI 2011,1.6;1.7),(STÉBI 2011, 1.21-23, 1.26), károk kizárása | L60: =IF(AND(Haz!N44>0,Tomb!O75),"X",0) -> 0 | M60: - | N60: =IF(Haz!N44>0,Haz!N44,"") ->  | P60: Gépjárművek biztosítása | W60: + | X60: =IF(Haz!X47>0,Haz!X47,0) -> 0
B61: Betöréses lopás károk kizárása (STÉBI 2011, 1.24-25) | L61: =IF(AND(Haz!N45>0,Tomb!O76),"X",0) -> 0 | M61: - | N61: =IF(Haz!N45>0,Haz!N45,"") ->  | P61: Felvonók géptörés biztosítása | W61: + | X61: =IF(Haz!X48>0,Haz!X48,0) -> 12000
A63: Épületbiztosítás díjtétele: | L63: = | M63: =IF(Haz!N47>0,Haz!N47&" ‰","") -> 0,83 ‰ | Q63: DÍJ ÖSSZESEN; | W63: = | X63: =IF(Haz!X49>0,Haz!X49,0) -> 752884
A64: Éves épületbizt. díj: | E64: =IF(Haz!F48>0,Haz!F48,"") -> 688800 | H64: * | I64: =IF(Haz!J48>0,Resz!M63,"") -> 0,83 ‰ | K64: = | L64: =IF(Haz!M48>0,Haz!M48,"") -> 571704 | P64: Engedmények | Q64: Mennyiségi | T64: =IF(AND(Haz!X50>0,Haz!U50>0),Haz!U50,0) -> 0.14 | V64: =N(Tomb!D94) -> 0 | W64: - | X64: =IF(Haz!X50>0,Haz!X50,0) -> 105404
A66: =IF(AND(Tomb!$F$78,Haz!$M$57>0),"X",0) -> 0 | B66: KIEGÉSZÍTŐ ÜVEGBIZTOSÍTÁS | Q66: Kockázati | T66: =IF(AND(Haz!X52>0,Haz!U52>0),Haz!U52,0) -> 0 | V66: =N(Tomb!D95) -> 1 | W66: - | X66: =IF(Haz!X52>0,Haz!X52,0) -> 0
A67: Egyéb biztosított üvegek megnev. | G67: Bizt felület | I67: Bö.; Ft | K67: Díjtétel % | M67: Díj Ft | Q67: Inkasszó | T67: =IF(AND(Haz!X53>0,Haz!U53>0),Haz!U53,0) -> 0 | V67: =N(Tomb!D96) -> 0 | W67: - | X67: =IF(Haz!X53>0,Haz!X53,0) -> 0
A68: =IF(AND(Tomb!$F$78,Haz!$M$57>0,Haz!M52>0),Haz!C52,0) -> 0 | G68: =IF(AND(Tomb!$F$78,Haz!$M$57>0,Haz!M52>0,Haz!H52>0),Haz!H52&" m2",0) -> 0 | I68: =IF(AND(Tomb!$F$78,Haz!$M$57>0,Haz!M52>0,Haz!J52>0),Haz!J52,0) -> 0 | K68: =IF(AND(Tomb!$F$78,Haz!$M$57>0,Haz!M52>0,Haz!L52>0),Haz!L52,0) -> 0 | M68: =IF(AND(Tomb!$F$78,Haz!$M$57>0,Haz!M52>0),Haz!M52,0) -> 0 | Q68: Képviselői | T68: =IF(AND(Haz!X54>0,Haz!U54>0),Haz!U54,0) -> 0 | V68: =N(Tomb!D96) -> 0 | W68: - | X68: =IF(Haz!X54>0,Haz!X54,0) -> 0
A69: =IF(AND(Tomb!$F$78,Haz!$M$57>0,Haz!M53>0),Haz!C53,0) -> 0 | G69: =IF(AND(Tomb!$F$78,Haz!$M$57>0,Haz!M53>0,Haz!H53>0),Haz!H53&" m2",0) -> 0 | I69: =IF(AND(Tomb!$F$78,Haz!$M$57>0,Haz!M53>0,Haz!J53>0),Haz!J53,0) -> 0 | K69: =IF(AND(Tomb!$F$78,Haz!$M$57>0,Haz!M53>0,Haz!L53>0),Haz!L53,0) -> 0 | M69: =IF(AND(Tomb!$F$78,Haz!$M$57>0,Haz!M53>0),Haz!M53,0) -> 0 | Q69: =IF(T69>0,"VIG","") ->  | T69: =IF(AND(Haz!X56>0,Haz!U56>0),Haz!U56,0) -> 0 | V69: =N(Tomb!D70) -> 0 | W69: =IF(T69>0,"-","") ->  | X69: =IF(Haz!X56>0,Haz!X56,0) -> 0
A70: =IF(AND(Tomb!$F$78,Haz!$M$57>0,Haz!M54>0),Haz!C54,0) -> 0 | G70: =IF(AND(Tomb!$F$78,Haz!$M$57>0,Haz!M54>0,Haz!H54>0),Haz!H54&" m2",0) -> 0 | I70: =IF(AND(Tomb!$F$78,Haz!$M$57>0,Haz!M54>0,Haz!J54>0),Haz!J54,0) -> 0 | K70: =IF(AND(Tomb!$F$78,Haz!$M$57>0,Haz!M54>0,Haz!L54>0),Haz!L54,0) -> 0 | M70: =IF(AND(Tomb!$F$78,Haz!$M$57>0,Haz!M54>0),Haz!M54,0) -> 0 | Q70: ÉVES DÍJ; | W70: = | X70: =IF(Haz!X57>0,Haz!X57,0) -> 647480
A71: =IF(AND(Tomb!$F$78,Haz!$M$57>0,Haz!M56>0),Haz!C56,0) -> 0 | I71: =IF(AND(Tomb!$F$78,Haz!$M$57>0,Haz!M56>0,Haz!I56>0),Haz!I56,0) -> 0 | K71: =IF(AND(Tomb!$F$78,Haz!$M$57>0,Haz!M56>0,Haz!L56>0),Haz!L56,0) -> 0 | M71: =IF(AND(Tomb!$F$78,Haz!$M$57>0,Haz!M56>0),Haz!M56,0) -> 0 | P71: Részletfizetési pótdíj | T71: =IF(AND(Haz!X58>0,Haz!U58>0),Haz!U58,0) -> 0 | W71: + | X71: =IF(Haz!X58>0,Haz!X58,0) -> 0
G72: Biztosítási összeg Ft: | H72: =IF(AND(Tomb!$F$78,Haz!$M$57>0,Haz!I57>0),Haz!I57,0) -> 0 | K72: Éves díj: | L72: =IF(AND(Tomb!$F$78,Haz!$M$57>0),Haz!M57,0) -> 0 | P72: Fizetendő éves díj; | W72: = | X72: =IF(Haz!X59>0,Haz!X59,0) -> 647480
A74: =IF(AND(Tomb!D79,Haz!X36>0),"X",0) -> X | B74: FELVONÓK GÉPTÖRÉS BIZTOSÍTÁSA | P74: 1 / | Q74: =IF(Haz!X60>0,Haz!R60,0) -> 1 | R74: -éves díjrészlet | V74: =IF(Tomb!R64=Tomb!Q64,"","!!!") ->  | W74: = | X74: =IF(Haz!X60>0,Haz!X60,0) -> 647480
A75: =IF(AND(Tomb!D79,Haz!X36>0,Haz!U36>0),FIXED(VLOOKUP(Tomb!W65,Tomb!G34:J37,2,0),0)&" eFt/kár "&FIXED(VLOOKUP(Tomb!W65,Tomb!G34:J37,3,0),0)&" eFt/év/felv.",0) -> 150 eFt/kár 500 eFt/év/felv. | F75: =IF(AND(Tomb!D79,Haz!X36>0,Haz!U36>0),FIXED(VLOOKUP(Tomb!W65,Tomb!G34:J37,4,0),0)&" eFt",0) -> 6 000 eFt | I75: =IF(AND(Tomb!D79,Haz!X36>0,Haz!U36>0),"* "&Haz!U36&" db felvonó =",0) -> * 2 db felvonó = | L75: =IF(AND(Tomb!D79,Haz!X36>0),Haz!X36,0) -> 12000 | Q75: ="A díjfizetés módja; "&IF(Da!$Z$180=1," Inkasszó.",IF(Da!$Z$180=2," Csekk.",IF(Da!$Z$180=3," Átutalás.",""))) -> A díjfizetés módja; Átutalás.
A77: =IF(AND(Tomb!D78,Haz!$X$33>0),"X",0) -> 0 | B77: GÉPJÁRMŰVEK BIZTOSÍTÁSA | J77: =IF(AND(Tomb!D83,Haz!$X$38>0),"X",0) -> X | K77: ASSISTANCE BIZT.
A78: =IF(AND(Tomb!D78,Haz!$X$33>0,Haz!U33>0),Haz!$U$33&" db",0) -> 0 | C78: =IF(AND(Tomb!D78,Haz!$X$33>0)," * "&FIXED(Tomb!J31,0)&" Ft =",0) -> 0 | F78: =IF(AND(Tomb!D78,Haz!$X$33>0),Haz!$X$33,0) -> 0 | L78: =IF(AND(Tomb!D83,Haz!$X$38>0),Haz!$X$38,0) -> 65860 | P78: Kelt;
A80: NYILATKOZAT
A83: E nyilatkozat a | D83: 502 | F83: =Haz!Q2 -> 0 | J83: számú biztosítási ajánlat elválaszthatatlan részét képezi.
A85: Alulírott szerződő elismerem, hogy az ajánlat aláírása előtt átvettem, megismertem és áttanulmányozás után elfogadtam az általam igényelt kockázatok az alábbiakban felsorolt általános, különös és kiegészítő biztosítási feltételeit, külön feltételeit, záradékait, vagyonvédelmi előírásait, valamint az aláírást követően átvettem az ajánlat egy másolati példányát is, illetve nyilatkozom a megjelölt pontokról.
A87: Tömbházak biztosításának általános feltétele (STÁVBI 2011) | N87: Tömbházak felelősségbiztosításának általános feltétele (STÁFBI 2011)
A89: Épületbiztosítás feltétele (STÉBI 2011) | N89: Ingatlanhasználói és- üzemeltetői felelősségbiztosítás feltétele (STIFBI 2011)
A90: Kiegészítő üvegbiztosítás feltétele (STÜBI 2011) | N90: feltétele (STIFBI 2011)
A91: Felvonók kiegészítő géptörés átalánybiztosítás feltétele (STLIBI 2011) | N91: Kiegészítő munkáltatói felelősségbiztosítás feltétele (STÜBI 2011)
A92: feltétele (STLIBI 2011) | N92: Társasház-kezelői kiegészítő felelősségbiztosítás feltétele (STÖFBI 2013)
A93: Kiegészítő gépjármű-biztosítás feltétele (STABI 2011)
A94: SIGNAL Assistance biztosítás feltétele (SASBI 2013) | N94: Feltétel módosítás
A96: Elismerem, hogy az ajánlati nyomtatvány(ok)on és melléklet(ek)en minden, a biztosítással kapcsolatos igényem rögzítésre került, és más szóbeli megállapodás(ok) nem történt(ek). Aláírásommal kizárólagos felelősséget vállalok minden adat helyességéért, még azokért is, melyeket nem sajátkezűleg írtam.
A98: Kijelentem, hogy más biztosító társaságnál jelen ajánlaton biztosításra feladott vagyontárgyakra és kockázatokra érvényes szerződéssel nem rendelkezem.
A99: 1. | B99: A biztosítási összeget saját becslésem alapján határoztam meg. Tudomásul veszem az esetleges alulbiztosítottság következményeit, illetve azt, hogy a biztosítási összegek a feltételekben meghatározottaknak megfelelően értékkövetésre kerülnek.
A100: 2. | B100: Tudomásul veszem, hogy betöréses lopás biztosítási esemény esetén a behatolás helyén és időpontjában ténylegesen megvalósult védelmi szint szerint, a biztosítási feltételekben található táblázatok alapján történik a kártérítés mértékének megállapítása.
B101: Tudomásul veszem, hogy a vagyonvédelmi előírások megvalósítása és fenntartása a Szerződő/Biztosított feladata és kötelezettsége a részére átadott, a szerződés elválaszthatatlan részét képező Vagyonvédelmi Előírások alapján.
B102: Tudomásul veszem, hogy a szerződés megkötése (az ajánlatnak a biztosításközvetítő részéről történő aláírása, illetve annak átvétele) nem jelenti a Biztosító részéről a már meglévő védelmi szint minősítését.
A103: 3. | B103: Kölcsönszerződés fedezetét tartalmazó vagyonbiztosítási szerződés esetén a Szerződő/Biztosított hozzájárulását adja ahhoz, hogy a biztosítási szerződés díjfizetési kötelezettségének 45 napon túli elmulasztása, vagy a biztosítási szerződés bármely okból történő megszűnése esetén a SIGNAL Biztosító Zrt. az engedményest írásban értesítse.
A105: Kijelentem, hogy a SIGNAL Biztosító Zrt. (1123 Budapest, Alkotás u. 50.) nevében eljáró, az ajánlaton megnevezett biztosításközvetítő részletesen és mindenre kiterjedően tájékoztatott az általam megkötni kívánt biztosítási szerződéssel kapcsolatban. A biztosításközvetítő által nyújtott tájékoztatást megértettem. Tudomásul veszem, hogy a vonatkozó szerződési feltételekben külön kiemelésre kerültek az ügyféltájékoztatónak is minősülő rendelkezések, valamint a szokásos szerződéskötési gyakorlattól esetlegesen eltérő rendelkezések, amelyekről a szerződés megkötése előtt külön is tájékoztatást kaptam, azokat megismertem és áttanulmányoztam. A tájékoztatás és az átvett dokumentumok hiánytalanul tartalmazták az alábbi információkat:
A106: ■ | B106: biztosítási időszakot és tartamot; | N106: ■ | O106: fogyasztói panaszokkal foglalkozó szerv megnevezését és székhelyét, valamint a panaszok előterjesztésének egyéb fórumait, illetve a bírói út igénybevételének lehetőségét;
A107: ■ | B107: a kockázatviselés kezdetét, szünetelését és végét;
A108: ■ | B108: biztosítási eseményeket; bejelentésük módját és határidejét;
A109: ■ | B109: díjfizetés, díjmódosítás módját, idejét és lehetőségét az alapbiztosításokra és a kiegészítő kockázatokra; | O109: egyes igények elévülési idejét;
N110: ■ | O110: azoknak a szervezeteknek a felsorolását, amelyeknek a biztosító az ügyfelek adatait – a Bit. 153–165. §-ban foglaltak alapján – továbbíthatja;
A111: ■ | B111: a biztosító szolgáltatásait, azok teljesítésének módját, idejét és a választható lehetőségeket;
A113: ■ | B113: szerződés megszűnésének eseteit; | N113: ■ | O113: a személyes adatok kezelésére vonatkozó elvi és gyakorlati tudnivalókat;
A114: ■ | B114: szerződés felmondásának feltételeit;
A115: ■ | B115: a biztosító mentesülésének feltételeit, az alkalmazott kizárásokat; | N115: ■ | O115: a szerződés jogának, illetve az alkalmazandó jognak a megjelölését.
A116: ■ | B116: értékkövetés módját, mértékét;
D118: Mint Ügyfél, a reklám közlése, továbbá adatkezelés tárgyában az alábbi nyilatkozatot teszem a SIGNAL Biztosító Zrt. (székhely: 1123 Budapest, Alkotás u 50, továbbiakban Biztosító) részére. Ezennel önkéntesen és a megfelelő tájékoztatás birtokában hozzájárulok ahhoz, hogy a Biztosító saját termékeivel, szolgáltatásaival, különleges ajánlataival, hirdetési célból reklámküldeményeket, továbbá egyéb, a fogyasztók tájékozottságát segítő információkat közvetlenül megküldjön részemre levélben vagy a megadott e -mail címre, vagy ismertessen velem telefonon, SMS-ben vagy MMS-ben, illetve egyéb elektronikus csatornán, a szerződés megszűnését követően is, hozzájárulásom visszavonásáig. Kijelentem, hogy az adatkezelésre vonatkozó előzetes tájékoztatást a velem szerződésben álló SIGNAL Biztosító Zrt. részéről teljes körűen megkaptam. Felhatalmazom a Biztosítót arra, hogy fenti adataimat a hozzájárulásommal elfogadott célból, az adatok biztonságáról gondoskodva hozzájárulásom visszavonásáig kezelje.
B120: Igen
B123: Nem
A127: Vállalom, hogy a fenti adataimban bekövetkezett változást 5 munkanapon belül bejelentem az alábbi módok egyikén: e-mail: info@signal.hu, telefon: 06 40 405 405 (helyi tarifával hívható kékszám), fax: 06 1 458 4260, postacím: SIGNAL Biztosító Zrt. 1519 Bp. Pf. 260, valamint személyesen, bármely SIGNAL ügyfélszolgálati irodában. Tudomással bírok arról, hogy a fenti e-mail címre küldött kérésemre, vagy telefonon a 06 40 405 405 számon, postai úton vagy személyesen a Biztosító bármely ügyfélszolgálati irodájában, illetve az Ügyfélportálon a SIGNAL Biztosító Zrt-től bármikor tájékoztatást kérhetek a fenti személyes adataim kezeléséről, illetve jelen nyilatkozatot bármikor, indoklás nélkül, ingyenesen visszavonhatom.
A135: Kelt:
A138: Szerződő neve: | E138: =A5 -> kk | S138: Szerződő aláírása:
A141: Szerződő címe: | D141: =CONCATENATE(A8," ",C8," ",H8) -> 1075 Budapest Rumbach Sebestyén u. 12. | S141: Biztosításközvetítő aláírása:
W142: =IF(Tomb!R42=0,"",IF(Tomb!R42>0,VLOOKUP(Tomb!R42,Ker!A2:K125,2,0))) -> 0

Sheet Ugyf
AA2: 27
B3: SIGNAL Biztosító Zrt. 1123 BUDAPEST, Alkotás u. 50. Tel: 458-4222, Fax: 458-4151 E-mail: info@signal.hu, Internet: http://www.signal.hu | AA3: =SUM(AA64:AA75)+SUM(AA78:AA82)+SUM(AA85:AA89)+SUM(AA92:AA98)+SUM(AA102:AA110) -> 23
AA4: =SUM(AA35:AA44)+SUM(AA49:AA59) -> 4
B5: =IF(Haz!AA2,Haz!C5,"") -> 1075 Budapest Rumbach Sebestyén u. 12. (Társasház) | S5: ügyintéző: | V5: =IF(Tomb!R42=0,"",IF(Tomb!R42>0,VLOOKUP(Tomb!R42,Ker!A2:K150,2,0))) -> 0 | AA5: =SUM(AA20:AA59) -> 5
B6: =IF(Haz!AA2,Haz!C6,IF(Tomb!R42=0,"",IF(Tomb!R42>0,VLOOKUP(Tomb!R42,Ker!A2:K125,2,0)))) -> kk | S6: tel: | T6: 06309342756
B7: részére | S7: fax: | T7: 0613810204
S8: e-mail: | U8: n.gabriella@prezerval.hu
B9: =IF(AND(Haz!$AA$2,Haz!$O$7=0),Haz!C4&" "&Haz!E4&" "&Haz!J4,IF(AND(Haz!$AA$2,Haz!$O$7=1),Haz!C7&" "&Haz!E7&" "&Haz!J7,IF(Tomb!R42=0,"",IF(Tomb!R42>0,VLOOKUP(Tomb!R42,Ker!A2:K125,4,0))))) -> 1075 Budapest Rumbach Sebestyén u. 12. | S9: dátum: | U9: =NOW() -> 2014-09-28T14:55:02.800
B10: Fax: | D10: =IF(Haz!$AA$2,"",IF(Tomb!A51=0,"",IF(Tomb!A51>0,VLOOKUP(Tomb!A51,Ker!A2:K150,7,0)))) ->  | S10: közvetítő: | U10: =Haz!S5 -> 0
B11: e-mail: | D11: =IF(Haz!$AA$2,Haz!L6,IF(Tomb!A51=0,"",IF(Tomb!A51>0,VLOOKUP(Tomb!A51,Ker!A2:K150,9,0)))) -> 0 | V11: =IF(Haz!Q6=0,"",IF(Haz!Q6=1,"Átdolgozás:","")) ->  | W11: =IF(Haz!Q6=0,0,IF(Haz!Q6=1,Haz!R6,0)) -> 0
AA12: =IF(AA5>=3,0,0) -> 0
AA14: =IF($AA$4>=1,0,1) -> 0
B15: Tárgy: | D15: ="Előzetes díjajánlat; "&Haz!C5&" számára" -> Előzetes díjajánlat; 1075 Budapest Rumbach Sebestyén u. 12. (Társasház) számára
AA17: =IF($AA$4>=2,0,1) -> 0
B18: Tisztelt | D18: =IF(AND(Haz!$AA$2,Haz!O6=0),B6&" !",IF(AND(Haz!$AA$2,Haz!O6=1),B6&" Úr!",IF(AND(Haz!$AA$2,Haz!O6=2),B6&" Úrhölgy!",IF(Tomb!$R$42=0,"Üzletkötő!",IF(Tomb!$R$42>0,B6&IF(VLOOKUP(Tomb!R42,Ker!A2:K150,3,0)=1," Úr!",IF(VLOOKUP(Tomb!A51,Ker!A2:K150,3,0)=2," Úrhölgy!",""))))))) -> kk !
B20: Megtiszteltetésként fogadtuk, hogy a(z) | L20: =IF(Haz!C5>"",Haz!C5,0) -> 1075 Budapest Rumbach Sebestyén u. 12. (Társasház)
C21: =IF(Haz!C6>0,Tomb!B115,0) -> Közösképviselője: kk (1075 Budapest Rumbach Sebestyén u. 12. ) | AA21: =IF(C21=0,1,0) -> 0
B22: vagyonbiztosítási ajánlatával a SIGNAL Biztosító Zrt-hez fordultak.
B23: Az Önök által közölt adatok alapján az alábbi előzetes díjajánlattal tudunk a rendelkezésükre állni.
B24: =Tomb!B113 -> Jelen előzetes díjajánlatunk tájékoztató jellegű. A végleges díjajánlat elkészítéséhez helyszíni szemle, kockázat-elbírálás, valamint kárelőzmény megadása szükséges, amelyek módosíthatnak az előzetes díjajánlaton. | AA24: =IF(B24=0,1,0) -> 0
B25: Jelen előzetes díjajánlatunk 30 napig érvényes.
B26: Ezen díjszámítás nem pótolja a SIGNAL biztosító Zrt-nél rendszeresített ajánlati nyomtatvány kitöltését!
AA28: =IF($AA$4>=3,0,1) -> 0
C29: =IF(Haz!I20=100%,"A TELJES TÁRSASHÁZ EGÉSZÉRE, (AZ ALAPÍTÓ OKIRAT SZERINTI KÜLÖNTULAJDONOK",IF(Haz!I20<100%,"AZ ALAPÍTÓ OKIRAT SZERINTI KÖZÖS TULAJDONRA, (AZ ALAPÍTÓ OKIRAT SZERINTI KÜLÖN-","")) -> A TELJES TÁRSASHÁZ EGÉSZÉRE, (AZ ALAPÍTÓ OKIRAT SZERINTI KÜLÖNTULAJDONOK
C30: =Tomb!B101 -> ALAPTERÜLETÉT 225 000 Ft/m2 ÚJRAELŐÁLLÍTÁSI ÉRTÉKEN ALAPULVÉVE)
AA31: =IF($AA$4>=4,0,1) -> 0
B33: Biztosítási összegek, kártérítési limitek a biztosított által feladott értéken, díjszámítás, feltételek:
B35: Biztosított kockázatok:
C36: =IF(Haz!X42>0,"Tűz, elektromos tűz, közvetlen villámcsapás, villámcsapás másodlagos hatása, robbanás, összeroppanás, légi jármű lezuhanása, vihar, felhőszakadás, jégverés, hónyomás, hó dinamikus hatása (lavina), árvíz,",0) -> Tűz, elektromos tűz, közvetlen villámcsapás, villámcsapás másodlagos hatása, robbanás, összeroppanás, légi jármű lezuhanása, vihar, felhőszakadás, jégverés, hónyomás, hó dinamikus hatása (lavina), árvíz, | AA36: =IF(C36=0,1,0) -> 0
C37: =IF(Haz!X42>0,"földrengés, sziklaomlás, kőomlás, földcsuszamlás, ismeretlen építmény vagy üreg beomlása, vezetékesvíz-károk, tűzoltó berendezés kilyukadása, csőtörés-károk, idegen jármű beleütközése,",0) -> földrengés, sziklaomlás, kőomlás, földcsuszamlás, ismeretlen építmény vagy üreg beomlása, vezetékesvíz-károk, tűzoltó berendezés kilyukadása, csőtörés-károk, idegen jármű beleütközése, | AA37: 0
C38: =Tomb!E102 -> idegen tárgyak rádölése, üvegtörés átalánybiztosítása, közös tulajdonú ingóságok kiegészítő biztosítása, | AA38: 0
C39: =IF(Tomb!B103="",0,Tomb!B103) -> felvonók kiegészítő géptörés átalánybiztosítása, . | AA39: 0
C40: =IF(AND(Haz!X42>0,NOT(Tomb!O75),Haz!K30>0),"Nyitva hagyott nyílászáró beázás kára, tető- és panelhézag beázások, vandalizmus, grafiti károk, kerti növényi kultúrák és kerti berendezési/felszerelési tárgyak, kukák kiegészítő biztosítása,",0) -> Nyitva hagyott nyílászáró beázás kára, tető- és panelhézag beázások, vandalizmus, grafiti károk, kerti növényi kultúrák és kerti berendezési/felszerelési tárgyak, kukák kiegészítő biztosítása, | AA40: 0
C41: =IF(AND(Haz!X42>0,NOT(Tomb!O76),Haz!K30>0),"betöréses lopás, rablás kár, homlokzaton, tetőn rögzített felszerelési tárgyak kiegészítő lopás biztosítása,",0) -> betöréses lopás, rablás kár, homlokzaton, tetőn rögzített felszerelési tárgyak kiegészítő lopás biztosítása, | AA41: =IF(C41=0,1,0) -> 0
C42: =IF(Haz!X42>0,Tomb!B109,0) -> Az üvegbiztosítás kártérítési határa, üveg átalánybiztosítás alapján a feltételeinkben leírtak szerint. | AA42: =IF(C42=0,1,0) -> 0
C43: =IF(AND(Haz!X42>0,NOT(Tomb!O75),Haz!K30>0),"A biztosító a STÉBI 2011, 1.6, 1.7, 1.21-23, 1.26, pontokban meghatározott veszélynemekre kártérítésként mindösszesen, évente legfeljebb "&FIXED(Haz!K30,0)&" Ft-ig fizet. Az egyes záradékok külön kártérítési limiteit az átadott feltételek tartalmazzák.",0) -> A biztosító a STÉBI 2011, 1.6, 1.7, 1.21-23, 1.26, pontokban meghatározott veszélynemekre kártérítésként mindösszesen, évente legfeljebb 688 800 Ft-ig fizet. Az egyes záradékok külön kártérítési limiteit az átadott feltételek tartalmazzák. | AA43: 0
C44: =IF(Haz!X44>0,Tomb!B111,0) -> Ingatlanhasználói és -üzemeltetői felelősségbiztosítás illetve a lakók egymásnak okozott káraira. (Feltételeinktől eltérően önrész nélkül) | AA44: 0
C45: =IF(AND(Haz!X44>0,Haz!M61>0),Tomb!B105,0) -> Ingatlanhasználói és -Üzemeltetői felelősségbiztosítás kártérítési limite alapfedezet esetén 15 mFt/kár/év ezen belül a bővített fedezetben meghatározott károk sublimite 7,5 mFt/kár. | AA45: 0
C46: =IF(AND(Haz!X42>0,Haz!X45>0),Tomb!B107,0) -> A SIGNAL Assistance vészelhárítási szolgáltatás limite 25.000.- Ft | AA46: 0
AA48: =IF($AA$4>=5,0,1) -> 1
B49: Vonatkozó általános biztosítási feltételek:
D50: - | E50: Tömbházak Biztosításának Általános Feltétele (STÁVBI 2011)
D51: - | E51: Épületbiztosítás Feltétele (STÉBI 2011)
D52: =IF(E52>0,"-",0) -> 0 | E52: =IF(AND(Tomb!G63>1,Haz!M57>0),"Kiegészítő Üvegbiztosítás Feltétele (STÜBI 2011)",0) -> 0 | AA52: =IF(E52=0,1,0) -> 1
D53: - | E53: =IF(AND(Tomb!B80,Haz!M64>0),"Tömbházak Felelősségbiztosításának Általános Feltétele (STÁFBI 2011)",0) -> Tömbházak Felelősségbiztosításának Általános Feltétele (STÁFBI 2011) | AA53: 0
D54: - | E54: =IF(AND(Tomb!B81,Haz!M61>0),"Ingatlanhasználói és -Üzemeltetői Felelősségbiztosítás Feltételei (STIFBI 2011)",0) -> Ingatlanhasználói és -Üzemeltetői Felelősségbiztosítás Feltételei (STIFBI 2011) | AA54: 0
D55: 0 | E55: =IF(AND(Tomb!B82,Haz!M62>0),"Kiegészítő Munkáltatói Felelősségbiztosítás Feltétele (STUBI 2011)",0) -> 0 | AA55: 1
D56: 0 | E56: =IF(AND(Tomb!B83,Haz!M63>0),"Kiegészítő Társasház-Kezelői Felelősségbiztosítás Feltétele (STÖFBI 2013)",0) -> 0 | AA56: 1
D57: - | E57: =IF(AND(Tomb!B79,Haz!X36>0),"Felvonók Kiegészítő Géptörés Átalánybiztosításnak Feltétele (STLIBI 2011)",0) -> Felvonók Kiegészítő Géptörés Átalánybiztosításnak Feltétele (STLIBI 2011) | AA57: 0
D58: 0 | E58: =IF(AND(Tomb!B78,Haz!X33>0),"Kiegészítő Gépjármű-Biztosítás Feltétele (STABI 2011)",0) -> 0 | AA58: 1
D59: - | E59: =IF(AND(Tomb!D83,Haz!X38>0),"Signal Lakás Assistance Biztosítás Feltétele (SASBI 2013)",0) -> Signal Lakás Assistance Biztosítás Feltétele (SASBI 2013) | AA59: 0
AA60: =IF($AA$3>=2,0,1) -> 0
B61: A fenti kockázatokra biztosított vagyontárgyak | P61: Biztosítási összeg (eFt) | W61: Díj (Ft)
AA63: =IF($AA$3>=3,0,1) -> 0
B64: Teljes épület újraépítési értéke: | J64: =IF(Haz!I20=100%,0,Haz!K20/1000) -> 0 | N64: eFt | AA64: =IF(J64=0,1,0) -> 1
B65: Közös tulajdon aránya: | P65: =IF(Haz!I20=100%,0,Haz!I20*100) -> 0 | Q65: % | AA65: =IF(P65=0,1,0) -> 1
C66: =IF(Haz!I20=100%,"Épület:","Közös tulajdonú épületrészek:") -> Épület: | Q66: =IF(Haz!O20=0,0,Haz!O20/1000) -> 668700 | U66: eFt | AA66: =IF(Q66=0,1,0) -> 0
C67: =VLOOKUP(Tomb!D95,Tomb!J95:K98,2,0) -> Közös tul. tűztávon belüli mellékép. | Q67: =IF(Haz!O21=0,0,Haz!O21/1000) -> 0 | U67: eFt | AA67: 1
C68: ="Központi berendezés:"&IF(Haz!O22>0," ("&Haz!F22&")","") -> Központi berendezés: (Kaputelefonrendszer) | Q68: =IF(Haz!O22=0,0,Haz!O22/1000) -> 100 | U68: eFt | AA68: 0
C69: ="Központi berendezés:"&IF(Haz!O23>0," ("&Haz!F23&")","") -> Központi berendezés: (Lift) | Q69: =IF(Haz!O23=0,0,Haz!O23/1000) -> 20000 | U69: eFt | AA69: 0
C70: ="Kerítés fajtája:"&IF(Haz!O24>0," ("&Haz!F24&")","") -> Kerítés fajtája: | Q70: =IF(Haz!O24=0,0,Haz!O24/1000) -> 0 | U70: eFt | AA70: 1
C71: ="Kerítés fajtája:"&IF(Haz!O25>0," ("&Haz!F25&")","") -> Kerítés fajtája: | Q71: =IF(Haz!O25=0,0,Haz!O25/1000) -> 0 | U71: eFt | AA71: 1
C72: ="Egyéb:"&IF(Haz!O26>0," ("&Haz!F26&")","") -> Egyéb: | Q72: =IF(Haz!O26=0,0,Haz!O26/1000) -> 0 | U72: eFt | AA72: 1
C73: ="Egyéb:"&IF(Haz!O27>0," ("&Haz!F27&")","") -> Egyéb: | Q73: =IF(Haz!O27=0,0,Haz!O27/1000) -> 0 | U73: eFt | AA73: 1
C74: ="Közös tul. ingóságok:"&IF(Haz!O28>0," ("&Haz!F28&")","") -> Közös tul. ingóságok: | Q74: =IF(Haz!O28=0,0,Haz!O28/1000) -> 0 | U74: eFt | AA74: 1
C75: ="Közös tul. ingóságok:"&IF(Haz!O29>0," ("&Haz!F29&")","") -> Közös tul. ingóságok: | Q75: =IF(Haz!O29=0,0,Haz!O29/1000) -> 0 | U75: eFt | AA75: 1
AA77: =IF($AA$3>=4,0,1) -> 0
B78: Biztosított vagyontárgyak összesen: | Q78: =IF(Haz!O30=0,0,Haz!O30/1000) -> 688800 | U78: =IF(Q78>0,"eFt","") -> eFt | W78: =IF(Haz!X42>0,Haz!X42,0) -> 571704 | Z78: =IF(W78>0,"Ft","") -> Ft | AA78: =IF(W78=0,1,0) -> 0
B79: Kiegészítő üvegbiztosítás: | Q79: =IF(Haz!M57>0,Haz!I57,0) -> 0 | U79: =IF(Q79>0,"Ft","") ->  | W79: =IF(Haz!X43>0,Haz!X43,0) -> 0 | Z79: =IF(W79>0,"Ft","") ->  | AA79: =IF(W79=0,1,0) -> 1
B80: Felelősségbiztosítás: | H80: =IF(W80>0,Tomb!B117,0) -> Alap 15 mFt/kár/év + Bővített 7,5 mFt/kár | W80: =IF(Haz!X44>0,Haz!X44,0) -> 103320 | Z80: Ft | AA80: =IF(W80=0,1,0) -> 0
B81: Gépjárművek biztosítása: | J81: =IF(W81>0,FIXED(Tomb!I31,0)&" Ft/jármű/év","") ->  | W81: =IF(Haz!X47>0,Haz!X47,0) -> 0 | AA81: =IF(W81=0,1,0) -> 1
B82: Felvonók géptörés biztosítása: | K82: =IF(AND(Tomb!D79,W82>0),FIXED(VLOOKUP(Tomb!W65,Tomb!G34:J37,2,0),0)&" eFt/kár "&FIXED(VLOOKUP(Tomb!W65,Tomb!G34:J37,3,0),0)&" eFt/év/felv.",0) -> 150 eFt/kár 500 eFt/év/felv. | W82: =IF(Haz!X48>0,Haz!X48,0) -> 12000 | Z82: Ft | AA82: =IF(W82=0,1,0) -> 0
AA83: =IF($AA$3>=5,0,1) -> 0
AA84: =IF($W$85=0,1,0) -> 0
B85: Biztosítási díj: | H85: =IF(Haz!I20=100%,"(a teljes épület biztosításra)",IF(Haz!I20<100%,"(alapító okirat szerinti közös tulajdonra)","")) -> (a teljes épület biztosításra) | W85: =IF(Haz!X49>0,Haz!X49,0) -> 752884 | Z85: Ft | AA85: 0
K86: Engedmények összesen: | R86: =IF(SUM(Haz!X50:Z56)>0,SUM(Haz!U50:U56),0) -> 0.14 | W86: =IF(SUM(Haz!X50:Z56)>0,SUM(Haz!X50:Z56)*-1,0) -> -105404 | Z86: =IF(W86<>0,"Ft","") -> Ft | AA86: 0
K87: Díjfizetési ütem: | O87: =IF(Haz!X59>0,VLOOKUP(Tomb!I49,Tomb!A44:C47,3,0),0) -> (éves) | R87: =IF(Haz!U58>0,Haz!U58,0) -> 0 | T87: =IF(R87>0,"(pótdíj)","") ->  | W87: =IF(Haz!X58>0,Haz!X58,0) -> 0 | AA87: 0
J88: Fizetendő éves díj összesen: | W88: =IF(Haz!X59>0,Haz!X59,0) -> 647480 | Z88: =IF(W88>0,"Ft","") -> Ft | AA88: 0
K89: =IF(Haz!X59>0,VLOOKUP(Tomb!I49,Tomb!A44:C47,2,0)&":",0) -> Éves díj: | W89: =IF(Haz!X60>0,Haz!X60,0) -> 647480 | Z89: Ft | AA89: 0
AA91: =IF($AA$3>=6,0,1) -> 0
B92: Megjegyzések: | AA92: =IF(SUM(AA94:AA98)=3,1,0) -> 1
AA93: =IF(SUM(AA94:AA98)=5,1,0) -> 0
C94: =IF(Tomb!K55=2,"Az építés, átépítés, összeszerelés alatt levő biztosított vagyontárgyakban bekövetkezett kárt a biztosító a káridőpontig ténylegesen felmerült építési, átépítési, összeszerelési költségek mértékéig téríti meg,",0) -> 0 | AA94: =IF(C94=0,1,0) -> 1
B95: =IF(AND(AA95=0,C95>0),"•","") -> • | C95: Szerződő/Biztosított tudomásul veszi az esetleges alulbiztosítottság következményeit. | AA95: =IF(C95=0,1,0) -> 0
B96: =IF(AND(AA96=0,C96>0),"•","") ->  | AA96: =IF(C96=0,1,0) -> 1
C97: =IF(AND(Haz!Q63=1,Haz!Q64>""),Haz!Q64,0) -> 0 | AA97: =IF(C97=0,1,0) -> 1
AA99: =IF($AA$3>=7,0,1) -> 0
B100: Az ájánlat pontos elkészítéséhez az alábbi adatpótlások szükségesek. | AA100: =IF(SUM(AA102:AA115)=15,1,0) -> 0
AA101: =IF(SUM(AA102:AA115)=15,1,0) -> 0
B102: =IF(AND(AA102=0,C102>0),"•","") ->  | C102: =IF(AND(Haz!Q6=1,OR(Haz!R6="",Haz!R6="?")),"Amennyiben a szerződés átdolgozás, úgy a régi kötvényszám megadása szükséges.",0) -> 0 | AA102: =IF(C102=0,1,0) -> 1
B103: =IF(AND(AA103=0,C103>0),"•","") ->  | C103: =IF(Haz!C6=0,"Kérem adja meg, hogy pontosan kinek címezzük az ajánlatot?",0) -> 0 | AA103: =IF(C103=0,1,0) -> 1
C104: =IF(AND(Haz!O7=1,OR(Haz!C7=0,Haz!E7=0,Haz!J7=0)),"A szerződés megkötéséhez a pontos levelezési cím szükséges. (Irányítószámmal együtt)",0) -> 0 | AA104: 1
C105: =IF(OR(Haz!W6=0,Haz!W6<NOW()),"Kérem adja meg, mikor kezdődjön a biztosítás, valamint a díjfizetés ütemét.",0) -> 0 | AA105: 1
C106: =IF(OR(Haz!C4=0,Haz!C4="?",Haz!E4=0,Haz!E4="?",Haz!J4=0,Haz!J4="?"),"A kockázatviselés helyének pontos megadása elengedhetetlen a szerződés megkötéséhez!",0) -> 0 | AA106: 1
B107: • | C107: =IF(Haz!L6="","A szerződő képviseletében eljáró személy Email címének megadása szükséges!","") -> A szerződő képviseletében eljáró személy Email címének megadása szükséges! | AA107: 0
AA108: 1
AA109: 1
AA110: 1
AA111: =IF($AA$3>=8,0,1) -> 0
AA112: =IF($AA$3>=9,0,1) -> 0
AA113: =IF($AA$3>=10,0,1) -> 0
AA114: =IF($AA$3>=11,0,1) -> 0
AA115: =IF($AA$3>=12,0,1) -> 0
B117: A fenti, illetve az itt nem érintett egyéb biztosítási kérdésekben a jövőben is készséggel állunk rendelkezésükre.
B118: Jelen díjajánlat elfogadása esetén kérjük visszajelzésüket, hogy egyeztethessünk a helyszíni kockázat-elbírálásról és az esetleges hiányzó adatok pótlásáról.
AA120: =IF($AA$3>=1,0,1) -> 0
C121: A sikeres üzletkötés reményében!
M123: Tisztelettel;
S125: Biztosítási képviselő
B208: Makró vége

Sheet Da
AA2: 27
B3: SIGNAL Biztosító Zrt. 1123 BUDAPEST, Alkotás u. 50. Tel: 458-4222, Fax: 458-4151 E-mail: info@signal.hu, Internet: http://www.signal.hu | AA3: =SUM(AA41:AA54)+SUM(AA57:AA68) -> 13
AA4: =SUM(AA73:AA80)+SUM(AA82:AA86)+SUM(AA88:AA100)+SUM(AA103:AA108) -> 6
B5: =IF(OR(Haz!H6="",Haz!H6=0),Haz!C5,Haz!H6) -> 1075 Budapest Rumbach Sebestyén u. 12. (Társasház) | S5: ügyintéző: | Z5: =Ugyf!V5 -> 0
B6: =IF(OR(Haz!C6="",Haz!C6=0),0,Haz!C6) -> kk | S6: tel: | Z6: =Ugyf!T6 -> 06309342756
B7: részére | S7: fax: | Z7: =Ugyf!T7 -> 0613810204
S8: e-mail: | Z8: =Ugyf!U8 -> n.gabriella@prezerval.hu
B9: =IF(AND(Haz!$O$7=0,Haz!E4>""),Haz!E4,IF(AND(Haz!$O$7=1,Haz!E7>""),Haz!E7,"Kérem megadni.")) -> Budapest | S9: dátum: | U9: =NOW() -> 2014-09-28T14:55:02.800
B10: =IF(AND(Haz!$O$7=0,Haz!J4>""),Haz!J4,IF(AND(Haz!$O$7=1,Haz!J7>""),Haz!J7,"Kérem megadni.")) -> Rumbach Sebestyén u. 12. | S10: közvetítő: | U10: =Haz!S5 -> 0
B11: =IF(AND(Haz!$O$7=0,Haz!C4>0),Haz!C4,IF(AND(Haz!$O$7=1,Haz!C7>0),Haz!C7,0)) -> 1075 | V11: =IF(Haz!Q6=0,"",IF(Haz!Q6=1,"Átdolgozás:","")) ->  | W11: =IF(Haz!Q6=0,0,IF(Haz!Q6=1,Haz!R6,0)) -> 0
C12: =IF(OR(Haz!L6="",Haz!L6=0),"","e-mail:") ->  | D12: =IF(OR(Haz!L6="",Haz!L6=0),"",Haz!L6) ->  | U12: =IF(OR(Haz!Q6=0,V12>""),"Kötvényszám:","") -> Kötvényszám: | V12: =IF(AND(Haz!Q6=0,Haz!Q2>""),502&Haz!Q2,"") -> 
AA14: =IF($AA$3>=2,0,1) -> 0
B15: Tárgy: | D15: ="Előzetes díjajánlat; "&Haz!C5&" számára" -> Előzetes díjajánlat; 1075 Budapest Rumbach Sebestyén u. 12. (Társasház) számára
AA17: =IF($AA$3>=4,0,1) -> 0
B18: Tisztelt | D18: =IF(AND(Haz!O6=0,Haz!C6="",Haz!L6=""),"Társasházi közös képviselő!",IF(Haz!C6>"",Haz!C6&IF(Haz!O6=0,"!",IF(Haz!O6=1," Úr!",IF(Haz!O6=2," Úrhölgy!",0))),IF(Haz!L6>"",Haz!L6&IF(Haz!O6=0,"!",IF(Haz!O6=1," Úr!",IF(Haz!O6=2," Úrhölgy!",0))),0))) -> kk!
AA20: =IF($AA$3>=6,0,1) -> 0
B21: Megtiszteltetésként fogadtuk, hogy a(z) | L21: =IF(Haz!C5>"",Haz!C5,0) -> 1075 Budapest Rumbach Sebestyén u. 12. (Társasház)
B22: vagyonbiztosítási ajánlatával a SIGNAL Biztosító Zrt-hez fordultak.
B23: Az Önök által közölt adatok alapján az alábbi előzetes díjajánlattal tudunk a rendelkezésükre állni.
B24: A dijajánlat elfogadása esetén kérjük szíveskedjenek kezdeményezni a szerződéskötést.
AA26: =IF($AA$3>=8,0,1) -> 0
B27: I. | C27: A szerződő neve: | H27: =IF(Haz!C5>"",Haz!C5,0) -> 1075 Budapest Rumbach Sebestyén u. 12. (Társasház)
B29: II. | C29: A kockázatviselés igényelt kezdete: | M29: =IF(Haz!W6>0,Haz!W6,0) -> 2014-12-01
B31: III. | C31: A kockázatviselés helye: | J31: =IF(AND(Haz!C4>0,Haz!E4>"",Haz!J4>""),Haz!C4&" "&Haz!E4&" "&Haz!J4,0) -> 1075 Budapest Rumbach Sebestyén u. 12.
B33: IV. | C33: =IF(Haz!I20=100%,"A TELJES TÁRSASHÁZ EGÉSZÉRE, (AZ ALAPÍTÓ OKIRAT SZERINTI KÜLÖNTULAJDONOK",IF(Haz!I20<100%,"AZ ALAPÍTÓ OKIRAT SZERINTI KÖZÖS TULAJDONRA, (AZ ALAPÍTÓ OKIRAT SZERINTI KÜLÖN-","")) -> A TELJES TÁRSASHÁZ EGÉSZÉRE, (AZ ALAPÍTÓ OKIRAT SZERINTI KÜLÖNTULAJDONOK
C34: =Tomb!B101 -> ALAPTERÜLETÉT 225 000 Ft/m2 ÚJRAELŐÁLLÍTÁSI ÉRTÉKEN ALAPULVÉVE)
C36: Biztosítási összegek, kártérítési limitek a biztosított által feladott értéken, díjszámítás, feltételek:
C38: (Biztosítási összegek a mellékelt táblázat szerint).
B40: V. | C40: Vonatkozó általános biztosítási feltételek:
D41: - | E41: Tömbházak Biztosításának Általános Feltétele (STÁVBI 2011)
D42: - | E42: Épületbiztosítás Feltétele (STÉBI 2011)
D43: - | E43: Feltétel Módosítás
D44: =IF(E44>0,"-",0) -> 0 | E44: =IF(AND(Tomb!G63>1,Haz!M57>0),"Kiegészítő Üvegbiztosítás Feltétele (STÜBI 2011)",0) -> 0 | AA44: =IF(E44=0,1,0) -> 1
D45: - | E45: =IF(AND(Tomb!B80,Haz!M64>0),"Tömbházak Felelősségbiztosításának Általános Feltétele (STÁFBI 2011)",0) -> Tömbházak Felelősségbiztosításának Általános Feltétele (STÁFBI 2011) | AA45: 0
D46: - | E46: =IF(AND(Tomb!B81,Haz!M61>0),"Ingatlanhasználói és -Üzemeltetői Felelősségbiztosítás Feltételei (STIFBI 2011)",0) -> Ingatlanhasználói és -Üzemeltetői Felelősségbiztosítás Feltételei (STIFBI 2011) | AA46: 0
D47: 0 | E47: =IF(AND(Tomb!B82,Haz!M62>0),"Kiegészítő Munkáltatói Felelősségbiztosítás Feltétele (STUBI 2011)",0) -> 0 | AA47: 1
D48: 0 | E48: =IF(AND(Tomb!B83,Haz!M63>0),"Kiegészítő Társasház-Kezelői Felelősségbiztosítás Feltétele (STÖFBI 2013)",0) -> 0 | AA48: 1
D49: - | E49: =IF(AND(Tomb!B79,Haz!X36>0),"Felvonók Kiegészítő Géptörés Átalánybiztosításnak Feltétele (STLIBI 2011)",0) -> Felvonók Kiegészítő Géptörés Átalánybiztosításnak Feltétele (STLIBI 2011) | AA49: 0
D50: 0 | E50: =IF(AND(Tomb!B78,Haz!X33>0),"Kiegészítő Gépjármű-Biztosítás Feltétele (STABI 2011)",0) -> 0 | AA50: 1
D51: - | E51: =IF(AND(Tomb!D83,Haz!X38>0),"Signal Lakás Assistance Biztosítás Feltétele (SASBI 2013)",0) -> Signal Lakás Assistance Biztosítás Feltétele (SASBI 2013) | AA51: 0
C53: Teljes épület újraépítési értéke: | O53: =IF(Haz!I20=100%,0,Haz!K20/1000) -> 0 | S53: eFt | AA53: =IF(O53=0,1,0) -> 1
C54: Közös tulajdon aránya: | R54: =IF(Haz!I20=100%,0,Haz!I20*100) -> 0 | S54: % | AA54: =IF(R54=0,1,0) -> 1
AA55: =IF($AA$3>=10,0,1) -> 0
B57: VI. | C57: Biztosított vagyontárgyak | O57: Biztosítási összeg (eFt)
C59: =IF(Haz!I20=100%,"Épület:","Közös tulajdonú épületrészek:") -> Épület: | O59: =IF(Haz!O20=0,0,Haz!O20/1000) -> 668700 | S59: eFt | AA59: =IF(O59=0,1,0) -> 0
C60: =VLOOKUP(Tomb!D95,Tomb!J95:K98,2,0) -> Közös tul. tűztávon belüli mellékép. | O60: =IF(Haz!O21=0,0,Haz!O21/1000) -> 0 | S60: eFt | AA60: =IF(O60=0,1,0) -> 1
C61: ="Központi berendezés:"&IF(Haz!O22>0," ("&Haz!F22&")","") -> Központi berendezés: (Kaputelefonrendszer) | O61: =IF(Haz!O22=0,0,Haz!O22/1000) -> 100 | S61: eFt | AA61: 0
C62: ="Központi berendezés:"&IF(Haz!O23>0," ("&Haz!F23&")","") -> Központi berendezés: (Lift) | O62: =IF(Haz!O23=0,0,Haz!O23/1000) -> 20000 | S62: eFt | AA62: 0
C63: ="Kerítés fajtája:"&IF(Haz!O24>0," ("&Haz!F24&")","") -> Kerítés fajtája: | O63: =IF(Haz!O24=0,0,Haz!O24/1000) -> 0 | S63: eFt | AA63: 1
C64: ="Kerítés fajtája:"&IF(Haz!O25>0," ("&Haz!F25&")","") -> Kerítés fajtája: | O64: =IF(Haz!O25=0,0,Haz!O25/1000) -> 0 | S64: eFt | AA64: 1
C65: ="Egyéb:"&IF(Haz!O26>0," ("&Haz!F26&")","") -> Egyéb: | O65: =IF(Haz!O26=0,0,Haz!O26/1000) -> 0 | S65: eFt | AA65: 1
C66: ="Egyéb:"&IF(Haz!O27>0," ("&Haz!F27&")","") -> Egyéb: | O66: =IF(Haz!O27=0,0,Haz!O27/1000) -> 0 | S66: eFt | AA66: 1
C67: ="Közös tul. ingóságok:"&IF(Haz!O28>0," ("&Haz!F28&")","") -> Közös tul. ingóságok: | O67: =IF(Haz!O28=0,0,Haz!O28/1000) -> 0 | S67: eFt | AA67: 1
C68: ="Közös tul. ingóságok:"&IF(Haz!O29>0," ("&Haz!F29&")","") -> Közös tul. ingóságok: | O68: =IF(Haz!O29=0,0,Haz!O29/1000) -> 0 | S68: eFt | AA68: 1
AA70: =IF($AA$3>=12,0,1) -> 0
H71: összesen: | O71: =IF(Haz!O30=0,0,Haz!O30/1000) -> 688800 | S71: eFt | AA71: 0
B73: VII. | C73: Biztosított kockázatok:
C74: =IF(Haz!X42>0,"Tűz, elektromos tűz, közvetlen villámcsapás, villámcsapás másodlagos hatása, robbanás, összeroppanás, légi jármű lezuhanása, vihar, felhőszakadás, jégverés, hónyomás, hó dinamikus hatása (lavina), árvíz,",0) -> Tűz, elektromos tűz, közvetlen villámcsapás, villámcsapás másodlagos hatása, robbanás, összeroppanás, légi jármű lezuhanása, vihar, felhőszakadás, jégverés, hónyomás, hó dinamikus hatása (lavina), árvíz, | AA74: =IF(C74=0,1,0) -> 0
C75: =IF(Haz!X42>0,"földrengés, sziklaomlás, kőomlás, földcsuszamlás, ismeretlen építmény vagy üreg beomlása, vezetékesvíz-károk, tűzoltó berendezés kilyukadása, csőtörés-károk, idegen jármű beleütközése,",0) -> földrengés, sziklaomlás, kőomlás, földcsuszamlás, ismeretlen építmény vagy üreg beomlása, vezetékesvíz-károk, tűzoltó berendezés kilyukadása, csőtörés-károk, idegen jármű beleütközése, | AA75: 0
C76: =IF(AND(Haz!X42>0,NOT(Tomb!O75),Haz!K30>0),"Nyitva hagyott nyílászáró beázás kára, tető- és panelhézag beázások, vandalizmus, grafiti károk, kerti növényi kultúrák és kerti berendezési/felszerelési tárgyak, kukák kiegészítő biztosítása,",0) -> Nyitva hagyott nyílászáró beázás kára, tető- és panelhézag beázások, vandalizmus, grafiti károk, kerti növényi kultúrák és kerti berendezési/felszerelési tárgyak, kukák kiegészítő biztosítása, | AA76: 0
C77: =IF(AND(Haz!X42>0,NOT(Tomb!O76),Haz!K30>0),"betöréses lopás, rablás kár, homlokzaton, tetőn rögzített felszerelési tárgyak kiegészítő lopás biztosítása,",0) -> betöréses lopás, rablás kár, homlokzaton, tetőn rögzített felszerelési tárgyak kiegészítő lopás biztosítása, | AA77: 0
C78: =Tomb!E102 -> idegen tárgyak rádölése, üvegtörés átalánybiztosítása, közös tulajdonú ingóságok kiegészítő biztosítása, | AA78: 0
C79: =IF(Tomb!B103="",0,Tomb!B103) -> felvonók kiegészítő géptörés átalánybiztosítása, . | AA79: 0
C80: =IF(Haz!X44>0,Tomb!B111,0) -> Ingatlanhasználói és -üzemeltetői felelősségbiztosítás illetve a lakók egymásnak okozott káraira. (Feltételeinktől eltérően önrész nélkül) | AA80: 0
AA81: =IF($AA$4>=5,0,1) -> 0
AA82: =IF($W$85=0,1,0) -> 0
B83: A fenti kockázatokra | J83: Biztosítási összeg (eFt) | R83: díjtétel (‰) | W83: Díj (Ft) | AA83: =IF($W$85=0,1,0) -> 0
AA84: =IF($W$85=0,1,0) -> 0
C85: Biztosított vagyontárgyak | K85: =IF(Haz!O30>0,Haz!O30/1000,0) -> 688800 | R85: =IF(AND(K85>0,W85>0),W85/K85,0) -> 0.9400116144 | W85: =IF(AND(Haz!O30>0,Haz!X59>0),Haz!X59,0) -> 647480 | AA85: =IF($W$85=0,1,0) -> 0
AA86: =IF($W$85=0,1,0) -> 0
AA87: =IF($AA$4>=6,1,0) -> 1
B88: VIII. | C88: Záradékok:
C89: =IF(Haz!X42>0,Tomb!B109,0) -> Az üvegbiztosítás kártérítési határa, üveg átalánybiztosítás alapján a feltételeinkben leírtak szerint. | AA89: =IF(C89=0,1,0) -> 0
C90: =IF(AND(Haz!X44>0,Haz!M61>0),Tomb!B105,0) -> Ingatlanhasználói és -Üzemeltetői felelősségbiztosítás kártérítési limite alapfedezet esetén 15 mFt/kár/év ezen belül a bővített fedezetben meghatározott károk sublimite 7,5 mFt/kár. | AA90: =IF(C90=0,1,0) -> 0
C91: =IF(AND(Haz!X44>0,Haz!M62>0),Tomb!E106,0) -> 0 | AA91: =IF(C91=0,1,0) -> 1
C92: =IF(AND(Haz!X42>0,Haz!X45>0),Tomb!B107,0) -> A SIGNAL Assistance vészelhárítási szolgáltatás limite 25.000.- Ft | AA92: =IF(C92=0,1,0) -> 0
C93: =IF(AND(Haz!X42>0,NOT(Tomb!O75),Haz!K30>0),"A biztosító a STÉBI 2011, 1.6, 1.7, 1.21-23, 1.26, pontokban meghatározott veszélynemekre kártérítésként mindösszesen, évente legfeljebb "&FIXED(Haz!K30,0)&" Ft-ig fizet. Az egyes záradékok külön kártérítési limiteit az átadott feltételek tartalmazzák.",0) -> A biztosító a STÉBI 2011, 1.6, 1.7, 1.21-23, 1.26, pontokban meghatározott veszélynemekre kártérítésként mindösszesen, évente legfeljebb 688 800 Ft-ig fizet. Az egyes záradékok külön kártérítési limiteit az átadott feltételek tartalmazzák. | AA93: 0
C94: =IF(AND(Haz!X48,Haz!X57>0),Tomb!B121,0) -> Felvonók géptörés biztosításának kártérítési limite 150 eFt/kár 500 eFt/év /felvonó. | AA94: 0
C95: =IF(AND(Haz!X47,Haz!X57>0),Tomb!B123,0) -> 0 | AA95: 1
C96: =IF(Tomb!K55=2,"Az építés, átépítés, összeszerelés alatt levő biztosított vagyontárgyakban bekövetkezett kárt a biztosító a káridőpontig ténylegesen felmerült építési, átépítési, összeszerelési költségek mértékéig téríti meg,",0) -> 0 | AA96: 1
C97: =IF(Tomb!K55=2,"a káridőponti beszerzési árak, illetve előállítási vagy építési költségek figyelembevételével.",0) -> 0 | AA97: =IF(C97=0,1,0) -> 1
C98: =IF(AND(Haz!Q63=1,Haz!Q64>""),Haz!Q64,0) -> 0 | AA98: =IF(C98=0,1,0) -> 1
C99: =IF(Tomb!A31=1,0,"A biztosítási szerződés "&INDEX(Tomb!C30:C33,Tomb!A31)&" eFt/kár levonásos önrész tartalmaz.") -> 0 | AA99: =IF(C99=0,1,0) -> 1
C100: A további kockázatok egyes szublimiteit az átadott feltételek tartalmazzák. | AA100: 0
AA102: =IF($AA$4>=2,0,1) -> 0
B103: IX. | C103: Biztosítási díj | G103: =IF(Haz!I20=100%,"(a teljes épület biztosításra)",IF(Haz!I20<100%,"(alapító okirat szerinti közös tulajdonra)","")) -> (a teljes épület biztosításra) | AA103: =IF($O$105=0,1,0) -> 0
AA104: =IF($O$105=0,1,0) -> 0
F105: Éves díj összesen: | O105: =IF(Haz!X59>0,Haz!X59,0) -> 647480 | R105: Ft | AA105: =IF($O$105=0,1,0) -> 0
F106: Díjfizetési ütem: | J106: =IF(Haz!X59>0,VLOOKUP(Tomb!I49,Tomb!A44:C47,3,0),0) -> (éves) | AA106: =IF($O$105=0,1,0) -> 0
F107: =IF(Haz!X59>0,VLOOKUP(Tomb!I49,Tomb!A44:C47,2,0)&":",0) -> Éves díj: | O107: =IF(Haz!X60>0,Haz!X60,0) -> 647480 | R107: Ft | AA107: =IF($O$107=0,1,0) -> 0
AA108: =IF($O$107=0,1,0) -> 0
AA109: =IF($AA$4>=3,1,0) -> 1
B110: X. | C110: Egyebek
C112: A biztosítási szerződés értékkövetéses rendszerű. | AA112: =IF(C112=0,1,0) -> 0
C113: =Tomb!B113 -> Jelen előzetes díjajánlatunk tájékoztató jellegű. A végleges díjajánlat elkészítéséhez helyszíni szemle, kockázat-elbírálás, valamint kárelőzmény megadása szükséges, amelyek módosíthatnak az előzetes díjajánlaton. | AA113: 0
C114: Jelen díjajánlat elfogadása esetén kérjük visszajelzésüket, hogy egyeztethessünk a helyszíni kockázat-elbírálásról és az esetleges hiányzó adatok pótlásáról. | AA114: 0
C115: A TÖMBHÁZAK BIZTOSÍTÁSÁNAK ÁLTALÁNOS FELTÉTELE (STÁVBI 2011). 10.4.1. pontjában leírtaknak megfelelően az alulbiztosítottság következményeit a szerződő tudomásul veszi. | AA115: 0
C116: Jelen előzetes díjajánlatunk 30 napig érvényes. | AA116: 0
C117: A vonatkozó feltételeket az előzetes díjajánlattal együtt postázzuk/átadtuk. | AA117: 0
C118: A fenti, illetve az itt nem érintett egyéb biztosítási kérdésekben a jövőben is készséggel állunk rendelkezésükre. | AA118: 0
C120: Üdvözlettel:
AA122: =IF($AA$4>=4,0,1) -> 0
I123: =IF(Tomb!R39,VLOOKUP(Ker!G154,Tomb!R36:T38,2,0),IF(K85<=Tomb!R34*1000,Tomb!S34,IF(AND(K85>Tomb!R34*1000,K85<=Tomb!R35*1000),Tomb!S35,Tomb!S36))) -> Kiss Zoltán | T123: =IF(K85<=Tomb!R34*1000,Tomb!S35,IF(AND(K85>Tomb!R34*1000,K85<=Tomb!R35*1000),Tomb!S39,Tomb!S39)) -> Mikó János
I124: =IF(Tomb!R39,VLOOKUP(Ker!G154,Tomb!R36:T38,3,0),IF(K85<=Tomb!R34*1000,Tomb!T34,IF(AND(K85>Tomb!R34*1000,K85<=Tomb!R35*1000),Tomb!T35,Tomb!T36))) -> Mid-Office vagyon kockázatvállaló | T124: =IF(K85<=Tomb!R34*1000,Tomb!T35,IF(AND(K85>Tomb!R34*1000,K85<=Tomb!R35*1000),Tomb!T39,Tomb!T39)) -> kockázatvállaló, termékfelelős
B126: Az előzetes díjajánlat egy példányát a cégszerű aláírás után átvettem.
AA127: =IF($AA$4>=7,0,1) -> 1
D129: Dátum: ………………………………………………………… | U129: …………………………………………..
U130: Szerződő cégszerű aláírása
B131: A szerződő nyilatkozata:
B133: ="Az "&IF(OR(V12>"",W11=0),V12,W11)&" számú díjszámítással egyetértünk, az abban foglaltakat elfogadjuk. Ez alapján kérjük, szíveskedjenek a díjszámítást biztosítási ajánlatként kezelni, és a biztosítási kötvényt részünkre kiállítani az alábbi adatok figyelembevételével:" -> Az számú díjszámítással egyetértünk, az abban foglaltakat elfogadjuk. Ez alapján kérjük, szíveskedjenek a díjszámítást biztosítási ajánlatként kezelni, és a biztosítási kötvényt részünkre kiállítani az alábbi adatok figyelembevételével:
B135: Szerződő pénzintézetének neve: | T135: fiókja:
H137: címe:
B139: Szerződő teljes számlaszáma: | T139: adószáma:
B141: Biztosított (ha nem azonos a Szerződővel):
C143: neve: | O143: címe:
F145: teljes számlaszáma: | T145: adószáma: | U145: 28544661-1-43
B147: Kedvezményezett:
C149: neve: | O149: címe:
F151: teljes számlaszáma: | T151: Szerződés száma:
S153: Hitel összege:
B155: A szerződő ÁFA visszatérítésre jogosult: | S155: X | T155: Igen | W155: Nem
B157: A biztosítandó vagyontárgyak tulajdonviszonya: | T157: Idegen | V157: X | W157: Saját
B159: A biztosítandó vagyontárgyak kifogástalan, üzemképes állapotban vannak: | S159: X | T159: Igen | W159: Nem
B161: Az igényelt biztosítást más biztosító elutasította vagy felmondta: | T161: Igen | V161: X | W161: Nem
B163: Ha igen, az elutasítás részletes indoklása, leírása:
B166: A korábbi károk részletes leírása:
B170: Az 1995. évi XCVI. Törvény (Bit.), valamint a 45/1996. (XII. 29.) PM rendeletben foglaltaknak megfelelően a biztosítótársaságoknak bejelentési kötelezettségük van a Pénzügyi Szervezetek Állami Felügyelete felé az ún. nagykockázatokról.
B171: Fenti bejelentés teljesítéséhez a szerződés biztosítottjának adatairól az alábbiakban nyilatkozunk:
B173: Mérleg főösszege: | P173: meghaladja az 1,5 milliárd forintot | T173: Igen | V173: x | W173: Nem
B175: Nettó üzleti forgalom: | P175: meghaladja a 3 milliárd forintot | T175: Igen | V175: x | W175: Nem
B177: Átlagos alkalmazotti létszám: | P177: meghaladja az 1000 főt | T177: Igen | V177: x | W177: Nem
B179: Díjfizetés módja;
Z180: 3
B181: A közölt adatok a valóságnak megfelelnek:
B183: Dátum: | L183: Szerződő cégszerű aláírása:
F185: Ft-ot, azaz | S185: Ft-ot a biztosításközvetítő átvett.
B187: Utalás esetén kérjük a díjat az ajánlatszámra hivatkozva a 11500092-11041623 számlaszámra teljesíteni.
B189: A biztosításközvetítő aláírása:
C191: A SIGNAL Biztosító Zrt. belső feljegyzései:
C193: Biztosításközvetítő neve: | I193: =IF(Haz!S5>"",Haz!S5,0) -> 0 | Q193: kódja: | S193: =IF(Tomb!R42>0,VLOOKUP(Tomb!R42,Ker!A2:K150,10,0),0) -> 0
C194: Képviselet neve: | G194: =IF(Tomb!T42>0,VLOOKUP(Tomb!T42,Tomb!R43:S50,2,0)) -> 
C195: Dátum: | L195: Szakreferens aláírása:
C197: Kötvényesíthető: | Q197: Dátum:
C198: Kötvényesítésre került: | Q198: Dátum:
B201: SIGNAL Biztosító Zrt. 1123 Budapest, Alkotás utca 50.
B202: Adószám: 10828704-2-44 | J202: SzJ szám: 66.03.40.0 | R202: ÁFA: tárgyi adómentes
B208: Makró vége!

Sheet Resz (2) (hidden)
A1: SZERZŐDŐ | D1: =IF(Haz!C5>"",Haz!C5,0) -> 1075 Budapest Rumbach Sebestyén u. 12. (Társasház) | N1: =Tomb!Q1 -> 0 | O1: Ajánlat száma: | V1: =IF(AND(Haz!Q6=0),"Új szerződés:",IF(AND(Haz!Q6=1,Haz!R6>""),"Átdolgozás:",0)) -> Új szerződés: | W1: =IF(AND(Haz!Q6=0,Haz!Q2>""),502&Haz!Q2,IF(AND(Haz!Q6=1,Haz!R6>""),Haz!R6,0)) -> 0
A3: SZERZŐDŐ KÉPVISELÉTÉBEN ELJÁRÓ SZEMÉLY | Q3: Képviselőj: | V3: Kódja: | W3: =IF(Tomb!R42>0,VLOOKUP(Tomb!R42,Ker!A2:K150,10,0)) -> 0
A4: Név: | G4: Vállalkozás: | L4: E-mail címe: | Q4: =IF(Haz!S5>"",Haz!S5,0) -> 0
A5: =IF(Haz!C6>"",Haz!C6,0) -> kk | G5: =IF(Haz!H6>"",Haz!H6,0) -> 0 | L5: =IF(Haz!L6>"",Haz!L6,0) -> 0
A6: Irányítószám: | C6: Helység: | H6: Út, utca, tér:
Q7: Biztosítás igényelt kezdete: | W7: =IF(Haz!W6>0,Haz!W6,0) -> 2014-12-01
A8: =IF(AND(Haz!$O$7=1,OR(Haz!C6>"",Haz!H6>""),Haz!C7>0),Haz!C7,IF(AND(Haz!$O$7=0,OR(Haz!C6>"",Haz!H6>""),Haz!C7>=0),Haz!C4,0)) -> 1075 | C8: =IF(AND(Haz!$O$7=1,OR(Haz!C6>"",Haz!H6>""),Haz!E7>0),Haz!E7,IF(AND(Haz!$O$7=0,OR(Haz!C6>"",Haz!H6>""),Haz!E7>=0),Haz!E4,0)) -> Budapest | H8: =IF(AND(Haz!$O$7=1,OR(Haz!C6>"",Haz!H6>""),Haz!J7>0),Haz!J7,IF(AND(Haz!$O$7=0,OR(Haz!C6>"",Haz!H6>""),Haz!J7>=0),Haz!J4,0)) -> Rumbach Sebestyén u. 12.
A10: KOCKÁZATVISELÉS HELYE | O10: HITELFEDEZETI KEDVEZMÉNYEZETT
A11: Irányítószám: | C11: Helység: | H11: Út, utca, tér: | O11: Kedvezményezett hitelnyújtó neve, címe : | U11: Hitelszerződés összege: | X11: Hitelszerződés száma:
A12: =IF(Haz!C4>0,Haz!C4,0) -> 1075 | C12: =IF(Haz!E4>0,Haz!E4,0) -> Budapest | H12: =IF(Haz!J4>0,Haz!J4,0) -> Rumbach Sebestyén u. 12. | O12: =IF(Resz!O12>"",Resz!O12,"") ->  | U12: =IF(Resz!U12>"",Resz!U12,"") ->  | X12: =IF(Resz!X12>"",Resz!X12,"") -> 
A14: ÁLTALÁNOS ADATOK : | X14: Részletező; | Y14: 12
A15: TULAJDONFORMA: | G15: =IF(Tomb!C55=1,"X",0) -> X | H15: Társasházi tulajdon | L15: =IF(Tomb!C55=2,"X",0) -> 0 | M15: Szövetkezeti tulajdon | Q15: ÁFA-körbe tartozik: | U15: =IF(Tomb!C59=1,"X",0) -> 0 | V15: igen | X15: =IF(Tomb!C59=2,"X",0) -> X | Y15: nem
A16: RENDELTETÉS: | G16: =IF(Tomb!G55=1,"X",0) -> X | H16: Lakóépület | L16: =IF(Tomb!G55=2,"X",0) -> 0 | M16: Nyaralóépület | Q16: =IF(Tomb!G55=3,"X",0) -> 0 | R16: Üzletház | V16: =IF(Tomb!G55=4,"X",0) -> 0 | W16: Irodaház
A17: AZ ÉPÜLET JELLEMZŐI: | I17: Befejezett épület: | M17: =IF(Tomb!K55=1,"X",0) -> X | N17: igen | O17: =IF(Tomb!K55=2,"X",0) -> 0 | P17: nem | R17: Műemlék(jellegű) épület: | W17: =IF(Tomb!K59=1,"X",0) -> 0 | X17: igen | Y17: =IF(Tomb!K59=2,"X",0) -> X | Z17: nem
A18: Épület kora: | D18: =IF(Haz!L11>0,Haz!L11,0) -> 71 | E18: =IF(D18>0,"év",0) -> év | I18: Szintek száma: | L18: =IF(Haz!L13>0,Haz!L13,0) -> 8 | M18: =IF(L18>0,"szintes",0) -> szintes | R18: Albetétek / külön tulajdonok száma: | X18: 20 | Z18: =IF(X18>0,"db",0) -> db
A19: FALAZAT: | F19: =IF(Tomb!O54=1,"X",0) -> X | G19: tégla | I19: =IF(Tomb!O54=2,"X",0) -> 0 | J19: panel | M19: =IF(Tomb!O54=3,"X",0) -> 0 | N19: monolit vb. | R19: =IF(Tomb!O54=4,"X",0) -> 0 | S19: bauxitbeton | V19: =IF(Tomb!O54=5,"X",0) -> 0 | W19: egyéb: | X19: =IF(Haz!S11=1,Haz!P12,0) -> 0
A20: FÖDÉM: | F20: =IF(Tomb!S55=3,"X",0) -> 0 | G20: közbenső fafödém | K20: =IF(Tomb!S55=4,"X",0) -> 0 | L20: záró fafödém belső nyitott csapadék-elvezetéssel | V20: =IF(Tomb!S55=5,"X",0) -> 0 | W20: bauxitbeton födém
A21: A biztosított épületben „C”, vagy annál magasabb tűzveszélyességű tevékenységet folytatnak: | Q21: =IF(Tomb!W55=1,"X",0) -> 0 | R21: igen | S21: =IF(Haz!S14=1,Haz!P15,0) -> 0 | X21: =IF(Tomb!W55=2,"X",0) -> X | Y21: nem
A22: AZ ÉPÜLET ÁLLAGA: | O22: 5 éven belül felújítva | Q22: Karbantar- tásra szorul | V22: 5 éven belül felújítva | X22: Karbantar- tásra szorul
O23: felújítva | V23: felújítva
A24: Az épületen beázások, csőtörések nyomai láthatóak: | I24: =IF(Tomb!K65,"X",0) -> 0 | J24: igen | K24: =IF(Tomb!M64,"X",0) -> X | L24: nem | M24: Víz csőhálózat: | P24: =IF(AND(Tomb!I73,Tomb!L73),"X",0) -> 0 | R24: =IF(AND(Tomb!K73,Tomb!L73),"X",0) -> 0 | T24: Homlokzatok | W24: =IF(AND(Tomb!I77,Tomb!L77),"X",0) -> 0 | Y24: =IF(AND(Tomb!K77,Tomb!L77),"X",0) -> 0
A25: Az épület teteje hullámos, cserepezés, bádogozás hiányos: | I25: =IF(Tomb!K66,"X",0) -> 0 | J25: igen | K25: =IF(Tomb!M65,"X",0) -> X | L25: nem | M25: Fűtés csőhálózat | P25: =IF(AND(Tomb!I74,Tomb!L74),"X",0) -> 0 | R25: =IF(AND(Tomb!K74,Tomb!L74),"X",0) -> 0 | T25: Tető szerkezet | W25: =IF(AND(Tomb!I78,Tomb!L78),"X",0) -> 0 | Y25: =IF(AND(Tomb!K78,Tomb!L78),"X",0) -> 0
A26: Épületen ferde (kb. 45o-os) repedés(ek) van(nak): | I26: =IF(Tomb!K67,"X",0) -> 0 | J26: igen | K26: =IF(Tomb!M66,"X",0) -> X | L26: nem | M26: Csatorna | P26: =IF(AND(Tomb!I75,Tomb!L75),"X",0) -> 0 | R26: =IF(AND(Tomb!K75,Tomb!L75),"X",0) -> 0 | T26: Tetőszigetelés | W26: =IF(AND(Tomb!I79,Tomb!L79),"X",0) -> 0 | Y26: =IF(AND(Tomb!K79,Tomb!L79),"X",0) -> 0
A27: Épületen dúcolás utólagos alátámasztás található: | I27: =IF(Tomb!K68,"X",0) -> 0 | J27: igen | K27: =IF(Tomb!M67,"X",0) -> X | L27: nem | M27: Gázcső hálózat | P27: =IF(AND(Tomb!I76,Tomb!L76),"X",0) -> 0 | R27: =IF(AND(Tomb!K76,Tomb!L76),"X",0) -> 0 | T27: Tetőhéjazat | W27: =IF(AND(Tomb!I80,Tomb!L80),"X",0) -> 0 | Y27: =IF(AND(Tomb!K80,Tomb!L80),"X",0) -> 0
A28: KÁRELŐZMÉNYEK: | F28: =IF(U28=X28,"Döntsd el, hogy volt vagy nem volt? >",0) -> 0 | M28: Korábbi kár(ok) az ajánlatot megelőző öt évben: | U28: =IF(Resz!U28>"",Resz!U28,"") ->  | V28: volt | W28: =IF(AND(U28="X",X28="X"),"?",0) -> 0 | X28: =IF(Resz!X28>"",Resz!X28,"") -> X | Y28: nem volt
M29: (függetlenül attól, hogy a káridőpontjában volt-e élő biztosítás)
A30: kár időpontja: | G30: jellege: | M30: kár időpontja: | S30: jellege: | T30: Csőtörés
B31: összege: | N31: összege:
A32: BIZTOSÍTÁSI ELŐZMÉNYEK: | G32: Ha volt biztosítás, akkor az előző biztosító neve: | Q32: kötvényszáma: | V32: megszűnés oka:
A34: LAKÓ / ÜDÜLŐ ÉPÜLETBIZTOSÍTÁS BIZTOSÍTÁSI ÖSSZEG SZÁMÍTÁSA
A35: Megnevezés | J35: Kategória | M35: Külön tul. összesített m2-re | Q35: Ft / m2 | T35: Okiratbani jele | W35: Biztosítási összeg [Ft]
A36: Lakó / üdülőépület | J36: =IF(AND(Tomb!$G$55<5,Haz!$B$17=1,Haz!G18>""),Haz!G18,0) -> A / II | M36: 100 | P36: =IF(M36>0,"m2",0) -> m2 | Q36: =IF(AND(Tomb!$G$55<5,Haz!$B$17=1,Haz!H18>0,Haz!O18>0),(Haz!O18/Haz!H18),0) -> 225000 | T36: =IF(Resz!T36>"",Resz!T36,"") ->  | W36: =IF(AND(M36>0,Q36>0),ROUND(M36*Q36/1000,0),0) -> 22500 | Z36: .000.-
A37: =Resz!A37 -> 0 | H37: Garázs | J37: =IF(AND(Tomb!$G$55=5,Haz!$B$17=1,Haz!G19>""),Haz!G19,0) -> 0 | M37: =IF(AND(Tomb!$G$55=5,Haz!$B$17=1,Haz!H19>0),FIXED(Haz!H19,0)&" m2",0) -> 0 | Q37: =IF(AND(Tomb!$G$55=5,Haz!$B$17=1,Haz!H19>0,Haz!O19>0),(Haz!O19/Haz!H19),0) -> 0 | W37: =IF(AND(Tomb!$G$55=5,Haz!$B$17=1,Haz!O19>0),(Haz!O19/1000),0) -> 0 | Z37: .000.-
A39: Épületnek a közös tulajdoni része..........……….. | I39: =IF(AND(Haz!$B$17=1,Haz!K20>0),Haz!I20,0) -> 1 | W39: =IF(SUM(W36:Y37)>0,SUM(W36:Y37)*I39,0) -> 22500 | Z39: .000.-
A40: =Resz!A40 -> 0 | J40: =IF(AND(Haz!$B$17=1,Haz!F21>"",Haz!H21>"",Haz!I21>0),Haz!F21&" / "&Haz!H21,0) -> 0 | P40: =IF(N40>0,"m2",0) -> 0 | Q40: =IF(AND(Haz!$B$17=1,Haz!F21>"",Haz!H21>"",Haz!I21>0),(Haz!O21/Haz!I21),0) -> 0 | W40: =IF(AND(N40>0,Q40>0),ROUND(N40*Q40,0),0) -> 0 | Z40: .000.-
A41: Központi berendezés : | E41: =IF(AND(Haz!$B$17=1,Haz!O22>0,Haz!F22>""),Haz!F22,0) -> Kaputelefonrendszer | H41: 2 | I41: =IF(AND(Haz!$B$17=1,Haz!O22>0,Haz!I22>0),"db",0) -> db | J41: 150000 | L41: =IF(AND(Haz!$B$17=1,Haz!O22>0,Haz!K22>0),"Ft/db",0) -> Ft/db | N41: =IF(AND(Haz!$B$17=1,Haz!O23>0,Haz!F23>""),Haz!F23,0) -> Lift | Q41: 0 | R41: =IF(AND(Haz!$B$17=1,Haz!O23>0,Haz!I23>0),"db",0) -> db | S41: 10000 | U41: =IF(AND(Haz!$B$17=1,Haz!O23>0,Haz!K23>0),"Ft/db",0) -> Ft/db | W41: =IF(AND(Haz!$B$17=1,OR(Haz!O22>0,Haz!O23>0)),((H41*J41+Q41*S41)/1000),0) -> 300 | Z41: .000.-
A42: Kerítés fajtája (egy kerítést csak egy lapon lehet felvenni): | I42: =IF(AND(Haz!$B$17=1,Haz!O24>0,Haz!F24>""),Haz!F24,0) -> 0 | K42: =IF(AND(Haz!$B$17=1,Haz!O24>0,Haz!I24>0),Haz!I24&" fm",0) -> 0 | M42: =IF(AND(Haz!$B$17=1,Haz!O24>0,Haz!K24>0),FIXED(Haz!K24,0)&" Ft/fm",0) -> 0 | P42: =IF(AND(Haz!$B$17=1,Haz!O25>0,Haz!F25>""),Haz!F25,0) -> 0 | R42: =IF(AND(Haz!$B$17=1,Haz!O25>0,Haz!I25>0),Haz!I25&" fm",0) -> 0 | T42: =IF(AND(Haz!$B$17=1,Haz!O25>0,Haz!K25>0),FIXED(Haz!K25,0)&" Ft/fm",0) -> 0 | W42: =IF(AND(Haz!$B$17=1,OR(Haz!O24>0,Haz!O25>0)),((Haz!O24+Haz!O25)/1000),0) -> 0 | Z42: .000.-
A43: Egyéb : | C43: =IF(AND(Haz!$B$17=1,Haz!O26>0,Haz!F26>""),Haz!F26,0) -> 0 | G43: =IF(AND(Haz!$B$17=1,Haz!O26>0,Haz!I26>0),Haz!I26&" db",0) -> 0 | I43: =IF(AND(Haz!$B$17=1,Haz!O26>0,Haz!K26>0),FIXED(Haz!K26,0)&" Ft/db",0) -> 0 | M43: =IF(AND(Haz!$B$17=1,Haz!O27>0,Haz!F27>""),Haz!F27,0) -> 0 | Q43: =IF(AND(Haz!$B$17=1,Haz!O27>0,Haz!I27>0),Haz!I27&" db",0) -> 0 | S43: =IF(AND(Haz!$B$17=1,Haz!O27>0,Haz!K27>0),FIXED(Haz!K27,0)&" Ft/db",0) -> 0 | W43: =IF(AND(Haz!$B$17=1,OR(Haz!O26>0,Haz!O27>0)),((Haz!O26+Haz!O27)/1000),0) -> 0 | Z43: .000.-
A44: Közös tulajdonú ingóságok: | E44: =IF(AND(Haz!$B$17=1,Haz!O28>0,Haz!F28>""),Haz!F28,0) -> 0 | H44: =IF(AND(Haz!$B$17=1,Haz!O28>0,Haz!I28>0),Haz!I28&" db",0) -> 0 | J44: =IF(AND(Haz!$B$17=1,Haz!O28>0,Haz!K28>0),FIXED(Haz!K28,0)&" Ft/db",0) -> 0 | N44: =IF(AND(Haz!$B$17=1,Haz!O29>0,Haz!F29>""),Haz!F29,0) -> 0 | Q44: =IF(AND(Haz!$B$17=1,Haz!O29>0,Haz!I29>0),Haz!I29&" db",0) -> 0 | S44: =IF(AND(Haz!$B$17=1,Haz!O29>0,Haz!K29>0),FIXED(Haz!K29,0)&" Ft/db",0) -> 0 | W44: =IF(AND(Haz!$B$17=1,OR(Haz!O28>0,Haz!O29>0)),((Haz!O28+Haz!O29)/1000),0) -> 0 | Z44: .000.-
A46: ÖSSZESEN | Z46: =IF(Haz!O30>0,FIXED(SUM(W39:Y44),0)&" 000.-","") -> 22 800 000.-
A48: ÉPÜLETBIZTOSÍTÁS DÍJTÉTELE | N48: Díjtétel ‰ | P48: =IF(AND(Tomb!B80,Haz!M64>0),"X",0) -> X | Q48: FELELŐSSÉGBIZTOSÍTÁS
A49: Alapfedezet: | J49: =IF(Haz!N33>0,"X",0) -> X | K49: =IF(Haz!N33>0,VLOOKUP(Haz!L11,Tomb!J2:M7,4),0) -> 51-100 év | M49: + | N49: =IF(Haz!N33>0,Haz!N33,"") -> 0.9 | P49: Ingatlantulajdonosi: | T49: =IF(AND(Tomb!$B$80,Tomb!B81,Haz!$M$64>0,Haz!M61>0,Haz!F61>0),FIXED(Haz!F61,0),0) -> 688 800 | V49: =IF(AND(Tomb!$B$80,Tomb!B81,Haz!$M$64>0,Haz!J61>0,Haz!M61>0),"* "&Haz!J61&"‰ =",0) -> * 0,15‰ = | X49: + | Y49: =IF(AND(Tomb!$B$80,Tomb!B81,Haz!$M$64>0,Haz!M61>0),Haz!M61,0) -> 103320
A50: Többszörözhető limitel rend. | F50: =IF(AND(Haz!N34>0,Tomb!P64=1),"X",0) -> 0 | G50: kétszerez | I50: =IF(AND(Haz!N34>0,Tomb!P64=2),"X",0) -> 0 | M50: + | N50: =IF(Haz!N34>0,Haz!N34,"") ->  | P50: =IF(OR(Tomb!K55=2,AND(Tomb!$B$80,Tomb!B81,Haz!$M$64>0,Haz!M61>0,Tomb!C73=1)),Tomb!B74,IF(AND(Tomb!$B$80,Tomb!B81,Haz!$M$64>0,Haz!M61>0,Tomb!C73=2),Tomb!B75,IF(AND(Tomb!$B$80,Tomb!B81,Haz!$M$64>0,Haz!M61>0,Tomb!C73=3),Tomb!B76,0))) -> I Fedezet. | R50: =IF(AND(Tomb!$B$80,Tomb!B81,Haz!$M$64>0,Haz!M61>0,OR(Tomb!G74=1,Tomb!G74=2)),Tomb!F75,0) -> Alap | S50: =IF(AND(Tomb!$B$80,Tomb!B81,Haz!$M$64>0,Haz!M61>0,OR(Tomb!G74=1,Tomb!G74=2)),INDEX(Tomb!I25:J27,VLOOKUP(IF(Tomb!K55=1,Tomb!C73,1),Tomb!H25:J27,1,0),HLOOKUP(1,Tomb!I24:J27,1,0))&" mFt/kár/év",0) -> 15 mFt/kár/év | V50: =IF(AND(Tomb!$B$80,Tomb!B81,Haz!$M$64>0,Haz!M61>0,Tomb!G74=2),"+ "&Tomb!F76,0) -> + Bővített | X50: =IF(AND(Tomb!$B$80,Tomb!B81,Haz!$M$64>0,Haz!M61>0,Tomb!G74=2),INDEX(Tomb!I25:J27,VLOOKUP(IF(Tomb!K55=1,Tomb!C73,1),Tomb!H25:J27,1,0),HLOOKUP(Tomb!G74,Tomb!I24:J27,1,0))&" mFt/kár",0) -> 7,5 mFt/kár
A51: Be nem fejezett épület | L51: =IF(AND(Haz!N35>0,Tomb!K55=2),"X",0) -> 0 | M51: + | N51: =IF(Haz!N35>0,Haz!N35,"") ->  | P51: Munkáltatói: | S51: =IF(AND(Tomb!$B$80,Tomb!B82,Haz!$M$64>0,Haz!M62>0,Haz!J62>0),Haz!J62&" fő",0) -> 0 | U51: =IF(AND(Tomb!$B$80,Tomb!B82,Haz!$M$64>0,Haz!M62>0,Haz!G62>0)," * "&FIXED(Tomb!J28,0)&" Ft =",0) -> 0 | X51: + | Y51: =IF(AND(Tomb!$B$80,Tomb!B82,Haz!$M$64>0,Haz!M62>0),Haz!M62,0) -> 0
A52: „C”, vagy annál magasabb tűzveszélyességű tevékenység | L52: =IF(AND(Haz!N36>0,Tomb!W55=1),"X",0) -> 0 | M52: + | N52: =IF(Haz!N36>0,Haz!N36,"") ->  | P52: Közös képviselői felelősségbiztosítás: | X52: + | Y52: =IF(AND(Tomb!$B$80,Tomb!B83,Haz!$M$64>0,Haz!M63>0),Haz!M63,0) -> 0
Q53: ="A díjfizetés módja; "&IF(Haz!$Z$40=1," Inkasszó.",IF(Haz!$Z$40=2," Csekk.",IF(Haz!$Z$40=3," Átutalás.",""))) -> A díjfizetés módja;
A54: engedmények | B54: Felújítás 5 éven belül | J54: =IF(AND(Haz!N38>0,Tomb!I81>=1),"X",0) -> 0 | K54: =IF(AND(Haz!N38>0,Tomb!I81>=2),"X",0) -> 0 | L54: =IF(AND(Haz!N38>0,Tomb!I81>=3),"X",0) -> 0 | M54: - | N54: =IF(Haz!N38>0,Haz!N38,"") ->  | P54: Éves felelősségbiztosítási díj összesen | W54: = | X54: =IF(AND(Tomb!$B$80,Haz!$M$64>0),Haz!M64,0) -> 103320
B55: Lakóépület, üzletház, iroda épület | L55: =IF(AND(Haz!N39>0,OR(Tomb!G55=1,Tomb!G55=3,Tomb!G55=4)),"X",0) -> X | M55: - | N55: =IF(Haz!N39>0,Haz!N39,"") -> 0.05
B56: Van állandó/bentlakó személyzet | L56: =IF(AND(Haz!N40>0,Tomb!O72),"X",0) -> 0 | M56: - | N56: =IF(Haz!N40>0,Haz!N40,"") ->  | P56: Lakó / üdülö épületbiztosítás | W56: + | X56: =IF(Haz!X42>0,L64,0) -> 18924
B57: Nem paneles technológiával készült épület | L57: =IF(AND(Haz!N41>0,Tomb!O73),"X",0) -> X | M57: - | N57: =IF(Haz!N41>0,Haz!N41,"") -> 0.02 | P57: Kiegészítő üvegbiztosítás | W57: + | X57: =IF(Haz!X43>0,Haz!X43,0) -> 0
B58: Önrész: | D58: =IF(AND(Haz!N42>0,Tomb!O66),"X",0) -> 0 | E58: 25 eFt | G58: =IF(AND(Haz!N42>0,Tomb!P66),"X",0) -> 0 | H58: 50 eFt | J58: =IF(AND(Haz!N42>0,Tomb!Q67),"X",0) -> 0 | K58: 100 eFt | M58: - | N58: =IF(Haz!N42>0,Haz!N42,"") ->  | P58: Felelősségbiztosítás | W58: +
B59: Árvíz kizárása (SIGinfóban meghatározottak szerint) | L59: =IF(AND(Haz!N43>0,Tomb!O74,Tomb!AF1=1),"X",0) -> 0 | M59: - | N59: =IF(Haz!N43>0,Haz!N43,"") ->  | P59: Assistance biztosítás | W59: + | X59: =IF(Haz!X45>0,L78,0) -> 35600
B60: Beázás (STÉBI 2011,1.6;1.7),(STÉBI 2011, 1.21-23, 1.26), károk kizárása | L60: =IF(AND(Haz!N44>0,Tomb!O75),"X",0) -> 0 | M60: - | N60: =IF(Haz!N44>0,Haz!N44,"") ->  | P60: Gépjárművek biztosítása | W60: +
B61: Betöréses lopás károk kizárása (STÉBI 2011, 1.24-25) | L61: =IF(AND(Haz!N45>0,Tomb!O76),"X",0) -> 0 | M61: - | N61: =IF(Haz!N45>0,Haz!N45,"") ->  | P61: Felvonók géptörés biztosítása | W61: +
A63: Épületbiztosítás díjtétele: | L63: = | M63: =IF(Haz!N47>0,Haz!N47&" ‰","") -> 0,83 ‰ | Q63: DÍJ ÖSSZESEN; | W63: = | X63: =SUM(X56:Z61) -> 54524
A64: Éves épületbizt. díj: | E64: =IF(Z46>0,FIXED(SUM(W39:Y44),0)&" eFt",0) -> 22 800 eFt | H64: * | I64: =IF(Haz!J48>0,'Resz (2)'!M63,"") -> 0,83 ‰ | K64: = | L64: =IF(AND(Z46>0,M63>0),ROUND(SUM(W39:Y44)*Haz!N47,0),0) -> 18924 | P64: Engedmények | Q64: Mennyiségi | T64: =IF(AND(Haz!X50>0,Haz!U50>0),Haz!U50,0) -> 0.14 | V64: =N(Tomb!D94) -> 0 | W64: - | X64: =IF(AND($X63>0,T64>0),ROUND($X$63*T64,0),0) -> 7633
A66: =IF(AND(Tomb!$F$78,Haz!$M$57>0),"X",0) -> 0 | B66: KIEGÉSZÍTŐ ÜVEGBIZTOSÍTÁS | Q66: Kockázati | T66: =IF(AND(Haz!X52>0,Haz!U52>0),Haz!U52,0) -> 0 | V66: =N(Tomb!D95) -> 1 | W66: - | X66: =IF(AND($X63>0,T66>0),ROUND($X$63*T66,0),0) -> 0
A67: Egyéb biztosított üvegek megnev. | G67: Bizt felület | I67: Bö.; Ft | K67: Díjtétel % | M67: Díj Ft | Q67: Inkasszó | T67: =IF(AND(Haz!X53>0,Haz!U53>0),Haz!U53,0) -> 0 | V67: =N(Tomb!D96) -> 0 | W67: - | X67: =IF(AND($X63>0,T67>0),ROUND($X$63*T67,0),0) -> 0
A68: =IF(AND(Tomb!$F$78,Haz!$M$57>0,Haz!M52>0),Haz!C52,0) -> 0 | G68: =IF(AND(Tomb!$F$78,Haz!$M$57>0,Haz!M52>0,Haz!H52>0),Haz!H52&" m2",0) -> 0 | I68: =IF(AND(Tomb!$F$78,Haz!$M$57>0,Haz!M52>0,Haz!J52>0),Haz!J52,0) -> 0 | K68: =IF(AND(Tomb!$F$78,Haz!$M$57>0,Haz!M52>0,Haz!L52>0),Haz!L52,0) -> 0 | M68: =IF(AND(Tomb!$F$78,Haz!$M$57>0,Haz!M52>0),Haz!M52,0) -> 0 | Q68: Képviselői | T68: =IF(AND(Haz!X54>0,Haz!U54>0),Haz!U54,0) -> 0 | V68: =N(Tomb!D96) -> 0 | W68: - | X68: =IF(AND($X63>0,T68>0),ROUND($X$63*T68,0),0) -> 0
A69: =IF(AND(Tomb!$F$78,Haz!$M$57>0,Haz!M53>0),Haz!C53,0) -> 0 | G69: =IF(AND(Tomb!$F$78,Haz!$M$57>0,Haz!M53>0,Haz!H53>0),Haz!H53&" m2",0) -> 0 | I69: =IF(AND(Tomb!$F$78,Haz!$M$57>0,Haz!M53>0,Haz!J53>0),Haz!J53,0) -> 0 | K69: =IF(AND(Tomb!$F$78,Haz!$M$57>0,Haz!M53>0,Haz!L53>0),Haz!L53,0) -> 0 | M69: =IF(AND(Tomb!$F$78,Haz!$M$57>0,Haz!M53>0),Haz!M53,0) -> 0 | Q69: =IF(T69>0,"VIG","") ->  | T69: =IF(AND(Haz!X56>0,Haz!U56>0),Haz!U56,0) -> 0 | V69: =N(Tomb!D70) -> 0 | W69: =IF(T69>0,"-","") ->  | X69: =IF(AND($X63>0,T69>0),ROUND($X$63*T69,0),0) -> 0
A70: =IF(AND(Tomb!$F$78,Haz!$M$57>0,Haz!M54>0),Haz!C54,0) -> 0 | G70: =IF(AND(Tomb!$F$78,Haz!$M$57>0,Haz!M54>0,Haz!H54>0),Haz!H54&" m2",0) -> 0 | I70: =IF(AND(Tomb!$F$78,Haz!$M$57>0,Haz!M54>0,Haz!J54>0),Haz!J54,0) -> 0 | K70: =IF(AND(Tomb!$F$78,Haz!$M$57>0,Haz!M54>0,Haz!L54>0),Haz!L54,0) -> 0 | M70: =IF(AND(Tomb!$F$78,Haz!$M$57>0,Haz!M54>0),Haz!M54,0) -> 0 | Q70: ÉVES DÍJ; | W70: = | X70: =IF(X63>0,X63-SUM(X64:Z69),0) -> 46891
A71: =IF(AND(Tomb!$F$78,Haz!$M$57>0,Haz!M56>0),Haz!C56,0) -> 0 | I71: =IF(AND(Tomb!$F$78,Haz!$M$57>0,Haz!M56>0,Haz!I56>0),Haz!I56,0) -> 0 | K71: =IF(AND(Tomb!$F$78,Haz!$M$57>0,Haz!M56>0,Haz!L56>0),Haz!L56,0) -> 0 | M71: =IF(AND(Tomb!$F$78,Haz!$M$57>0,Haz!M56>0),Haz!M56,0) -> 0 | P71: Részletfizetési pótdíj | T71: =IF(AND(Haz!X58>0,Haz!U58>0),Haz!U58,0) -> 0 | W71: +
G72: Biztosítási összeg Ft: | H72: =IF(AND(Tomb!$F$78,Haz!$M$57>0,Haz!I57>0),Haz!I57,0) -> 0 | K72: Éves díj: | L72: =IF(AND(Tomb!$F$78,Haz!$M$57>0),Haz!M57,0) -> 0 | P72: Fizetendő éves díj; | W72: =
B74: FELVONÓK GÉPTÖRÉS BIZTOSÍTÁSA | P74: 1 / | Q74: =IF(Haz!X60>0,Haz!R60,0) -> 1 | R74: -éves díjrészlet | V74: =IF(Tomb!R64=Tomb!Q64,"","!!!") ->  | W74: =
Q75: ="A díjfizetés módja; "&IF(Da!$Z$180=1," Inkasszó.",IF(Da!$Z$180=2," Csekk.",IF(Da!$Z$180=3," Átutalás.",""))) -> A díjfizetés módja; Átutalás.
B77: GÉPJÁRMŰVEK BIZTOSÍTÁSA | J77: =IF(AND(Tomb!D83,Haz!$X$38>0),"X",0) -> X | K77: ASSISTANCE BIZT.
L78: =IF(AND(SUM(W39:Y44)>0,L64>0,X18>0,J77="X"),ROUND(X18*Tomb!J39,0),0) -> 35600 | P78: Kelt; | Q78: =Resz!Q78 -> 0
A80: SZERZŐDŐ | D80: =IF(Haz!C5>"",Haz!C5,0) -> 1075 Budapest Rumbach Sebestyén u. 12. (Társasház) | N80: =Tomb!Q1 -> 0 | O80: Ajánlat száma: | V80: =IF(AND(Haz!Q6=0),"Új szerződés:",IF(AND(Haz!Q6=1,Haz!R6>""),"Átdolgozás:",0)) -> Új szerződés: | W80: =IF(AND(Haz!Q6=0,Haz!Q2>""),502&Haz!Q2,IF(AND(Haz!Q6=1,Haz!R6>""),Haz!R6,0)) -> 0
A82: SZERZŐDŐ KÉPVISELÉTÉBEN ELJÁRÓ SZEMÉLY | Q82: Képviselőj: | V82: Kódja: | W82: =IF(Tomb!R42>0,VLOOKUP(Tomb!R42,Ker!A2:K150,10,0)) -> 0
A83: Név: | G83: Vállalkozás: | L83: E-mail címe: | Q83: =IF(Haz!S5>"",Haz!S5,0) -> 0
A84: =IF(Haz!C6>"",Haz!C6,0) -> kk | G84: =IF(Haz!H6>"",Haz!H6,0) -> 0 | L84: =IF(Haz!L6>"",Haz!L6,0) -> 0
A85: Irányítószám: | C85: Helység: | H85: Út, utca, tér:
Q86: Biztosítás igényelt kezdete: | W86: =IF(Haz!W6>0,Haz!W6,0) -> 2014-12-01
A87: =IF(AND(Haz!$O$7=1,OR(Haz!C6>"",Haz!H6>""),Haz!C7>0),Haz!C7,IF(AND(Haz!$O$7=0,OR(Haz!C6>"",Haz!H6>""),Haz!C7>=0),Haz!C4,0)) -> 1075 | C87: =IF(AND(Haz!$O$7=1,OR(Haz!C6>"",Haz!H6>""),Haz!E7>0),Haz!E7,IF(AND(Haz!$O$7=0,OR(Haz!C6>"",Haz!H6>""),Haz!E7>=0),Haz!E4,0)) -> Budapest | H87: =IF(AND(Haz!$O$7=1,OR(Haz!C6>"",Haz!H6>""),Haz!J7>0),Haz!J7,IF(AND(Haz!$O$7=0,OR(Haz!C6>"",Haz!H6>""),Haz!J7>=0),Haz!J4,0)) -> Rumbach Sebestyén u. 12.
A89: KOCKÁZATVISELÉS HELYE | O89: HITELFEDEZETI KEDVEZMÉNYEZETT
A90: Irányítószám: | C90: Helység: | H90: Út, utca, tér: | O90: Kedvezményezett hitelnyújtó neve, címe : | U90: Hitelszerződés összege: | X90: Hitelszerződés száma:
A91: =IF(Haz!C4>0,Haz!C4,0) -> 1075 | C91: =IF(Haz!E4>0,Haz!E4,0) -> Budapest | H91: =IF(Haz!J4>0,Haz!J4,0) -> Rumbach Sebestyén u. 12. | O91: =IF(Resz!O12>"",Resz!O12,"") ->  | U91: =IF(Resz!U12>"",Resz!U12,"") ->  | X91: =IF(Resz!X12>"",Resz!X12,"") -> 
A93: ÁLTALÁNOS ADATOK : | X93: Részletező; | Y93: =IF(Y14>0,Y14+1,0) -> 13
A94: TULAJDONFORMA: | G94: =IF(Tomb!C55=1,"X",0) -> X | H94: Társasházi tulajdon | L94: =IF(Tomb!C55=2,"X",0) -> 0 | M94: Szövetkezeti tulajdon | Q94: ÁFA-körbe tartozik: | U94: =IF(Tomb!C59=1,"X",0) -> 0 | V94: igen | X94: =IF(Tomb!C59=2,"X",0) -> X | Y94: nem
A95: RENDELTETÉS: | G95: =IF(Tomb!G55=1,"X",0) -> X | H95: Lakóépület | L95: =IF(Tomb!G55=2,"X",0) -> 0 | M95: Nyaralóépület | Q95: =IF(Tomb!G55=3,"X",0) -> 0 | R95: Üzletház | V95: =IF(Tomb!G55=4,"X",0) -> 0 | W95: Irodaház
A96: AZ ÉPÜLET JELLEMZŐI: | I96: Befejezett épület: | M96: =IF(Tomb!K55=1,"X",0) -> X | N96: igen | O96: =IF(Tomb!K55=2,"X",0) -> 0 | P96: nem | R96: Műemlék(jellegű) épület: | W96: =IF(Tomb!K59=1,"X",0) -> 0 | X96: igen | Y96: =IF(Tomb!K59=2,"X",0) -> X | Z96: nem
A97: Épület kora: | D97: =IF(Haz!L11>0,Haz!L11,0) -> 71 | E97: =IF(D97>0,"év",0) -> év | I97: Szintek száma: | L97: =IF(Haz!L13>0,Haz!L13,0) -> 8 | M97: =IF(L97>0,"szintes",0) -> szintes | R97: Albetétek / külön tulajdonok száma: | X97: =IF(Haz!L14>0,Haz!L14,0) -> 37 | Z97: =IF(X97>0,"db",0) -> db
A98: FALAZAT: | F98: =IF(Tomb!O54=1,"X",0) -> X | G98: tégla | I98: =IF(Tomb!O54=2,"X",0) -> 0 | J98: panel | M98: =IF(Tomb!O54=3,"X",0) -> 0 | N98: monolit vb. | R98: =IF(Tomb!O54=4,"X",0) -> 0 | S98: bauxitbeton | V98: =IF(Tomb!O54=5,"X",0) -> 0 | W98: egyéb: | X98: =IF(Haz!S11=1,Haz!P12,0) -> 0
A99: FÖDÉM: | F99: =IF(Tomb!S55=3,"X",0) -> 0 | G99: közbenső fafödém | K99: =IF(Tomb!S55=4,"X",0) -> 0 | L99: záró fafödém belső nyitott csapadék-elvezetéssel | V99: =IF(Tomb!S55=5,"X",0) -> 0 | W99: bauxitbeton födém
A100: A biztosított épületben „C”, vagy annál magasabb tűzveszélyességű tevékenységet folytatnak: | Q100: =IF(Tomb!W55=1,"X",0) -> 0 | R100: igen | S100: =IF(Haz!S14=1,Haz!P15,0) -> 0 | X100: =IF(Tomb!W55=2,"X",0) -> X | Y100: nem
A101: AZ ÉPÜLET ÁLLAGA: | O101: 5 éven belül felújítva | Q101: Karbantar- tásra szorul | V101: 5 éven belül felújítva | X101: Karbantar- tásra szorul
O102: felújítva | V102: felújítva
A103: Az épületen beázások, csőtörések nyomai láthatóak: | I103: =IF(Tomb!K65,"X",0) -> 0 | J103: igen | K103: =IF(Tomb!M64,"X",0) -> X | L103: nem | M103: Víz csőhálózat: | P103: =IF(AND(Tomb!I73,Tomb!L73),"X",0) -> 0 | R103: =IF(AND(Tomb!K73,Tomb!L73),"X",0) -> 0 | T103: Homlokzatok | W103: =IF(AND(Tomb!I77,Tomb!L77),"X",0) -> 0 | Y103: =IF(AND(Tomb!K77,Tomb!L77),"X",0) -> 0
A104: Az épület teteje hullámos, cserepezés, bádogozás hiányos: | I104: =IF(Tomb!K66,"X",0) -> 0 | J104: igen | K104: =IF(Tomb!M65,"X",0) -> X | L104: nem | M104: Fűtés csőhálózat | P104: =IF(AND(Tomb!I74,Tomb!L74),"X",0) -> 0 | R104: =IF(AND(Tomb!K74,Tomb!L74),"X",0) -> 0 | T104: Tető szerkezet | W104: =IF(AND(Tomb!I78,Tomb!L78),"X",0) -> 0 | Y104: =IF(AND(Tomb!K78,Tomb!L78),"X",0) -> 0
A105: Épületen ferde (kb. 45o-os) repedés(ek) van(nak): | I105: =IF(Tomb!K67,"X",0) -> 0 | J105: igen | K105: =IF(Tomb!M66,"X",0) -> X | L105: nem | M105: Csatorna | P105: =IF(AND(Tomb!I75,Tomb!L75),"X",0) -> 0 | R105: =IF(AND(Tomb!K75,Tomb!L75),"X",0) -> 0 | T105: Tetőszigetelés | W105: =IF(AND(Tomb!I79,Tomb!L79),"X",0) -> 0 | Y105: =IF(AND(Tomb!K79,Tomb!L79),"X",0) -> 0
A106: Épületen dúcolás utólagos alátámasztás található: | I106: =IF(Tomb!K68,"X",0) -> 0 | J106: igen | K106: =IF(Tomb!M67,"X",0) -> X | L106: nem | M106: Gázcső hálózat | P106: =IF(AND(Tomb!I76,Tomb!L76),"X",0) -> 0 | R106: =IF(AND(Tomb!K76,Tomb!L76),"X",0) -> 0 | T106: Tetőhéjazat | W106: =IF(AND(Tomb!I80,Tomb!L80),"X",0) -> 0 | Y106: =IF(AND(Tomb!K80,Tomb!L80),"X",0) -> 0
A107: KÁRELŐZMÉNYEK: | F107: =IF(U107=X107,"Döntsd el, hogy volt vagy nem volt? >",0) -> 0 | M107: Korábbi kár(ok) az ajánlatot megelőző öt évben: | V107: volt | W107: =IF(AND(U107="X",X107="X"),"?",0) -> 0 | X107: X | Y107: nem volt
M108: (függetlenül attól, hogy a káridőpontjában volt-e élő biztosítás)
A109: kár időpontja: | G109: jellege: | M109: kár időpontja: | S109: jellege: | T109: Csőtörés
B110: összege: | N110: összege:
A111: BIZTOSÍTÁSI ELŐZMÉNYEK: | G111: Ha volt biztosítás, akkor az előző biztosító neve: | Q111: kötvényszáma: | V111: megszűnés oka:
A113: LAKÓ / ÜDÜLŐ ÉPÜLETBIZTOSÍTÁS BIZTOSÍTÁSI ÖSSZEG SZÁMÍTÁSA
A114: Megnevezés | J114: Kategória | M114: Külön tul. összesített m2-re | Q114: Ft / m2 | T114: Okiratbani jele | W114: Biztosítási összeg [Ft]
A115: Lakó / üdülőépület | Z115: .000.-
A116: Mellékép. (magántulajdont is tartalmaz):............................ | H116: Garázs | J116: =IF(AND(Tomb!$G$55=5,Haz!$B$17=1,Haz!G19>""),Haz!G19,0) -> 0 | M116: =IF(AND(Tomb!$G$55=5,Haz!$B$17=1,Haz!H19>0),FIXED(Haz!H19,0)&" m2",0) -> 0 | Q116: =IF(AND(Tomb!$G$55=5,Haz!$B$17=1,Haz!H19>0,Haz!O19>0),(Haz!O19/Haz!H19),0) -> 0 | W116: =IF(AND(Tomb!$G$55=5,Haz!$B$17=1,Haz!O19>0),(Haz!O19/1000),0) -> 0 | Z116: .000.-
A118: Épületnek a közös tulajdoni része..........……….. | I118: =IF(AND(Haz!$B$17=1,Haz!K20>0),Haz!I20,0) -> 1 | Z118: .000.-
A119: Melléképület. (csak közös tulajdonú): ........................ | Z119: .000.-
A120: Központi berendezés : | Z120: .000.-
A121: Kerítés fajtája (egy kerítést csak egy lapon lehet felvenni): | Z121: .000.-
A122: Egyéb : | Z122: .000.-
A123: Közös tulajdonú ingóságok: | Z123: .000.-
A125: ÖSSZESEN
A127: ÉPÜLETBIZTOSÍTÁS DÍJTÉTELE | N127: Díjtétel ‰ | P127: =IF(AND(Tomb!B80,Haz!M64>0),"X",0) -> X | Q127: FELELŐSSÉGBIZTOSÍTÁS
A128: Alapfedezet: | M128: + | P128: Ingatlantulajdonosi: | T128: =IF(AND(Tomb!$B$80,Tomb!B81,Haz!$M$64>0,Haz!M61>0,Haz!F61>0),FIXED(Haz!F61,0),0) -> 688 800 | V128: =IF(AND(Tomb!$B$80,Tomb!B81,Haz!$M$64>0,Haz!J61>0,Haz!M61>0),"* "&Haz!J61&"‰ =",0) -> * 0,15‰ = | X128: + | Y128: =IF(AND(Tomb!$B$80,Tomb!B81,Haz!$M$64>0,Haz!M61>0),Haz!M61,0) -> 103320
A129: Többszörözhető limitel rend. | G129: kétszerez | I129: =IF(AND(Haz!N34>0,Tomb!P64=2),"X",0) -> 0 | M129: + | N129: =IF(Haz!N34>0,Haz!N34,"") ->  | P129: =IF(OR(Tomb!K55=2,AND(Tomb!$B$80,Tomb!B81,Haz!$M$64>0,Haz!M61>0,Tomb!C73=1)),Tomb!B74,IF(AND(Tomb!$B$80,Tomb!B81,Haz!$M$64>0,Haz!M61>0,Tomb!C73=2),Tomb!B75,IF(AND(Tomb!$B$80,Tomb!B81,Haz!$M$64>0,Haz!M61>0,Tomb!C73=3),Tomb!B76,0))) -> I Fedezet. | R129: =IF(AND(Tomb!$B$80,Tomb!B81,Haz!$M$64>0,Haz!M61>0,OR(Tomb!G74=1,Tomb!G74=2)),Tomb!F75,0) -> Alap | S129: =IF(AND(Tomb!$B$80,Tomb!B81,Haz!$M$64>0,Haz!M61>0,OR(Tomb!G74=1,Tomb!G74=2)),INDEX(Tomb!I25:J27,VLOOKUP(IF(Tomb!K55=1,Tomb!C73,1),Tomb!H25:J27,1,0),HLOOKUP(1,Tomb!I24:J27,1,0))&" mFt/kár/év",0) -> 15 mFt/kár/év | V129: =IF(AND(Tomb!$B$80,Tomb!B81,Haz!$M$64>0,Haz!M61>0,Tomb!G74=2),"+ "&Tomb!F76,0) -> + Bővített | X129: =IF(AND(Tomb!$B$80,Tomb!B81,Haz!$M$64>0,Haz!M61>0,Tomb!G74=2),INDEX(Tomb!I25:J27,VLOOKUP(IF(Tomb!K55=1,Tomb!C73,1),Tomb!H25:J27,1,0),HLOOKUP(Tomb!G74,Tomb!I24:J27,1,0))&" mFt/kár",0) -> 7,5 mFt/kár
A130: Be nem fejezett épület | L130: =IF(AND(Haz!N35>0,Tomb!K55=2),"X",0) -> 0 | M130: + | N130: =IF(Haz!N35>0,Haz!N35,"") ->  | P130: Munkáltatói: | S130: =IF(AND(Tomb!$B$80,Tomb!B82,Haz!$M$64>0,Haz!M62>0,Haz!J62>0),Haz!J62&" fő",0) -> 0 | U130: =IF(AND(Tomb!$B$80,Tomb!B82,Haz!$M$64>0,Haz!M62>0,Haz!G62>0)," * "&FIXED(Tomb!J28,0)&" Ft =",0) -> 0 | X130: + | Y130: =IF(AND(Tomb!$B$80,Tomb!B82,Haz!$M$64>0,Haz!M62>0),Haz!M62,0) -> 0
A131: „C”, vagy annál magasabb tűzveszélyességű tevékenység | L131: =IF(AND(Haz!N36>0,Tomb!W55=1),"X",0) -> 0 | M131: + | N131: =IF(Haz!N36>0,Haz!N36,"") ->  | P131: Közös képviselői felelősségbiztosítás: | X131: + | Y131: =IF(AND(Tomb!$B$80,Tomb!B83,Haz!$M$64>0,Haz!M63>0),Haz!M63,0) -> 0
Q132: ="A díjfizetés módja; "&IF(Haz!$Z$40=1," Inkasszó.",IF(Haz!$Z$40=2," Csekk.",IF(Haz!$Z$40=3," Átutalás.",""))) -> A díjfizetés módja;
A133: engedmények | B133: Felújítás 5 éven belül | J133: =IF(AND(Haz!N38>0,Tomb!I81>=1),"X",0) -> 0 | K133: =IF(AND(Haz!N38>0,Tomb!I81>=2),"X",0) -> 0 | L133: =IF(AND(Haz!N38>0,Tomb!I81>=3),"X",0) -> 0 | M133: - | N133: =IF(Haz!N38>0,Haz!N38,"") ->  | P133: Éves felelősségbiztosítási díj összesen | W133: = | X133: =IF(AND(Tomb!$B$80,Haz!$M$64>0),Haz!M64,0) -> 103320
B134: Lakóépület, üzletház, iroda épület | M134: -
B135: Van állandó/bentlakó személyzet | L135: =IF(AND(Haz!N40>0,Tomb!O72),"X",0) -> 0 | M135: - | N135: =IF(Haz!N40>0,Haz!N40,"") ->  | P135: Lakó / üdülö épületbiztosítás | W135: +
B136: Nem paneles technológiával készült épület | M136: - | P136: Kiegészítő üvegbiztosítás | W136: + | X136: =IF(Haz!X43>0,Haz!X43,0) -> 0
B137: Önrész: | D137: =IF(AND(Haz!N42>0,Tomb!O66),"X",0) -> 0 | E137: 25 eFt | G137: =IF(AND(Haz!N42>0,Tomb!P66),"X",0) -> 0 | H137: 50 eFt | J137: =IF(AND(Haz!N42>0,Tomb!Q67),"X",0) -> 0 | K137: 100 eFt | M137: - | N137: =IF(Haz!N42>0,Haz!N42,"") ->  | P137: Felelősségbiztosítás | W137: + | X137: =IF(Haz!X44>0,X133,0) -> 103320
B138: Árvíz kizárása (SIGinfóban meghatározottak szerint) | L138: =IF(AND(Haz!N43>0,Tomb!O74,Tomb!AF1=1),"X",0) -> 0 | M138: - | N138: =IF(Haz!N43>0,Haz!N43,"") ->  | P138: Assistance biztosítás | W138: +
B139: Beázás (STÉBI 2011,1.6;1.7),(STÉBI 2011, 1.21-23, 1.26), károk kizárása | L139: =IF(AND(Haz!N44>0,Tomb!O75),"X",0) -> 0 | M139: - | N139: =IF(Haz!N44>0,Haz!N44,"") ->  | P139: Gépjárművek biztosítása | W139: + | X139: =IF(Haz!X47>0,F157,0) -> 0
B140: Betöréses lopás károk kizárása (STÉBI 2011, 1.24-25) | L140: =IF(AND(Haz!N45>0,Tomb!O76),"X",0) -> 0 | M140: - | N140: =IF(Haz!N45>0,Haz!N45,"") ->  | P140: Felvonók géptörés biztosítása | W140: + | X140: =IF(Haz!X48>0,L154,0) -> 12000
A142: Épületbiztosítás díjtétele: | L142: = | Q142: DÍJ ÖSSZESEN; | W142: = | X142: =SUM(X135:Z140) -> 115320
A143: Éves épületbizt. díj: | H143: * | K143: = | P143: Engedmények | Q143: Mennyiségi | T143: =IF(AND(Haz!X50>0,Haz!U50>0),Haz!U50,0) -> 0.14 | V143: =N(Tomb!D94) -> 0 | W143: - | X143: =IF(AND($X142>0,T143>0),ROUND($X$63*T143,0),0) -> 7633
A145: =IF(AND(Tomb!$F$78,Haz!$M$57>0),"X",0) -> 0 | B145: KIEGÉSZÍTŐ ÜVEGBIZTOSÍTÁS | Q145: Kockázati | T145: =IF(AND(Haz!X52>0,Haz!U52>0),Haz!U52,0) -> 0 | V145: =N(Tomb!D95) -> 1 | W145: - | X145: =IF(AND($X142>0,T145>0),ROUND($X$63*T145,0),0) -> 0
A146: Egyéb biztosított üvegek megnev. | G146: Bizt felület | I146: Bö.; Ft | K146: Díjtétel % | M146: Díj Ft | Q146: Inkasszó | T146: =IF(AND(Haz!X53>0,Haz!U53>0),Haz!U53,0) -> 0 | V146: =N(Tomb!D96) -> 0 | W146: - | X146: =IF(AND($X142>0,T146>0),ROUND($X$63*T146,0),0) -> 0
A147: =IF(AND(Tomb!$F$78,Haz!$M$57>0,Haz!M52>0),Haz!C52,0) -> 0 | G147: =IF(AND(Tomb!$F$78,Haz!$M$57>0,Haz!M52>0,Haz!H52>0),Haz!H52&" m2",0) -> 0 | I147: =IF(AND(Tomb!$F$78,Haz!$M$57>0,Haz!M52>0,Haz!J52>0),Haz!J52,0) -> 0 | K147: =IF(AND(Tomb!$F$78,Haz!$M$57>0,Haz!M52>0,Haz!L52>0),Haz!L52,0) -> 0 | M147: =IF(AND(Tomb!$F$78,Haz!$M$57>0,Haz!M52>0),Haz!M52,0) -> 0 | Q147: Képviselői | T147: =IF(AND(Haz!X54>0,Haz!U54>0),Haz!U54,0) -> 0 | V147: =N(Tomb!D96) -> 0 | W147: - | X147: =IF(AND($X142>0,T147>0),ROUND($X$63*T147,0),0) -> 0
A148: =IF(AND(Tomb!$F$78,Haz!$M$57>0,Haz!M53>0),Haz!C53,0) -> 0 | G148: =IF(AND(Tomb!$F$78,Haz!$M$57>0,Haz!M53>0,Haz!H53>0),Haz!H53&" m2",0) -> 0 | I148: =IF(AND(Tomb!$F$78,Haz!$M$57>0,Haz!M53>0,Haz!J53>0),Haz!J53,0) -> 0 | K148: =IF(AND(Tomb!$F$78,Haz!$M$57>0,Haz!M53>0,Haz!L53>0),Haz!L53,0) -> 0 | M148: =IF(AND(Tomb!$F$78,Haz!$M$57>0,Haz!M53>0),Haz!M53,0) -> 0 | Q148: =IF(T148>0,"VIG","") ->  | T148: =IF(AND(Haz!X56>0,Haz!U56>0),Haz!U56,0) -> 0 | V148: =N(Tomb!D70) -> 0 | W148: =IF(T148>0,"-","") ->  | X148: =IF(AND($X142>0,T148>0),ROUND($X$63*T148,0),0) -> 0
A149: =IF(AND(Tomb!$F$78,Haz!$M$57>0,Haz!M54>0),Haz!C54,0) -> 0 | G149: =IF(AND(Tomb!$F$78,Haz!$M$57>0,Haz!M54>0,Haz!H54>0),Haz!H54&" m2",0) -> 0 | I149: =IF(AND(Tomb!$F$78,Haz!$M$57>0,Haz!M54>0,Haz!J54>0),Haz!J54,0) -> 0 | K149: =IF(AND(Tomb!$F$78,Haz!$M$57>0,Haz!M54>0,Haz!L54>0),Haz!L54,0) -> 0 | M149: =IF(AND(Tomb!$F$78,Haz!$M$57>0,Haz!M54>0),Haz!M54,0) -> 0 | Q149: ÉVES DÍJ; | W149: = | X149: =IF(X142>0,X142-SUM(X143:Z148),0) -> 107687
A150: =IF(AND(Tomb!$F$78,Haz!$M$57>0,Haz!M56>0),Haz!C56,0) -> 0 | I150: =IF(AND(Tomb!$F$78,Haz!$M$57>0,Haz!M56>0,Haz!I56>0),Haz!I56,0) -> 0 | K150: =IF(AND(Tomb!$F$78,Haz!$M$57>0,Haz!M56>0,Haz!L56>0),Haz!L56,0) -> 0 | M150: =IF(AND(Tomb!$F$78,Haz!$M$57>0,Haz!M56>0),Haz!M56,0) -> 0 | P150: Részletfizetési pótdíj | T150: =IF(AND(Haz!X58>0,Haz!U58>0),Haz!U58,0) -> 0 | W150: +
G151: Biztosítási összeg Ft: | H151: =IF(AND(Tomb!$F$78,Haz!$M$57>0,Haz!I57>0),Haz!I57,0) -> 0 | K151: Éves díj: | L151: =IF(AND(Tomb!$F$78,Haz!$M$57>0),Haz!M57,0) -> 0 | P151: Fizetendő éves díj; | W151: =
A153: =IF(AND(Tomb!D79,Haz!X36>0),"X",0) -> X | B153: FELVONÓK GÉPTÖRÉS BIZTOSÍTÁSA | P153: 1 / | Q153: =IF(Haz!X60>0,Haz!R60,0) -> 1 | R153: -éves díjrészlet | V153: =IF(Tomb!R64=Tomb!Q64,"","!!!") ->  | W153: =
A154: =IF(AND(Tomb!D79,Haz!X36>0,Haz!U36>0),FIXED(VLOOKUP(Tomb!W65,Tomb!G34:J37,2,0),0)&" eFt/kár "&FIXED(VLOOKUP(Tomb!W65,Tomb!G34:J37,3,0),0)&" eFt/év/felv.",0) -> 150 eFt/kár 500 eFt/év/felv. | F154: =IF(AND(Tomb!D79,Haz!X36>0,Haz!U36>0),FIXED(VLOOKUP(Tomb!W65,Tomb!G34:J37,4,0),0)&" eFt",0) -> 6 000 eFt | I154: =IF(AND(Tomb!D79,Haz!X36>0,Haz!U36>0),"* "&Haz!U36&" db felvonó =",0) -> * 2 db felvonó = | L154: =IF(AND(Tomb!D79,Haz!X36>0),Haz!X36,0) -> 12000 | Q154: ="A díjfizetés módja; "&IF(Da!$Z$180=1," Inkasszó.",IF(Da!$Z$180=2," Csekk.",IF(Da!$Z$180=3," Átutalás.",""))) -> A díjfizetés módja; Átutalás.
A156: =IF(AND(Tomb!D78,Haz!$X$33>0),"X",0) -> 0 | B156: GÉPJÁRMŰVEK BIZTOSÍTÁSA | J156: =IF(AND(Tomb!D83,Haz!$X$38>0),"X",0) -> X | K156: ASSISTANCE BIZT.
A157: =IF(AND(Tomb!D78,Haz!$X$33>0,Haz!U33>0),Haz!$U$33&" db",0) -> 0 | C157: =IF(AND(Tomb!D78,Haz!$X$33>0)," * "&FIXED(Tomb!J31,0)&" Ft =",0) -> 0 | F157: =IF(AND(Tomb!D78,Haz!$X$33>0),Haz!$X$33,0) -> 0 | L157: =IF(AND(Tomb!D83,Haz!$X$38>0),Haz!$X$38,0) -> 65860 | P157: Kelt;
